Service Area,Service Division,Expense Type,Expense Code,Detailed Expense Type,Payment Date,Transaction Number,Amount Exc VAT,Supplier Name
"Regeneration, Economy and Growth",Business Durham CL0850,Supplies and Services,336005,Advertising E336,01/07/2021,3886316-21BDMAR2,775.00,SECOND DRAFT LTD.
Neighbourhoods and Climate Change,Environmental Services,Construction work A908,908113,Capital - Landscaping,01/07/2021,3886228-8152,"3,440.00",IBA FABRICATIONS LTD.
"Regeneration, Economy and Growth",Culture Sport and Tourism,Premises,145023,Cleaning and Domestic Supplies,01/07/2021,3886208-06/128501,566.28,GREENHAM TRADING LTD.
"Regeneration, Economy and Growth",Corporate Property and Land,Premises,145023,Cleaning and Domestic Supplies,01/07/2021,3886208-06/128578,592.72,GREENHAM TRADING LTD.
Neighbourhoods and Climate Change,Environmental Services,Supplies and Services,328041,Clothing uniforms and laundry E328,01/07/2021,3886358-NSIN00057638,814.90,THOMAS OWEN & SONS (NEWCASTLE) LTD.
"Regeneration, Economy and Growth",Culture Sport and Tourism,Supplies and Services,328041,Clothing uniforms and laundry E328,01/07/2021,3886358-NSIN00056975,511.85,THOMAS OWEN & SONS (NEWCASTLE) LTD.
Resources BK0010,Digital and Customer Services,Vehicles Equipment Furniture and Fittings,912701,Computer equipment,01/07/2021,3886229-5355551,"1,150.50",INSIGHT DIRECT (UK) LTD.
"Regeneration, Economy and Growth",Corporate Property and Land,Supplies and Services,342033,Computers and Communications,01/07/2021,3886383-KZ53696,832.74,XMA LTD.
Resources BK0010,Digital and Customer Services,Supplies and Services,342053,Computers and Communications,01/07/2021,3886168-9424012940,845.75,DATA INTEGRATION LTD.
Resources BK0010,Digital and Customer Services,Supplies and Services,342033,Computers and Communications,01/07/2021,3886341-137038,"2,911.18",SWITCHSHOP LTD.
"Regeneration, Economy and Growth",Development and Housing,Construction work A908,908105,Construction work,01/07/2021,3886117-88014189B,510.00,APEX ACOUSTICS LTD.
"Regeneration, Economy and Growth",Transport and Contracted Services,Construction work A908,908105,Construction work,01/07/2021,3886139-27956,"2,733.48",BUS SHELTERS LTD.
"Regeneration, Economy and Growth",Transport and Contracted Services,Construction work A908,908105,Construction work,01/07/2021,3886139-27969,"3,007.99",BUS SHELTERS LTD.
Children and Young Peoples Services,Head of Education and Skills,Construction work A908,908105,Construction work,01/07/2021,3886128-BE4630,980.00,BARRETT ENVIRONMENTAL LTD.
"Regeneration, Economy and Growth",Corporate Property and Land,Fees,901002,Consultants fees 901002,01/07/2021,3886190-131148/23,"1,850.00",FAIRHURST (CONSULTING ENGINEERS).
Children and Young Peoples Services,Head of Education and Skills,Fees,901002,Consultants fees 901002,01/07/2021,3886307-TEC574459,"1,275.00",RPS CONSULTING SERVICES LTD.
Children and Young Peoples Services,Head of Education and Skills,Transport,230008,Contract Hire,01/07/2021,3886103-11/21,"1,056.00",ADVANCE TRAVEL.
Children and Young Peoples Services,Head of Education and Skills,Transport,230008,Contract Hire,01/07/2021,3886151-INV-057,"1,080.00",CLARE LYNSEY STEWART T/A K&C TAXIS.
Children and Young Peoples Services,Head of Education and Skills,Transport,230008,Contract Hire,01/07/2021,3886257-INV217,"1,352.00",MICHAEL COBB T/A HAIL TAXIS.
Neighbourhoods and Climate Change,Technical Services CM0300,Third Party Payments,460152,Contract Payments,01/07/2021,3886377-200,"10,000.00",WEAR RIVERS TRUST.
Neighbourhoods and Climate Change,Partnerships & Community Engagement Div.,Cap Exp on Grants & Other Financial Assistance (REFCUS),918004,Contributions to other bodies 918004,01/07/2021,3886273-VOUCHER20AB-GAMP014,"5,268.00",NEWTON AYCLIFFE YOUTH & COMMUNITY CENTRE.
Adult and Health Services,Commissioning inc Supporting People,Supplies and Services,377015,County Durham Development,01/07/2021,3886347-13827,800.00,TEESDALE MERCURY LTD.
Adult and Health Services,Commissioning inc Supporting People,Supplies and Services,377015,County Durham Development,01/07/2021,3886347-13956,800.00,TEESDALE MERCURY LTD.
Resources BK0010,Legal & Democratic Services,Premises,120021,Energy Costs,01/07/2021,3886135-26003,"1,648.81",BRADLEY HALL LTD.
Neighbourhoods and Climate Change,Environmental Services,Supplies and Services,304358,Equipment and Materials,01/07/2021,3886118-0000035573,"1,965.27",AQUAJET DRAIN CLEANING LTD.
Neighbourhoods and Climate Change,Technical Services CM0300,Supplies and Services,304221,Equipment and Materials,01/07/2021,3886189-137623,"12,388.99",FABRIKAT (NOTTINGHAM) LTD.
Neighbourhoods and Climate Change,Technical Services CM0300,Supplies and Services,304357,Equipment and Materials,01/07/2021,3886202-DCC130621,"16,685.36",GAP GROUP LTD.
Neighbourhoods and Climate Change,Technical Services CM0300,Supplies and Services,304358,Equipment and Materials,01/07/2021,3886214-2105/022,570.00,HALL CONSTRUCTION SERVICES LTD.
Neighbourhoods and Climate Change,Technical Services CM0300,Supplies and Services,304358,Equipment and Materials,01/07/2021,3886238-31433,"1,104.00",JOHN R BUTTERFIELD LTD.
Neighbourhoods and Climate Change,Technical Services CM0300,Supplies and Services,304358,Equipment and Materials,01/07/2021,3886238-31447,506.00,JOHN R BUTTERFIELD LTD.
Neighbourhoods and Climate Change,Technical Services CM0300,Supplies and Services,304358,Equipment and Materials,01/07/2021,3886238-31448,678.50,JOHN R BUTTERFIELD LTD.
Neighbourhoods and Climate Change,Technical Services CM0300,Supplies and Services,304358,Equipment and Materials,01/07/2021,3886238-31452,874.00,JOHN R BUTTERFIELD LTD.
Neighbourhoods and Climate Change,Technical Services CM0300,Supplies and Services,304358,Equipment and Materials,01/07/2021,3886238-31453,861.00,JOHN R BUTTERFIELD LTD.
Neighbourhoods and Climate Change,Technical Services CM0300,Supplies and Services,304358,Equipment and Materials,01/07/2021,3886238-31454,801.60,JOHN R BUTTERFIELD LTD.
Neighbourhoods and Climate Change,Technical Services CM0300,Supplies and Services,304358,Equipment and Materials,01/07/2021,3886238-31457,"1,728.50",JOHN R BUTTERFIELD LTD.
Neighbourhoods and Climate Change,Technical Services CM0300,Supplies and Services,304358,Equipment and Materials,01/07/2021,3886238-31460,"1,099.00",JOHN R BUTTERFIELD LTD.
Neighbourhoods and Climate Change,Technical Services CM0300,Supplies and Services,304358,Equipment and Materials,01/07/2021,3886267-NC/156/BW,"2,007.50",NEDCO CONTRACTS (NE) LTD.
Neighbourhoods and Climate Change,Technical Services CM0300,Supplies and Services,304358,Equipment and Materials,01/07/2021,3886267-NC/157/BW,"2,420.00",NEDCO CONTRACTS (NE) LTD.
Neighbourhoods and Climate Change,Technical Services CM0300,Supplies and Services,304221,Equipment and Materials,01/07/2021,3886277-210969,957.00,NORTH EAST CONCRETE LTD.
Neighbourhoods and Climate Change,Technical Services CM0300,Supplies and Services,304358,Equipment and Materials,01/07/2021,3886360-36776,900.00,TODDS HIGHWAY MAINTENANCE LTD.
Neighbourhoods and Climate Change,Technical Services CM0300,Supplies and Services,304221,Equipment and Materials,01/07/2021,3886363-223417,570.96,TYNEDALE ROADSTONE LTD.
Neighbourhoods and Climate Change,Technical Services CM0300,Supplies and Services,304358,Equipment and Materials,01/07/2021,3886386-8566,622.50,YOULL CONSTRUCTION LTD.
Neighbourhoods and Climate Change,Technical Services CM0300,Supplies and Services,304358,Equipment and Materials,01/07/2021,3886386-8569,622.50,YOULL CONSTRUCTION LTD.
Neighbourhoods and Climate Change,Technical Services CM0300,Supplies and Services,304358,Equipment and Materials,01/07/2021,3886386-8635,"2,730.00",YOULL CONSTRUCTION LTD.
Neighbourhoods and Climate Change,Technical Services CM0300,Supplies and Services,304358,Equipment and Materials,01/07/2021,3886386-8641,589.00,YOULL CONSTRUCTION LTD.
Neighbourhoods and Climate Change,Technical Services CM0300,Supplies and Services,304358,Equipment and Materials,01/07/2021,3886386-8648,"2,730.00",YOULL CONSTRUCTION LTD.
"Regeneration, Economy and Growth",Corporate Property and Land,Supplies and Services,304221,Equipment and Materials,01/07/2021,3886143-10524292,"1,310.40",CARPET & FLOORING (TRADING) LTD.
"Regeneration, Economy and Growth",Corporate Property and Land,Supplies and Services,304221,Equipment and Materials,01/07/2021,3886219-00534662,871.95,HEATSEAM LTD T/A LIKEWISE NORTH EAST.
"Regeneration, Economy and Growth",Corporate Property and Land,Supplies and Services,304221,Equipment and Materials,01/07/2021,3886219-00534664,871.95,HEATSEAM LTD T/A LIKEWISE NORTH EAST.
"Regeneration, Economy and Growth",Corporate Property and Land,Supplies and Services,304221,Equipment and Materials,01/07/2021,3886219-00534666,"1,315.90",HEATSEAM LTD T/A LIKEWISE NORTH EAST.
Neighbourhoods and Climate Change,Environmental Services,Supplies and Services,304083,Equipment and Materials,01/07/2021,3886324-9461,"2,755.52",SIGMA CATERING EQUIPMENT LTD.
Resources BK0010,Digital and Customer Services,Supplies and Services,304639,Equipment and Materials,01/07/2021,3886208-06/128579,516.36,GREENHAM TRADING LTD.
Resources BK0010,Digital and Customer Services,Supplies and Services,304303,Equipment and Materials,01/07/2021,3886211-INV0182684,500.00,GVAV LTD.
Resources BK0010,Digital and Customer Services,Supplies and Services,304639,Equipment and Materials,01/07/2021,3886383-KZ55778,740.25,XMA LTD.
"Regeneration, Economy and Growth",Development and Housing,Supplies and Services,308011,Furniture,01/07/2021,3886323-5396,791.67,SIESTA BLINDS LTD.
Neighbourhoods and Climate Change,Environmental Services,Supplies and Services,384199,Miscellaneous Expenses,01/07/2021,3886355-INV-168,"13,899.17",THE UK DEVELOPMENT GROUP LTD.
Children and Young Peoples Services,Head of Early Help Inclusion & Vulnerable Children.,Supplies and Services,384899,Miscellaneous Expenses,01/07/2021,3886161-THK061,"1,339.00",COUNTY DURHAM FURNITURE HELP SCHEME (CDFHS).
Resources - C A C,Centrally Administered costs 069006,Third Party Payments,440999,Other third party payments E440,01/07/2021,3886378-8000294452,"6,630.00",WEST DEVON BOROUGH COUNCIL.
Resources BK0010,Finance & Transactional Services,Supplies and Services,340001,Postages E340,01/07/2021,3886306-9063024969,"19,094.39",ROYAL MAIL GROUP PLC.
"Regeneration, Economy and Growth",Culture Sport and Tourism,Supplies and Services,332047,Printing Stationery and Gen Off Exps,01/07/2021,3886300-0000427937,525.82,PRESERVATION EQUIPMENT LTD.
Neighbourhoods and Climate Change,Environmental Services,Supplies and Services,324117,Provisions E324,01/07/2021,3886234-12739,662.40,J MORAN LTD T/A CAFFE VINCI.
Adult and Health Services,Head of Adults,Third Party Payments,472101,Purchase of Care,01/07/2021,3886270-2081992H,551.20,NEW VISION CARE SERVICES LTD.
Adult and Health Services,Commissioning inc Supporting People,Third Party Payments,479101,Purchase of Care,01/07/2021,3886176-449,"263,250.00",DURHAM COUNTY CARERS SUPPORT.
Adult and Health Services,Head of Adults,Third Party Payments,472101,Purchase of Care,01/07/2021,3886270-2080902H,"1,240.20",NEW VISION CARE SERVICES LTD.
Adult and Health Services,Head of Adults,Third Party Payments,472101,Purchase of Care,01/07/2021,3886270-2082718H,530.00,NEW VISION CARE SERVICES LTD.
Adult and Health Services,Head of Adults,Third Party Payments,472101,Purchase of Care,01/07/2021,3886270-2084464H,763.20,NEW VISION CARE SERVICES LTD.
Adult and Health Services,Head of Adults,Third Party Payments,478151,Purchase of Care,01/07/2021,3886154-421R170153,"2,381.09",COMMUNITY INTEGRATED CARE LTD.
Adult and Health Services,Head of Adults,Third Party Payments,478151,Purchase of Care,01/07/2021,3886154-421R171209,"7,800.00",COMMUNITY INTEGRATED CARE LTD.
Adult and Health Services,Head of Adults,Third Party Payments,478151,Purchase of Care,01/07/2021,3886154-421R171210,"5,555.88",COMMUNITY INTEGRATED CARE LTD.
Adult and Health Services,Head of Adults,Third Party Payments,478151,Purchase of Care,01/07/2021,3886169-INV-0832,"1,708.80",DEACONSTAR LTD.
Adult and Health Services,Head of Adults,Third Party Payments,478151,Purchase of Care,01/07/2021,3886169-INV-0833,"2,521.41",DEACONSTAR LTD.
Adult and Health Services,Head of Adults,Third Party Payments,478151,Purchase of Care,01/07/2021,3886169-INV-0834,"2,160.00",DEACONSTAR LTD.
Adult and Health Services,Head of Adults,Third Party Payments,478151,Purchase of Care,01/07/2021,3886297-26001584,"2,914.28",POTENSIAL LTD.
Adult and Health Services,Head of Adults,Third Party Payments,478151,Purchase of Care,01/07/2021,3886328-28621,"1,085.90",SOVEREIGN CARE (NORTH EAST) LTD.
Adult and Health Services,Head of Adults,Third Party Payments,478151,Purchase of Care,01/07/2021,3886357-NTX-INV-0000000227,"1,428.00",THERA NORTH TRADING LTD.
Neighbourhoods and Climate Change,Environmental Services,Third Party Payments,430100,Rendered by Private Contractors,01/07/2021,3886106-R10/21/92313,"1,160.00",ALAN M RANSON FUNERAL SERVICE.
Neighbourhoods and Climate Change,Environmental Services,Third Party Payments,430100,Rendered by Private Contractors,01/07/2021,3886116-INV-3999,"1,556.56",ANNFIELD AUTO SERVICES.
Neighbourhoods and Climate Change,Environmental Services,Third Party Payments,430100,Rendered by Private Contractors,01/07/2021,3886184-13000720256,"1,592.47",ENTERPRISE FLEX-E-RENT T/A BURNT TREE GROUP LTD.
Neighbourhoods and Climate Change,Environmental Services,Third Party Payments,430100,Rendered by Private Contractors,01/07/2021,3886296-TYN21397,616.61,PIRTEK TYNE & WEAR.
Neighbourhoods and Climate Change,Technical Services CM0300,Third Party Payments,430100,Rendered by Private Contractors,01/07/2021,3886380-NEI-EXP-06-2021-034,500.00,WITTON GILBERT PARISH COUNCIL.
"Regeneration, Economy and Growth",Corporate Property and Land,Third Party Payments,430100,Rendered by Private Contractors,01/07/2021,3886125-2067,"5,973.00",AWR ROOFING & ALUMIN RAINWATER SYSTEMS LTD.
"Regeneration, Economy and Growth",Corporate Property and Land,Third Party Payments,430100,Rendered by Private Contractors,01/07/2021,3886256-7572,"7,218.96",MELDRUM CONSTRUCTION SERVICES LTD.
Children and Young Peoples Services,Head of Childrens Social Care,Third Party Payments,425041,Rendered by Voluntary Organisations,01/07/2021,3886165-0341658,"27,000.00",CUMBRIA COUNTY COUNCIL..
Neighbourhoods and Climate Change,Environmental Services,Transport,215005,Running Costs of Vehicles,01/07/2021,3886285-773376,"12,376.97",OIL NRG LTD.
Children and Young Peoples Services,Head of Early Help Inclusion & Vulnerable Children.,Third Party Payments,486029,Service level agreements E486,01/07/2021,3886191-JUN21-0019,"19,042.50",FAMILY ACTION T/A PAC-UK LTD.
"Regeneration, Economy and Growth",Business Durham CL0850,Premises,108099,Service Repairs and Maintenance,01/07/2021,3886334-17293,"2,548.00",STEADFAST SECURITY SOLUTIONS LTD.
Children and Young Peoples Services,Head of Early Help Inclusion & Vulnerable Children.,Premises,108099,Service Repairs and Maintenance,01/07/2021,3886339-5727,850.00,SUSTAIN LANDSCAPES LTD.
Neighbourhoods and Climate Change,Technical Services CM0300,Supplies and Services,338027,Services,01/07/2021,3886292-64017276,"46,261.14",PELL FRISCHMANN CONSULTANTS LTD.
"Regeneration, Economy and Growth",Development and Housing,Supplies and Services,338066,Services,01/07/2021,3886137-65037607,"5,770.00",BRE.
"Regeneration, Economy and Growth",Development and Housing,Supplies and Services,338066,Services,01/07/2021,3886137-65037608,"1,000.00",BRE.
"Regeneration, Economy and Growth",Development and Housing,Supplies and Services,338066,Services,01/07/2021,3886137-65037609,"1,325.00",BRE.
Neighbourhoods and Climate Change,Environmental Services,Supplies and Services,338066,Services,01/07/2021,3886173-INV-0336,"2,881.25",DIGVENTURES LTD.
Neighbourhoods and Climate Change,Environmental Services,Supplies and Services,338066,Services,01/07/2021,3886173-INV-0339,"2,000.00",DIGVENTURES LTD.
Adult and Health Services,Adults Excluded,Supplies and Services,338027,Services,01/07/2021,3886370-VB0025,"1,500.00",REDACTED - PAYMENT TO INDIVIDUAL
Children and Young Peoples Services,Childrens Services Operational Support,Supplies and Services,338089,Services,01/07/2021,3886336-INV001252,"35,000.00",STRENGTHENING PRACTICE.
Children and Young Peoples Services,Head of Education and Skills,Supplies and Services,338035,Services,01/07/2021,3886185-EPASI001911,525.00,EPA PLUS (A TRADING DIVISION OF NCFE).
Children and Young Peoples Services,Head of Childrens Social Care,Supplies and Services,338044,Services,01/07/2021,3886196-321/1,806.51,FOCUS MENTAL HEALTH.
Children and Young Peoples Services,Head of Childrens Social Care,Supplies and Services,338045,Services,01/07/2021,3886318-INVSF69,"2,800.00",SEVEN BEDFORD ROW (BARRISTERS CHAMBERS).
Neighbourhoods and Climate Change,Technical Services CM0300,Stock A926,926900,Stock in hand-Inventory system,01/07/2021,3886227-37517,"4,394.00",HUGH LOGAN ENGINEERING.
Neighbourhoods and Climate Change,Technical Services CM0300,Stock A926,926900,Stock in hand-Inventory system,01/07/2021,3886230-788021,"2,212.00",INSTARMAC GROUP PLC.
Neighbourhoods and Climate Change,Technical Services CM0300,Stock A926,926900,Stock in hand-Inventory system,01/07/2021,3886289-XL272378,"3,780.00",PARK ELECTRICAL DISTRIBUTORS LTD.
Neighbourhoods and Climate Change,Technical Services CM0300,Stock A926,926900,Stock in hand-Inventory system,01/07/2021,3886289-XL272380,"1,870.56",PARK ELECTRICAL DISTRIBUTORS LTD.
Adult and Health Services,Commissioning inc Supporting People,Third Party Payments,441001,Supporting People E441,01/07/2021,3886331-1245,"40,953.00",ST MARGARETS CENTRE.
Adult and Health Services,Commissioning inc Supporting People,Third Party Payments,442002,Supporting People E442,01/07/2021,3886167-14801,"3,750.00",DARLINGTON MIND LTD.
Adult and Health Services,Commissioning inc Supporting People,Third Party Payments,442002,Supporting People E442,01/07/2021,3886352-009,"6,281.00",THE HUB OF WISHES.
Dedicated Schools Grant BG0015,DSG High Needs Block,Central Support and Other Recharges,689996,Unclassified E690,01/07/2021,3886222-CAS-07-2021-002,"117,942.00",HOPE WOOD ACADEMY.
"Regeneration, Economy and Growth",Business Durham CL0850,Supplies and Services,336005,Advertising E336,02/07/2021,3886671-2IBOMAY1,"1,625.00",SECOND DRAFT LTD.
"Regeneration, Economy and Growth",Development and Housing,Supplies and Services,336005,Advertising E336,02/07/2021,3886698-14444,"1,060.00",TEESDALE MERCURY LTD.
Chief Executive's Office,Communications Management,Supplies and Services,336005,Advertising E336,02/07/2021,3886619-37066818,"2,000.00",NEWSQUEST (YORKSHIRE & NORTH EAST) LTD.
Chief Executive's Office,Communications Management,Supplies and Services,336005,Advertising E336,02/07/2021,3886619-37082070,"1,000.00",NEWSQUEST (YORKSHIRE & NORTH EAST) LTD.
Chief Executive's Office,Communications Management,Supplies and Services,336005,Advertising E336,02/07/2021,3886619-37082523,500.00,NEWSQUEST (YORKSHIRE & NORTH EAST) LTD.
"Regeneration, Economy and Growth",Culture Sport and Tourism,Premises,106082,Centrally Controlled Rep and Maint,02/07/2021,3886546-21715,"1,694.00",HYGIENIC CLEANING COMPANY (UK) LTD.
"Regeneration, Economy and Growth",Business Durham CL0850,Premises,106083,Centrally Controlled Rep and Maint,02/07/2021,3886408-IN8585,"13,563.98",ACROL AIR CONDITIONING CO LTD.
"Regeneration, Economy and Growth",Business Durham CL0850,Premises,106099,Centrally Controlled Rep and Maint,02/07/2021,3886451-8230,"3,599.31",CATHEDRAL LOCK & SAFE SERVICES LTD.
"Regeneration, Economy and Growth",Culture Sport and Tourism,Premises,145023,Cleaning and Domestic Supplies,02/07/2021,3886527-06/128740,531.60,GREENHAM TRADING LTD.
"Regeneration, Economy and Growth",Culture Sport and Tourism,Supplies and Services,328041,Clothing uniforms and laundry E328,02/07/2021,3886705-NSIN00056465,"1,686.34",THOMAS OWEN & SONS (NEWCASTLE) LTD.
"Regeneration, Economy and Growth",Culture Sport and Tourism,Supplies and Services,328041,Clothing uniforms and laundry E328,02/07/2021,3886705-NSIN00056974,739.20,THOMAS OWEN & SONS (NEWCASTLE) LTD.
Adult and Health Services,Head of Adults,Supplies and Services,342051,Computers and Communications,02/07/2021,3886681-INV02887984,787.50,SOFTCAT LTD.
Resources BK0010,Digital and Customer Services,Supplies and Services,342033,Computers and Communications,02/07/2021,3886695-137013,994.00,SWITCHSHOP LTD.
"Regeneration, Economy and Growth",Culture Sport and Tourism,Construction work A908,908105,Construction work,02/07/2021,3886683-2021-333,"1,875.00",SOLMEK LTD.
Children and Young Peoples Services,Head of Education and Skills,Construction work A908,908105,Construction work,02/07/2021,3886651-900927249,"22,847.75",PORTAKABIN LTD.
Neighbourhoods and Climate Change,Environmental Services,Transport,230005,Contract Hire,02/07/2021,3886727-86926,790.00,WARREN ACCESS LTD.
Neighbourhoods and Climate Change,Environmental Services,Transport,230005,Contract Hire,02/07/2021,3886727-87021,"1,085.00",WARREN ACCESS LTD.
Children and Young Peoples Services,Head of Education and Skills,Transport,230008,Contract Hire,02/07/2021,3886409-09/21,864.00,ADVANCE TRAVEL.
Adult and Health Services,Public Health CC0450,Third Party Payments,460803,Contract Payments,02/07/2021,3886535-2510039731,"2,608.33",HARROGATE & DISTRICT NHS FOUNDATION TRUST.
Adult and Health Services,Public Health CC0450,Third Party Payments,460803,Contract Payments,02/07/2021,3886535-2510039732,"2,608.33",HARROGATE & DISTRICT NHS FOUNDATION TRUST.
Adult and Health Services,Public Health CC0450,Third Party Payments,460803,Contract Payments,02/07/2021,3886535-2510039733,"2,608.33",HARROGATE & DISTRICT NHS FOUNDATION TRUST.
Adult and Health Services,Public Health CC0450,Third Party Payments,460803,Contract Payments,02/07/2021,3886535-2510040140,"931,875.00",HARROGATE & DISTRICT NHS FOUNDATION TRUST.
Adult and Health Services,Public Health CC0450,Third Party Payments,460803,Contract Payments,02/07/2021,3886535-2510040141,"2,564.03",HARROGATE & DISTRICT NHS FOUNDATION TRUST.
Neighbourhoods and Climate Change,Partnerships & Community Engagement Div.,Cap Exp on Grants & Other Financial Assistance (REFCUS),918004,Contributions to other bodies 918004,02/07/2021,3886701-VOUCHER20NB-EDUR106,"6,241.59",THE COMMUNITY CLUB.
"Regeneration, Economy and Growth",Culture Sport and Tourism,Supplies and Services,304259,Equipment and Materials,02/07/2021,3886462-INV04301,"1,462.08",COMPETITION LINE UK LTD T/A LIFESTYLE FITNESS.
"Regeneration, Economy and Growth",Corporate Property and Land,Supplies and Services,304259,Equipment and Materials,02/07/2021,3886629-615754,558.00,NORTHERN TOOLS & ACCESSORIES.
"Regeneration, Economy and Growth",Culture Sport and Tourism,Supplies and Services,304259,Equipment and Materials,02/07/2021,3886564-109290,859.76,JP LENNARD LTD.
Neighbourhoods and Climate Change,Technical Services CM0300,Supplies and Services,304221,Equipment and Materials,02/07/2021,3886566-0119/00400508,979.80,JT DOVE LTD.
Neighbourhoods and Climate Change,Technical Services CM0300,Supplies and Services,304221,Equipment and Materials,02/07/2021,3886717-222828,702.24,TYNEDALE ROADSTONE LTD.
Neighbourhoods and Climate Change,Technical Services CM0300,Supplies and Services,304221,Equipment and Materials,02/07/2021,3886717-222833,528.18,TYNEDALE ROADSTONE LTD.
Neighbourhoods and Climate Change,Technical Services CM0300,Supplies and Services,304221,Equipment and Materials,02/07/2021,3886717-222843,697.84,TYNEDALE ROADSTONE LTD.
Neighbourhoods and Climate Change,Technical Services CM0300,Supplies and Services,304221,Equipment and Materials,02/07/2021,3886717-222978,996.94,TYNEDALE ROADSTONE LTD.
Neighbourhoods and Climate Change,Technical Services CM0300,Supplies and Services,304221,Equipment and Materials,02/07/2021,3886717-222988,850.42,TYNEDALE ROADSTONE LTD.
Neighbourhoods and Climate Change,Technical Services CM0300,Supplies and Services,304221,Equipment and Materials,02/07/2021,3886717-223151,"1,072.18",TYNEDALE ROADSTONE LTD.
Neighbourhoods and Climate Change,Technical Services CM0300,Supplies and Services,304221,Equipment and Materials,02/07/2021,3886717-223153,567.97,TYNEDALE ROADSTONE LTD.
Neighbourhoods and Climate Change,Technical Services CM0300,Supplies and Services,304221,Equipment and Materials,02/07/2021,3886717-223226,"1,000.90",TYNEDALE ROADSTONE LTD.
Neighbourhoods and Climate Change,Technical Services CM0300,Supplies and Services,304221,Equipment and Materials,02/07/2021,3886717-223227,"1,684.08",TYNEDALE ROADSTONE LTD.
Neighbourhoods and Climate Change,Technical Services CM0300,Supplies and Services,304221,Equipment and Materials,02/07/2021,3886717-223267,854.38,TYNEDALE ROADSTONE LTD.
Neighbourhoods and Climate Change,Technical Services CM0300,Supplies and Services,304221,Equipment and Materials,02/07/2021,3886717-223269,"1,066.24",TYNEDALE ROADSTONE LTD.
Neighbourhoods and Climate Change,Technical Services CM0300,Supplies and Services,304221,Equipment and Materials,02/07/2021,3886717-223276,"1,088.02",TYNEDALE ROADSTONE LTD.
Neighbourhoods and Climate Change,Technical Services CM0300,Supplies and Services,304221,Equipment and Materials,02/07/2021,3886717-223277,"1,364.24",TYNEDALE ROADSTONE LTD.
"Regeneration, Economy and Growth",Corporate Property and Land,Supplies and Services,304221,Equipment and Materials,02/07/2021,3886464-SRO21697,732.00,CONSIDERATE CONSTRUCTORS SCHEME.
"Regeneration, Economy and Growth",Corporate Property and Land,Supplies and Services,304221,Equipment and Materials,02/07/2021,3886567-0113/00400506,"1,828.04",JT DOVE LTD.
"Regeneration, Economy and Growth",Corporate Property and Land,Supplies and Services,304221,Equipment and Materials,02/07/2021,3886566-0213/00400515,602.67,JT DOVE LTD.
"Regeneration, Economy and Growth",Corporate Property and Land,Supplies and Services,304221,Equipment and Materials,02/07/2021,3886696-610703,833.88,T CROSSLING & CO LTD.
"Regeneration, Economy and Growth",Corporate Property and Land,Supplies and Services,304221,Equipment and Materials,02/07/2021,3886696-612346,624.26,T CROSSLING & CO LTD.
"Regeneration, Economy and Growth",Corporate Property and Land,Supplies and Services,304221,Equipment and Materials,02/07/2021,3886722-6890395813,"9,910.00",VIESSMANN LTD.
"Regeneration, Economy and Growth",Corporate Property and Land,Supplies and Services,304221,Equipment and Materials,02/07/2021,3886567-0213/00400511,608.67,JT DOVE LTD.
"Regeneration, Economy and Growth",Corporate Property and Land,Supplies and Services,304221,Equipment and Materials,02/07/2021,3886499-059-283846,518.73,EDMUNDSON ELECTRICAL LTD.
"Regeneration, Economy and Growth",Culture Sport and Tourism,Supplies and Services,304259,Equipment and Materials,02/07/2021,3886415-171674,"5,728.00",ALBANY OFFICE EQUIPMENT (WHOLESALE) LTD.
Resources BK0010,Digital and Customer Services,Supplies and Services,304303,Equipment and Materials,02/07/2021,3886530-INV0182685,"1,811.52",GVAV LTD.
Dedicated Schools Grant BG0015,DSG High Needs Block,Supplies and Services,304259,Equipment and Materials,02/07/2021,3886486-0000115973,"1,375.00",DIRECT HEALTHCARE GROUP LTD.
Dedicated Schools Grant BG0015,DSG High Needs Block,Supplies and Services,304259,Equipment and Materials,02/07/2021,3886647-2593040070A,"2,475.20",PHONAK UK LTD.
"Regeneration, Economy and Growth",Culture Sport and Tourism,Supplies and Services,384999,Miscellaneous Expenses,02/07/2021,3886466-SI-4244,"1,576.00",COUNTY DURHAM SPORT.
"Regeneration, Economy and Growth",Culture Sport and Tourism,Supplies and Services,384700,Miscellaneous Expenses,02/07/2021,3886519-CCF04525,922.50,FUTURE FIT TRAINING LTD.
"Regeneration, Economy and Growth",Business Durham CL0850,Supplies and Services,384899,Miscellaneous Expenses,02/07/2021,3886442-DBRG-07-2021-17,525.00,BISHOP TRAINS.
"Regeneration, Economy and Growth",Business Durham CL0850,Supplies and Services,384899,Miscellaneous Expenses,02/07/2021,3886442-DBRG-07-2021-18,525.00,BISHOP TRAINS.
"Regeneration, Economy and Growth",Business Durham CL0850,Supplies and Services,384899,Miscellaneous Expenses,02/07/2021,3886474-DBRG-07-2021-12,866.25,DAVID COULSON CONSTRUCTION LTD.
"Regeneration, Economy and Growth",Business Durham CL0850,Supplies and Services,384899,Miscellaneous Expenses,02/07/2021,3886558-DBRG-07-2021-07,"3,658.14",JAY CCTV SOLUTIONS (JCS) LTD.
"Regeneration, Economy and Growth",Business Durham CL0850,Supplies and Services,384899,Miscellaneous Expenses,02/07/2021,3886575-DBRG-07-2021-05,"1,247.25",KYM CUER T/A STARZ DRAMA SCHOOL.
"Regeneration, Economy and Growth",Business Durham CL0850,Supplies and Services,384899,Miscellaneous Expenses,02/07/2021,3886604-DBRG-07-2021-11,"16,416.00",MISS CT WADDLE T/A BEAUTY RISING.
"Regeneration, Economy and Growth",Business Durham CL0850,Supplies and Services,384899,Miscellaneous Expenses,02/07/2021,3886707-DBRG-07-2021-04,"5,355.00",TONTOPIC RECORD COMPANY LTD T/A DURHAM HEARING SPECIALISTS.
"Regeneration, Economy and Growth",Business Durham CL0850,Supplies and Services,384899,Miscellaneous Expenses,02/07/2021,3886720-DBRG-07-2021-13,"5,454.00",UTOPIA TINTS LTD.
Neighbourhoods and Climate Change,Environmental Services,Supplies and Services,384199,Miscellaneous Expenses,02/07/2021,3886485-INV-0333,"3,000.00",DIGVENTURES LTD.
Neighbourhoods and Climate Change,Environmental Services,Supplies and Services,384899,Miscellaneous Expenses,02/07/2021,3886730-201,"12,204.13",WEAR RIVERS TRUST.
"Regeneration, Economy and Growth",Corporate Property and Land,Supplies and Services,384199,Miscellaneous Expenses,02/07/2021,3886640-0000003065,606.72,PBU (UK) LTD.
"Regeneration, Economy and Growth",Transport and Contracted Services,Supplies and Services,384199,Miscellaneous Expenses,02/07/2021,3886675-174796,"3,304.00",SHOWSEC INTERNATIONAL LTD.
"Regeneration, Economy and Growth",Culture Sport and Tourism,Supplies and Services,384199,Miscellaneous Expenses,02/07/2021,3886451-8207,"3,980.65",CATHEDRAL LOCK & SAFE SERVICES LTD.
Children and Young Peoples Services,Head of Education and Skills,Supplies and Services,384199,Miscellaneous Expenses,02/07/2021,3886664-TEC574453,"1,543.00",RPS CONSULTING SERVICES LTD.
Children and Young Peoples Services,Head of Education and Skills,Supplies and Services,384199,Miscellaneous Expenses,02/07/2021,3886641-DW0118/EL,"1,410.26",PCJ SUPPLIES LTD.
"Regeneration, Economy and Growth",Culture Sport and Tourism,Supplies and Services,312013,Newspapers books and periodicals E312,02/07/2021,3886426-6510333,651.67,ASKEWS & HOLTS LIBRARY SERVICES LTD.
"Regeneration, Economy and Growth",Culture Sport and Tourism,Supplies and Services,312017,Newspapers books and periodicals E312,02/07/2021,3886426-6512388,655.75,ASKEWS & HOLTS LIBRARY SERVICES LTD.
Children and Young Peoples Services,Head of Early Help Inclusion & Vulnerable Children.,Supplies and Services,324500,Provisions E324,02/07/2021,3886470-25/06/2021,"13,988.24",CREATIVE MANAGEMENT SERVICES LTD.
Adult and Health Services,Head of Adults,Third Party Payments,473101,Purchase of Care,02/07/2021,3886537-2079830D,544.50,HASWELL & DISTRICT MENCAP SOCIETY.
Adult and Health Services,Head of Adults,Third Party Payments,473101,Purchase of Care,02/07/2021,3886537-2079845D,740.10,HASWELL & DISTRICT MENCAP SOCIETY.
Adult and Health Services,Head of Adults,Third Party Payments,473101,Purchase of Care,02/07/2021,3886537-2080023D,689.70,HASWELL & DISTRICT MENCAP SOCIETY.
Adult and Health Services,Head of Adults,Third Party Payments,473101,Purchase of Care,02/07/2021,3886537-2080875D,689.70,HASWELL & DISTRICT MENCAP SOCIETY.
Adult and Health Services,Head of Adults,Third Party Payments,473101,Purchase of Care,02/07/2021,3886537-2081170D,689.70,HASWELL & DISTRICT MENCAP SOCIETY.
Neighbourhoods and Climate Change,Environmental Services,Third Party Payments,430101,Rendered by Private Contractors,02/07/2021,3886597-FKL00238,"2,103.50",MCCONECHYS TYRE SERVICE LTD.
Neighbourhoods and Climate Change,Environmental Services,Third Party Payments,430101,Rendered by Private Contractors,02/07/2021,3886597-FKL00245,"3,101.00",MCCONECHYS TYRE SERVICE LTD.
Neighbourhoods and Climate Change,Environmental Services,Third Party Payments,430101,Rendered by Private Contractors,02/07/2021,3886597-FKL00235,"1,591.50",MCCONECHYS TYRE SERVICE LTD.
Neighbourhoods and Climate Change,Environmental Services,Third Party Payments,430101,Rendered by Private Contractors,02/07/2021,3886597-FKL00244,"1,243.50",MCCONECHYS TYRE SERVICE LTD.
Neighbourhoods and Climate Change,Environmental Services,Third Party Payments,430101,Rendered by Private Contractors,02/07/2021,3886597-FKL00236,"2,357.00",MCCONECHYS TYRE SERVICE LTD.
Neighbourhoods and Climate Change,Environmental Services,Third Party Payments,430101,Rendered by Private Contractors,02/07/2021,3886597-FKL00237,854.50,MCCONECHYS TYRE SERVICE LTD.
Neighbourhoods and Climate Change,Environmental Services,Third Party Payments,430101,Rendered by Private Contractors,02/07/2021,3886597-FKL00243,"2,072.00",MCCONECHYS TYRE SERVICE LTD.
"Regeneration, Economy and Growth",Culture Sport and Tourism,Third Party Payments,430131,Rendered by Private Contractors,02/07/2021,3886601-2021010,"2,990.00",MICHELLE GARTON T/A GET FIT NORTH EAST.
Neighbourhoods and Climate Change,Technical Services CM0300,Third Party Payments,430100,Rendered by Private Contractors,02/07/2021,3886568-328092,"1,987.28",KAEFER LTD.
"Regeneration, Economy and Growth",Corporate Property and Land,Third Party Payments,430100,Rendered by Private Contractors,02/07/2021,3886636-10911-24,"1,128.38",OPUS BUILDING SERVICES LTD.
"Regeneration, Economy and Growth",Corporate Property and Land,Third Party Payments,430100,Rendered by Private Contractors,02/07/2021,3886636-10911-25,"1,128.38",OPUS BUILDING SERVICES LTD.
"Regeneration, Economy and Growth",Corporate Property and Land,Third Party Payments,430100,Rendered by Private Contractors,02/07/2021,3886636-10911-26,"1,151.17",OPUS BUILDING SERVICES LTD.
Neighbourhoods and Climate Change,Environmental Services,Third Party Payments,430113,Rendered by Private Contractors,02/07/2021,3886675-174833,801.81,SHOWSEC INTERNATIONAL LTD.
Neighbourhoods and Climate Change,Environmental Services,Third Party Payments,430113,Rendered by Private Contractors,02/07/2021,3886675-174834,840.75,SHOWSEC INTERNATIONAL LTD.
Neighbourhoods and Climate Change,Environmental Services,Transport,210057,Repair and Maintenance of Vehicles,02/07/2021,3886417-81241,"1,755.95",ALLAN FULLER LTD.
Neighbourhoods and Climate Change,Environmental Services,Transport,210057,Repair and Maintenance of Vehicles,02/07/2021,3886417-81253,664.84,ALLAN FULLER LTD.
Neighbourhoods and Climate Change,Environmental Services,Transport,210057,Repair and Maintenance of Vehicles,02/07/2021,3886626-1904403,776.49,NORTH EAST TRUCK & VAN LTD.
Neighbourhoods and Climate Change,Environmental Services,Transport,210057,Repair and Maintenance of Vehicles,02/07/2021,3886639-16419386,528.39,PARTSPLUS.
Neighbourhoods and Climate Change,Environmental Services,Transport,215005,Running Costs of Vehicles,02/07/2021,3886633-773440,"14,339.91",OIL NRG LTD.
"Regeneration, Economy and Growth",Corporate Property and Land,Premises,108099,Service Repairs and Maintenance,02/07/2021,3886546-21755,798.00,HYGIENIC CLEANING COMPANY (UK) LTD.
"Regeneration, Economy and Growth",Corporate Property and Land,Premises,108099,Service Repairs and Maintenance,02/07/2021,3886546-21716,"1,458.00",HYGIENIC CLEANING COMPANY (UK) LTD.
"Regeneration, Economy and Growth",Corporate Property and Land,Premises,108099,Service Repairs and Maintenance,02/07/2021,3886635-779157,"6,518.03",OPENVIEW SECURITY SOLUTIONS LTD.
"Regeneration, Economy and Growth",Corporate Property and Land,Premises,108099,Service Repairs and Maintenance,02/07/2021,3886585-138071,600.00,LUCION ENVIRONMENTAL LLP LTD.
Children and Young Peoples Services,Head of Early Help Inclusion & Vulnerable Children.,Premises,108135,Service Repairs and Maintenance,02/07/2021,3886503-88542,501.50,EIAT UK LTD (ELECTRICAL INSTALLATION & APPLIANCE TESTING UK).
Neighbourhoods and Climate Change,Environmental Services,Supplies and Services,338078,Services,02/07/2021,3886689-17224,"7,434.30",STEADFAST SECURITY SOLUTIONS LTD.
Neighbourhoods and Climate Change,Community Protection,Supplies and Services,338045,Services,02/07/2021,3886610-116464,"4,400.00",MR JAMIE HILL QC (FOUNTAIN CHAMBERS).
Neighbourhoods and Climate Change,Environmental Services,Supplies and Services,338027,Services,02/07/2021,3886680-0000891619,"3,060.00",SOCOTEC UK LTD.
Neighbourhoods and Climate Change,Technical Services CM0300,Supplies and Services,338044,Services,02/07/2021,3886411-28463873,"8,856.00",AECOM LTD.
"Regeneration, Economy and Growth",Business Durham CL0850,Supplies and Services,338027,Services,02/07/2021,3886525-GBCSI-309,500.00,GLENGYLE BUSINESS CONSULTANTS LTD.
"Regeneration, Economy and Growth",Business Durham CL0850,Supplies and Services,338066,Services,02/07/2021,3886598-INV-0457,660.00,MCDONOUGH MARKETING COMMUNICATIONS LTD T/A MMC.
Neighbourhoods and Climate Change,Environmental Services,Supplies and Services,338066,Services,02/07/2021,3886557-BURSARY-JUNE21,711.88,JAMES DILL-RUSSELL (GEOLOGIST).
Adult and Health Services,Head of Adults,Supplies and Services,338366,Services,02/07/2021,3886448-76692,649.94,CARE ABILITY HEALTHCARE LTD.
Adult and Health Services,Head of Adults,Supplies and Services,338366,Services,02/07/2021,3886448-76908,"1,099.00",CARE ABILITY HEALTHCARE LTD.
Adult and Health Services,Head of Adults,Supplies and Services,338366,Services,02/07/2021,3886448-76909,"1,174.00",CARE ABILITY HEALTHCARE LTD.
Adult and Health Services,Head of Adults,Supplies and Services,338366,Services,02/07/2021,3886448-76910,"1,441.12",CARE ABILITY HEALTHCARE LTD.
Resources BK0010,Legal & Democratic Services,Supplies and Services,338042,Services,02/07/2021,3886483-362171/INVSEB1X286,"1,000.00",DERE STREET BARRISTERS.
Resources BK0010,Legal & Democratic Services,Supplies and Services,338042,Services,02/07/2021,3886712-290008/INVEM48,500.00,TRINITY CHAMBERS.
Children and Young Peoples Services,Head of Education and Skills,Supplies and Services,338027,Services,02/07/2021,3886475-20,843.75,DAVID FIRTH T/A BARDON MILL EDUCATIONAL CONSULTANTS.
Neighbourhoods and Climate Change,Technical Services CM0300,Stock A926,926900,Stock in hand-Inventory system,02/07/2021,3886393-272546,"2,338.00",1ST COVERALL COMPANY LTD.
Neighbourhoods and Climate Change,Technical Services CM0300,Stock A926,926900,Stock in hand-Inventory system,02/07/2021,3886393-39512,"2,550.00",1ST COVERALL COMPANY LTD.
Neighbourhoods and Climate Change,Technical Services CM0300,Stock A926,926900,Stock in hand-Inventory system,02/07/2021,3886460-ZWI019917,946.80,COLAS LTD.
Neighbourhoods and Climate Change,Technical Services CM0300,Stock A926,926900,Stock in hand-Inventory system,02/07/2021,3886550-788129,"2,520.00",INSTARMAC GROUP PLC.
Neighbourhoods and Climate Change,Technical Services CM0300,Stock A926,926900,Stock in hand-Inventory system,02/07/2021,3886590-184736,"1,999.60",MALLATITE LTD T/A MALLATITE PLASTICS LTD.
Resources BK0010,Digital and Customer Services,Stock A926,926900,Stock in hand-Inventory system,02/07/2021,3886479-7402724107,517.17,DELL COMPUTER CORPORATION LTD.
Resources BK0010,Digital and Customer Services,Stock A926,926900,Stock in hand-Inventory system,02/07/2021,3886479-7402724108,517.17,DELL COMPUTER CORPORATION LTD.
Resources BK0010,Digital and Customer Services,Stock A926,926900,Stock in hand-Inventory system,02/07/2021,3886736-KZ56310,"5,288.14",XMA LTD.
Resources BK0010,Digital and Customer Services,Stock A926,926900,Stock in hand-Inventory system,02/07/2021,3886736-KZ56602,"7,932.21",XMA LTD.
Children and Young Peoples Services,Head of Childrens Social Care,Transport,240045,Car allowances E240,05/07/2021,3887030-10958,"18,875.10",SUPPORTIVE SRC LTD.
"Regeneration, Economy and Growth",Culture Sport and Tourism,Premises,145023,Cleaning and Domestic Supplies,05/07/2021,3886874-06/128287,548.06,GREENHAM TRADING LTD.
Neighbourhoods and Climate Change,Technical Services CM0300,Construction work A908,908105,Construction work,05/07/2021,3887032-90017257,630.00,SWARCO TRAFFIC LTD.
Adult and Health Services,Head of Adults,Transport,230005,Contract Hire,05/07/2021,3886892-519,"2,574.00",IAN CLYDESDALE T/A BURNOPFIELD TAXIS.
Children and Young Peoples Services,Head of Education and Skills,Transport,230007,Contract Hire,05/07/2021,3887074-16608,"1,458.00",WEARDALE MOTOR SERVICES LTD.
Children and Young Peoples Services,Head of Education and Skills,Transport,230035,Contract Hire,05/07/2021,3887076-7477-JUNE21,918.00,WEARDALE PRIVATE HIRE.
Children and Young Peoples Services,Head of Education and Skills,Transport,230007,Contract Hire,05/07/2021,3887074-16606,"2,559.60",WEARDALE MOTOR SERVICES LTD.
Children and Young Peoples Services,Head of Education and Skills,Transport,230007,Contract Hire,05/07/2021,3886956-2006,"1,296.00",REDACTED - PAYMENT TO INDIVIDUAL
Children and Young Peoples Services,Head of Education and Skills,Transport,230007,Contract Hire,05/07/2021,3886803-3382,802.50,CHAPMAN TRAVEL.
Children and Young Peoples Services,Head of Education and Skills,Transport,230007,Contract Hire,05/07/2021,3886803-07-JUNE21,"1,116.00",CHAPMAN TRAVEL.
Children and Young Peoples Services,Head of Education and Skills,Transport,230008,Contract Hire,05/07/2021,3886951-JUNE21-N328,"2,628.00",MOLLY`S TAXIS LTD.
Children and Young Peoples Services,Head of Education and Skills,Transport,230009,Contract Hire,05/07/2021,3886761-30621,"1,936.26",AVALON TAXIS.
Children and Young Peoples Services,Head of Education and Skills,Transport,230007,Contract Hire,05/07/2021,3886777-053A,810.00,BL CARS.
Children and Young Peoples Services,Head of Education and Skills,Transport,230007,Contract Hire,05/07/2021,3886777-078,854.00,BL CARS.
Children and Young Peoples Services,Head of Education and Skills,Transport,230007,Contract Hire,05/07/2021,3886777-5281-MAY,"1,350.00",BL CARS.
Children and Young Peoples Services,Head of Education and Skills,Transport,230007,Contract Hire,05/07/2021,3887036-06/2021/006,"1,377.60",TARNS TAXIS LTD.
Children and Young Peoples Services,Head of Education and Skills,Transport,230007,Contract Hire,05/07/2021,3886770-7A-APRIL20,668.25,BENNETTS TAXIS.
Children and Young Peoples Services,Head of Education and Skills,Transport,230007,Contract Hire,05/07/2021,3886770-8-MAY20,"1,113.75",BENNETTS TAXIS.
Children and Young Peoples Services,Head of Education and Skills,Transport,230007,Contract Hire,05/07/2021,3886770-9-JUNE21,"1,818.00",BENNETTS TAXIS.
Children and Young Peoples Services,Head of Education and Skills,Transport,230009,Contract Hire,05/07/2021,3887074-16607,"3,430.62",WEARDALE MOTOR SERVICES LTD.
Children and Young Peoples Services,Head of Education and Skills,Transport,230007,Contract Hire,05/07/2021,3887076-7476-JUNE21,826.38,WEARDALE PRIVATE HIRE.
Children and Young Peoples Services,Head of Education and Skills,Transport,230012,Contract Hire,05/07/2021,3886957-TNB018-B,500.40,MR THOMAS G GRIFFITHS T/A TNL TAXIS.
Children and Young Peoples Services,Head of Education and Skills,Transport,230007,Contract Hire,05/07/2021,3887074-16599,"3,240.00",WEARDALE MOTOR SERVICES LTD.
Children and Young Peoples Services,Head of Education and Skills,Transport,230003,Contract Hire,05/07/2021,3887074-16600,"3,708.00",WEARDALE MOTOR SERVICES LTD.
Children and Young Peoples Services,Head of Education and Skills,Transport,230007,Contract Hire,05/07/2021,3886780-103H,"2,808.00",BOBS TAXIS.
Children and Young Peoples Services,Head of Education and Skills,Transport,230007,Contract Hire,05/07/2021,3887055-WA10021,"1,461.66",TRAVEL 6.
Children and Young Peoples Services,Head of Education and Skills,Transport,230006,Contract Hire,05/07/2021,3886804-10-JUNE21,816.00,CHAPMAN TRAVEL.
Children and Young Peoples Services,Head of Education and Skills,Transport,230008,Contract Hire,05/07/2021,3886936-0065,"2,478.00",MARK WATSON T/A MARK`S TAXIS.
Children and Young Peoples Services,Head of Education and Skills,Transport,230007,Contract Hire,05/07/2021,3887040-4055/48,"3,348.00",TED WILFORD COACHES.
Children and Young Peoples Services,Head of Education and Skills,Transport,230007,Contract Hire,05/07/2021,3887040-4297/21,"3,348.00",TED WILFORD COACHES.
Children and Young Peoples Services,Head of Education and Skills,Transport,230007,Contract Hire,05/07/2021,3886823-INV002,"1,700.64",CONSETT EXECUTIVE CABS.
Children and Young Peoples Services,Head of Education and Skills,Transport,230013,Contract Hire,05/07/2021,3886774-INV-476,"2,215.32",BILL SCOTT TAXIS LTD.
Children and Young Peoples Services,Head of Education and Skills,Transport,230007,Contract Hire,05/07/2021,3887036-06/2021/004,"1,116.00",TARNS TAXIS LTD.
Children and Young Peoples Services,Head of Education and Skills,Transport,230004,Contract Hire,05/07/2021,3887076-7479,662.76,WEARDALE PRIVATE HIRE.
Children and Young Peoples Services,Head of Education and Skills,Transport,230003,Contract Hire,05/07/2021,3887074-16605,"4,230.00",WEARDALE MOTOR SERVICES LTD.
Children and Young Peoples Services,Head of Education and Skills,Transport,230003,Contract Hire,05/07/2021,3887040-5030/48,"3,438.00",TED WILFORD COACHES.
Children and Young Peoples Services,Head of Education and Skills,Transport,230008,Contract Hire,05/07/2021,3886811-A072-SP0621,"1,724.58",CJ`S EXECUTIVE TRAVEL LTD.
Children and Young Peoples Services,Head of Education and Skills,Transport,230034,Contract Hire,05/07/2021,3886892-513-JUNE21,"1,557.00",IAN CLYDESDALE T/A BURNOPFIELD TAXIS.
Children and Young Peoples Services,Head of Education and Skills,Transport,230008,Contract Hire,05/07/2021,3886921-0032,"1,176.00",LEWIS PATTISON T/A LEWIS TAXIS.
Children and Young Peoples Services,Head of Education and Skills,Transport,230008,Contract Hire,05/07/2021,3886951-JUNE-A190,"2,502.00",MOLLY`S TAXIS LTD.
Children and Young Peoples Services,Head of Education and Skills,Transport,230007,Contract Hire,05/07/2021,3886956-2007,"1,296.00",REDACTED - PAYMENT TO INDIVIDUAL
Children and Young Peoples Services,Head of Education and Skills,Transport,230007,Contract Hire,05/07/2021,3887006-SKS2122-16,920.00,SAMUEL KINGS SCHOOL.
Children and Young Peoples Services,Head of Education and Skills,Transport,230006,Contract Hire,05/07/2021,3887026-2109,"1,905.00",STEPHEN REED T/A STEVE`S TAXIS.
Children and Young Peoples Services,Head of Education and Skills,Transport,230008,Contract Hire,05/07/2021,3887036-06/2021/005,"2,074.00",TARNS TAXIS LTD.
Children and Young Peoples Services,Head of Education and Skills,Transport,230008,Contract Hire,05/07/2021,3886811-E031-KC0621,"4,792.50",CJ`S EXECUTIVE TRAVEL LTD.
Children and Young Peoples Services,Head of Education and Skills,Transport,230008,Contract Hire,05/07/2021,3887037-DCC/2021/27,"1,513.44",TAYLOR`S TAXIS.
Children and Young Peoples Services,Head of Education and Skills,Transport,230008,Contract Hire,05/07/2021,3887037-DCC/2021/29,"2,557.44",TAYLOR`S TAXIS.
Children and Young Peoples Services,Head of Education and Skills,Transport,230008,Contract Hire,05/07/2021,3887073-1250A,"1,323.10",WAYNE`S TAXIS.
Children and Young Peoples Services,Head of Education and Skills,Transport,230008,Contract Hire,05/07/2021,3887073-1255-30/4/21,"1,349.19",WAYNE`S TAXIS.
Children and Young Peoples Services,Head of Education and Skills,Transport,230008,Contract Hire,05/07/2021,3887075-7470,"4,567.96",WEARDALE PRIVATE HIRE.
Children and Young Peoples Services,Head of Education and Skills,Transport,230008,Contract Hire,05/07/2021,3886767-961,"1,545.12",BEELINE MINI BUSES.
Children and Young Peoples Services,Head of Education and Skills,Transport,230008,Contract Hire,05/07/2021,3886892-517,"2,376.00",IAN CLYDESDALE T/A BURNOPFIELD TAXIS.
Children and Young Peoples Services,Head of Education and Skills,Transport,230008,Contract Hire,05/07/2021,3886892-518,"1,998.00",IAN CLYDESDALE T/A BURNOPFIELD TAXIS.
Children and Young Peoples Services,Head of Education and Skills,Transport,230008,Contract Hire,05/07/2021,3886951-JUNE21-N018,"2,196.00",MOLLY`S TAXIS LTD.
Children and Young Peoples Services,Head of Education and Skills,Transport,230008,Contract Hire,05/07/2021,3886951-JUNE21-N019,"2,826.00",MOLLY`S TAXIS LTD.
Children and Young Peoples Services,Head of Education and Skills,Transport,230008,Contract Hire,05/07/2021,3886792-W112024,"1,564.00",C & R TAXIS.
Children and Young Peoples Services,Head of Education and Skills,Transport,230008,Contract Hire,05/07/2021,3886922-009,"1,050.00",LIMASEC LTD T/A LIMA TRANSPORT.
Children and Young Peoples Services,Head of Education and Skills,Transport,230008,Contract Hire,05/07/2021,3887037-DCC/2021/30,"2,257.77",TAYLOR`S TAXIS.
Children and Young Peoples Services,Head of Education and Skills,Transport,230008,Contract Hire,05/07/2021,3886767-963,"1,520.82",BEELINE MINI BUSES.
Children and Young Peoples Services,Head of Education and Skills,Transport,230008,Contract Hire,05/07/2021,3886776-079,"1,454.00",BL CARS.
Children and Young Peoples Services,Head of Education and Skills,Transport,230006,Contract Hire,05/07/2021,3886811-N112-GHH0621,"1,854.84",CJ`S EXECUTIVE TRAVEL LTD.
Children and Young Peoples Services,Head of Education and Skills,Transport,230008,Contract Hire,05/07/2021,3886951-JUNE21-M019,"2,502.00",MOLLY`S TAXIS LTD.
Children and Young Peoples Services,Head of Education and Skills,Transport,230008,Contract Hire,05/07/2021,3886792-S006021,"1,970.80",C & R TAXIS.
Children and Young Peoples Services,Head of Education and Skills,Transport,230008,Contract Hire,05/07/2021,3886955-W174/10,"2,159.00",MR DANIEL HUTCHINSON T/A ALPHACABS.
Children and Young Peoples Services,Head of Education and Skills,Transport,230008,Contract Hire,05/07/2021,3887037-DCC/2021/28,"1,800.00",TAYLOR`S TAXIS.
Children and Young Peoples Services,Head of Education and Skills,Transport,230008,Contract Hire,05/07/2021,3887037-DCC/2021/32,"1,764.00",TAYLOR`S TAXIS.
Children and Young Peoples Services,Head of Education and Skills,Transport,230008,Contract Hire,05/07/2021,3886767-962,"1,877.58",BEELINE MINI BUSES.
Children and Young Peoples Services,Head of Education and Skills,Transport,230008,Contract Hire,05/07/2021,3886822-1726,"1,792.80",CONNORS MINI BUSES.*
Children and Young Peoples Services,Head of Education and Skills,Transport,230008,Contract Hire,05/07/2021,3886822-1727,"2,087.46",CONNORS MINI BUSES.*
Children and Young Peoples Services,Head of Education and Skills,Transport,230008,Contract Hire,05/07/2021,3886822-1728,"1,848.96",CONNORS MINI BUSES.*
Children and Young Peoples Services,Head of Education and Skills,Transport,230008,Contract Hire,05/07/2021,3886822-1729,"2,345.58",CONNORS MINI BUSES.*
Children and Young Peoples Services,Head of Education and Skills,Transport,230008,Contract Hire,05/07/2021,3886951-JUNE21-N101,"2,329.20",MOLLY`S TAXIS LTD.
Children and Young Peoples Services,Head of Education and Skills,Transport,230008,Contract Hire,05/07/2021,3886951-JUNE21-N30,"3,473.28",MOLLY`S TAXIS LTD.
Children and Young Peoples Services,Head of Education and Skills,Transport,230008,Contract Hire,05/07/2021,3886750-24,"2,286.00",AMANDA SMITH T/A WEARDALE WHEELS.
Children and Young Peoples Services,Head of Education and Skills,Transport,230008,Contract Hire,05/07/2021,3886761-306021,"1,933.20",AVALON TAXIS.
Children and Young Peoples Services,Head of Education and Skills,Transport,230016,Contract Hire,05/07/2021,3886792-S02103,"1,278.00",C & R TAXIS.
Children and Young Peoples Services,Head of Education and Skills,Transport,230008,Contract Hire,05/07/2021,3886792-W030021,"2,016.00",C & R TAXIS.
Children and Young Peoples Services,Head of Education and Skills,Transport,230008,Contract Hire,05/07/2021,3886936-0068,"1,296.00",MARK WATSON T/A MARK`S TAXIS.
Children and Young Peoples Services,Head of Education and Skills,Transport,230008,Contract Hire,05/07/2021,3887074-16601,"2,834.70",WEARDALE MOTOR SERVICES LTD.
Children and Young Peoples Services,Head of Education and Skills,Transport,230008,Contract Hire,05/07/2021,3887074-16604,"3,708.00",WEARDALE MOTOR SERVICES LTD.
Children and Young Peoples Services,Head of Education and Skills,Transport,230008,Contract Hire,05/07/2021,3886792-W046021,"2,176.56",C & R TAXIS.
Children and Young Peoples Services,Head of Education and Skills,Transport,230008,Contract Hire,05/07/2021,3887037-DCC/2021/31,"2,082.60",TAYLOR`S TAXIS.
Children and Young Peoples Services,Head of Education and Skills,Transport,230008,Contract Hire,05/07/2021,3887076-7484,"2,937.60",WEARDALE PRIVATE HIRE.
Children and Young Peoples Services,Head of Education and Skills,Transport,230006,Contract Hire,05/07/2021,3886892-515,"2,610.00",IAN CLYDESDALE T/A BURNOPFIELD TAXIS.
Children and Young Peoples Services,Head of Education and Skills,Transport,230008,Contract Hire,05/07/2021,3886892-516,"3,780.00",IAN CLYDESDALE T/A BURNOPFIELD TAXIS.
Children and Young Peoples Services,Head of Education and Skills,Transport,230008,Contract Hire,05/07/2021,3886951-JUNE21-A007,"3,294.00",MOLLY`S TAXIS LTD.
Children and Young Peoples Services,Head of Education and Skills,Transport,230008,Contract Hire,05/07/2021,3886932-72,"1,145.74",MALCOLM CARR T/A CARLY CABS.
Children and Young Peoples Services,Head of Education and Skills,Transport,230010,Contract Hire,05/07/2021,3886869-6B,"1,793.88",GERARD MCLOUGHLIN T/A GMAC TAXIS.
Children and Young Peoples Services,Head of Education and Skills,Transport,230010,Contract Hire,05/07/2021,3887036-06/2021/003,"1,809.00",TARNS TAXIS LTD.
Children and Young Peoples Services,Head of Education and Skills,Transport,230010,Contract Hire,05/07/2021,3887055-WL20021,"1,215.00",TRAVEL 6.
Children and Young Peoples Services,Head of Education and Skills,Transport,230006,Contract Hire,05/07/2021,3886803-09A,536.25,CHAPMAN TRAVEL.
Children and Young Peoples Services,Head of Education and Skills,Transport,230006,Contract Hire,05/07/2021,3886803-10-MAY,911.25,CHAPMAN TRAVEL.
Children and Young Peoples Services,Head of Education and Skills,Transport,230006,Contract Hire,05/07/2021,3886803-21-F748,743.00,CHAPMAN TRAVEL.
Children and Young Peoples Services,Head of Education and Skills,Transport,230006,Contract Hire,05/07/2021,3886829-INV-0515-F862,558.00,DARREN IRVING T/A @CAB TAXIS.
Children and Young Peoples Services,Head of Education and Skills,Transport,230006,Contract Hire,05/07/2021,3886908-CORPTRAVBACJUNE21,664.00,JOHN W CROOK T/A CORPORATE TRAVEL.
Children and Young Peoples Services,Head of Education and Skills,Transport,230006,Contract Hire,05/07/2021,3886951-JUNE21-F885,"1,143.00",MOLLY`S TAXIS LTD.
Children and Young Peoples Services,Head of Education and Skills,Transport,230006,Contract Hire,05/07/2021,3886994-RDS069,624.00,RDS TAXI.
Children and Young Peoples Services,Head of Education and Skills,Transport,230006,Contract Hire,05/07/2021,3887055-TC10010,576.00,TRAVEL 6.
Children and Young Peoples Services,Head of Education and Skills,Transport,230004,Contract Hire,05/07/2021,3887076-7478,864.00,WEARDALE PRIVATE HIRE.
Children and Young Peoples Services,Head of Childrens Social Care,Transport,230005,Contract Hire,05/07/2021,3886814-CLUB2123G,665.00,CLUBMAN CABS.
Children and Young Peoples Services,Head of Childrens Social Care,Transport,230005,Contract Hire,05/07/2021,3886814-CLUB2124I,680.00,CLUBMAN CABS.
Children and Young Peoples Services,Head of Childrens Social Care,Transport,230005,Contract Hire,05/07/2021,3886814-CLUB2125J,665.00,CLUBMAN CABS.
Neighbourhoods and Climate Change,Partnerships & Community Engagement Div.,Cap Exp on Grants & Other Financial Assistance (REFCUS),918004,Contributions to other bodies 918004,05/07/2021,3886769-VOUCHER20NB-DCTY074,"4,000.00",BELMONT PARISH COUNCIL.
Neighbourhoods and Climate Change,Environmental Services,Supplies and Services,304221,Equipment and Materials,05/07/2021,3886968-915010550,577.00,NORTHUMBRIAN WATER LTD.
Neighbourhoods and Climate Change,Environmental Services,Supplies and Services,304221,Equipment and Materials,05/07/2021,3886880-SI-6802,641.35,HARELAW SAWMILL LTD.
Neighbourhoods and Climate Change,Technical Services CM0300,Supplies and Services,304221,Equipment and Materials,05/07/2021,3886746-31438014,"1,204.14",AGGREGATE INDUSTRIES UK LTD.
Neighbourhoods and Climate Change,Technical Services CM0300,Supplies and Services,304221,Equipment and Materials,05/07/2021,3886746-31627757,"1,207.80",AGGREGATE INDUSTRIES UK LTD.
Neighbourhoods and Climate Change,Technical Services CM0300,Supplies and Services,304221,Equipment and Materials,05/07/2021,3886746-31635116,"1,215.12",AGGREGATE INDUSTRIES UK LTD.
Neighbourhoods and Climate Change,Technical Services CM0300,Supplies and Services,304221,Equipment and Materials,05/07/2021,3886789-INV277434,806.00,BROXAP LTD.
Neighbourhoods and Climate Change,Technical Services CM0300,Supplies and Services,304221,Equipment and Materials,05/07/2021,3886806-1915,"1,405.00",CIS STREET FURNITURE LTD.
Neighbourhoods and Climate Change,Technical Services CM0300,Supplies and Services,304221,Equipment and Materials,05/07/2021,3886878-2105\023,540.00,HALL CONSTRUCTION SERVICES LTD.
Neighbourhoods and Climate Change,Technical Services CM0300,Supplies and Services,304221,Equipment and Materials,05/07/2021,3886888-14227,"4,100.00",HOPKINS STEEL LTD.
Neighbourhoods and Climate Change,Technical Services CM0300,Supplies and Services,304221,Equipment and Materials,05/07/2021,3886911-0107/00402797,542.40,JT DOVE LTD.
Neighbourhoods and Climate Change,Technical Services CM0300,Supplies and Services,304221,Equipment and Materials,05/07/2021,3886911-0120/00402800,787.60,JT DOVE LTD.
Neighbourhoods and Climate Change,Technical Services CM0300,Supplies and Services,304221,Equipment and Materials,05/07/2021,3886937-Z000935772,"1,566.00",MARSHALLS MONO LTD.
Neighbourhoods and Climate Change,Technical Services CM0300,Supplies and Services,304221,Equipment and Materials,05/07/2021,3886965-210970,615.00,NORTH EAST CONCRETE LTD.
Neighbourhoods and Climate Change,Technical Services CM0300,Supplies and Services,304221,Equipment and Materials,05/07/2021,3887011-1827987,680.40,SHAND HIGSON & CO LTD.
Neighbourhoods and Climate Change,Technical Services CM0300,Supplies and Services,304221,Equipment and Materials,05/07/2021,3887015-714560180645,951.76,SIG TRADING LTD.
Neighbourhoods and Climate Change,Technical Services CM0300,Supplies and Services,304221,Equipment and Materials,05/07/2021,3887015-714560180646,"2,168.20",SIG TRADING LTD.
Neighbourhoods and Climate Change,Technical Services CM0300,Supplies and Services,304221,Equipment and Materials,05/07/2021,3887015-714560180902,"17,338.25",SIG TRADING LTD.
Neighbourhoods and Climate Change,Technical Services CM0300,Supplies and Services,304221,Equipment and Materials,05/07/2021,3887057-222822,"1,524.22",TYNEDALE ROADSTONE LTD.
Neighbourhoods and Climate Change,Technical Services CM0300,Supplies and Services,304221,Equipment and Materials,05/07/2021,3887057-222826,"1,186.63",TYNEDALE ROADSTONE LTD.
Neighbourhoods and Climate Change,Technical Services CM0300,Supplies and Services,304221,Equipment and Materials,05/07/2021,3887057-222834,826.46,TYNEDALE ROADSTONE LTD.
Neighbourhoods and Climate Change,Technical Services CM0300,Supplies and Services,304221,Equipment and Materials,05/07/2021,3887057-222839,"1,533.28",TYNEDALE ROADSTONE LTD.
Neighbourhoods and Climate Change,Technical Services CM0300,Supplies and Services,304221,Equipment and Materials,05/07/2021,3887057-222991,"1,260.88",TYNEDALE ROADSTONE LTD.
Neighbourhoods and Climate Change,Technical Services CM0300,Supplies and Services,304221,Equipment and Materials,05/07/2021,3887057-223155,"1,389.58",TYNEDALE ROADSTONE LTD.
Neighbourhoods and Climate Change,Technical Services CM0300,Supplies and Services,304221,Equipment and Materials,05/07/2021,3887057-223157,"1,084.06",TYNEDALE ROADSTONE LTD.
Neighbourhoods and Climate Change,Technical Services CM0300,Supplies and Services,304221,Equipment and Materials,05/07/2021,3887057-223160,"1,276.72",TYNEDALE ROADSTONE LTD.
Neighbourhoods and Climate Change,Technical Services CM0300,Supplies and Services,304221,Equipment and Materials,05/07/2021,3887057-223163,"1,075.15",TYNEDALE ROADSTONE LTD.
Neighbourhoods and Climate Change,Technical Services CM0300,Supplies and Services,304221,Equipment and Materials,05/07/2021,3887057-223229,"1,875.89",TYNEDALE ROADSTONE LTD.
Neighbourhoods and Climate Change,Technical Services CM0300,Supplies and Services,304221,Equipment and Materials,05/07/2021,3887057-223231,"1,071.19",TYNEDALE ROADSTONE LTD.
Neighbourhoods and Climate Change,Technical Services CM0300,Supplies and Services,304221,Equipment and Materials,05/07/2021,3887057-223268,898.93,TYNEDALE ROADSTONE LTD.
Neighbourhoods and Climate Change,Technical Services CM0300,Supplies and Services,304221,Equipment and Materials,05/07/2021,3887057-223271,"1,004.98",TYNEDALE ROADSTONE LTD.
Neighbourhoods and Climate Change,Technical Services CM0300,Supplies and Services,304221,Equipment and Materials,05/07/2021,3887057-223274,"1,079.11",TYNEDALE ROADSTONE LTD.
Neighbourhoods and Climate Change,Technical Services CM0300,Supplies and Services,304221,Equipment and Materials,05/07/2021,3887057-223278,949.39,TYNEDALE ROADSTONE LTD.
Neighbourhoods and Climate Change,Technical Services CM0300,Supplies and Services,304221,Equipment and Materials,05/07/2021,3887057-223281,"1,083.07",TYNEDALE ROADSTONE LTD.
Neighbourhoods and Climate Change,Technical Services CM0300,Supplies and Services,304221,Equipment and Materials,05/07/2021,3887057-223403,982.09,TYNEDALE ROADSTONE LTD.
Neighbourhoods and Climate Change,Technical Services CM0300,Supplies and Services,304221,Equipment and Materials,05/07/2021,3887057-223411,"1,479.40",TYNEDALE ROADSTONE LTD.
Neighbourhoods and Climate Change,Technical Services CM0300,Supplies and Services,304221,Equipment and Materials,05/07/2021,3887057-223477,"1,717.58",TYNEDALE ROADSTONE LTD.
Neighbourhoods and Climate Change,Technical Services CM0300,Supplies and Services,304221,Equipment and Materials,05/07/2021,3887057-223540,"1,385.62",TYNEDALE ROADSTONE LTD.
Neighbourhoods and Climate Change,Technical Services CM0300,Supplies and Services,304221,Equipment and Materials,05/07/2021,3887057-223545,"1,014.79",TYNEDALE ROADSTONE LTD.
"Regeneration, Economy and Growth",Corporate Property and Land,Supplies and Services,304221,Equipment and Materials,05/07/2021,3886796-10514729,509.71,CARPET & FLOORING (TRADING) LTD.
"Regeneration, Economy and Growth",Corporate Property and Land,Supplies and Services,304221,Equipment and Materials,05/07/2021,3886911-0101/00396984,"6,330.15",JT DOVE LTD.
"Regeneration, Economy and Growth",Corporate Property and Land,Supplies and Services,304221,Equipment and Materials,05/07/2021,3886810-2852ABF873,545.36,CITY PLUMBING SUPPLIES HOLDINGS LTD.
"Regeneration, Economy and Growth",Corporate Property and Land,Supplies and Services,304221,Equipment and Materials,05/07/2021,3886796-10517889,"1,073.85",CARPET & FLOORING (TRADING) LTD.
"Regeneration, Economy and Growth",Corporate Property and Land,Supplies and Services,304221,Equipment and Materials,05/07/2021,3886980-DT144167,960.00,PARK ELECTRICAL DISTRIBUTORS LTD.
"Regeneration, Economy and Growth",Corporate Property and Land,Supplies and Services,304221,Equipment and Materials,05/07/2021,3886842-059-283679,628.90,EDMUNDSON ELECTRICAL LTD.
"Regeneration, Economy and Growth",Corporate Property and Land,Supplies and Services,304221,Equipment and Materials,05/07/2021,3886800-6517,"4,500.00",CENTURY FABRICATIONS LTD.
"Regeneration, Economy and Growth",Corporate Property and Land,Supplies and Services,304221,Equipment and Materials,05/07/2021,3886800-6518,"1,240.00",CENTURY FABRICATIONS LTD.
"Regeneration, Economy and Growth",Corporate Property and Land,Supplies and Services,304221,Equipment and Materials,05/07/2021,3886911-0120/00400513,"3,376.80",JT DOVE LTD.
"Regeneration, Economy and Growth",Corporate Property and Land,Supplies and Services,304221,Equipment and Materials,05/07/2021,3886911-0120/00401666,"3,376.80",JT DOVE LTD.
"Regeneration, Economy and Growth",Development and Housing,Supplies and Services,304999,Equipment and Materials,05/07/2021,3887019-RED-07-2021-005,"1,000.00",SPENNYMOOR YOUTH & COMMUNITY ASSOCIATION.
Neighbourhoods and Climate Change,Environmental Services,Supplies and Services,384199,Miscellaneous Expenses,05/07/2021,3886817-JOB001/20378,595.00,COLIN JOBLING T/A RAINBOW INTERNATIONAL.
Neighbourhoods and Climate Change,Environmental Services,Supplies and Services,384956,Miscellaneous Expenses,05/07/2021,3886852-Y00006783T,"2,370.25",ENVIRONMENT AGENCY.
"Regeneration, Economy and Growth",Culture Sport and Tourism,Supplies and Services,384199,Miscellaneous Expenses,05/07/2021,3887023-00379242,"3,105.91",STAGE ELECTRICS PARTNERSHIP LTD.
"Regeneration, Economy and Growth",Culture Sport and Tourism,Supplies and Services,384199,Miscellaneous Expenses,05/07/2021,3887023-00379667,"32,606.54",STAGE ELECTRICS PARTNERSHIP LTD.
"Regeneration, Economy and Growth",Culture Sport and Tourism,Supplies and Services,384199,Miscellaneous Expenses,05/07/2021,3887023-00379689,"1,085.94",STAGE ELECTRICS PARTNERSHIP LTD.
"Regeneration, Economy and Growth",Development and Housing,Supplies and Services,384700,Miscellaneous Expenses,05/07/2021,3887028-RED-07-2021-003,"1,000.00",STORMKING WINDOWS.
"Regeneration, Economy and Growth",Transport and Contracted Services,Supplies and Services,384199,Miscellaneous Expenses,05/07/2021,3886759-MS2101308,"2,235.00",ATG ACCESS LTD.
Resources BK0010,Business Support,Supplies and Services,384199,Miscellaneous Expenses,05/07/2021,3887063-UKSI13550,"1,267.30",VALTECH LTD.
Neighbourhoods and Climate Change,Partnerships & Community Engagement Div.,Supplies and Services,384086,Miscellaneous Expenses,05/07/2021,3886778-VOUCHERROBS01-21,999.00,BLACKHILL BAPTIST CHURCH.
Neighbourhoods and Climate Change,Partnerships & Community Engagement Div.,Supplies and Services,384086,Miscellaneous Expenses,05/07/2021,3887043-VOUCHER20NB-EDUR117,"1,791.50",THE HESLEDENS RESIDENTS ASSOCIATION.
Neighbourhoods and Climate Change,Partnerships & Community Engagement Div.,Supplies and Services,384086,Miscellaneous Expenses,05/07/2021,3887064-VOUCHERMARC02-21,500.00,VIEW LANE BOWLS CLUB.
Neighbourhoods and Climate Change,Partnerships & Community Engagement Div.,Supplies and Services,384086,Miscellaneous Expenses,05/07/2021,3887071-VOUCHERBAIA02-20,500.00,WALDRIDGE VILLAGE HALL CRAFT CLUB.
Neighbourhoods and Climate Change,Partnerships & Community Engagement Div.,Supplies and Services,384086,Miscellaneous Expenses,05/07/2021,3887078-VOUCHERYORR01-21,505.32,WEST AUCKLAND IN BLOOM.
Children and Young Peoples Services,Head of Childrens Social Care,Third Party Payments,440038,Other third party payments E440,05/07/2021,3886748-5771,"1,223.55",ALBERT KENNEDY TRUST T/A AKT.
Children and Young Peoples Services,Head of Childrens Social Care,Third Party Payments,440038,Other third party payments E440,05/07/2021,3886887-686063,982.16,HOME GROUP LTD.
Children and Young Peoples Services,Head of Childrens Social Care,Third Party Payments,440038,Other third party payments E440,05/07/2021,3886887-686065,982.16,HOME GROUP LTD.
Children and Young Peoples Services,Head of Childrens Social Care,Third Party Payments,440038,Other third party payments E440,05/07/2021,3886887-6861408,"1,190.96",HOME GROUP LTD.
Children and Young Peoples Services,Head of Childrens Social Care,Third Party Payments,440038,Other third party payments E440,05/07/2021,3886887-686172105,"1,129.72",HOME GROUP LTD.
Children and Young Peoples Services,Head of Childrens Social Care,Third Party Payments,440038,Other third party payments E440,05/07/2021,3886887-686172106,"1,129.72",HOME GROUP LTD.
Children and Young Peoples Services,Head of Childrens Social Care,Third Party Payments,440038,Other third party payments E440,05/07/2021,3886907-153,"4,115.60",JIGSAW RECOVERY PROJECT CIC.
Children and Young Peoples Services,Head of Childrens Social Care,Third Party Payments,440038,Other third party payments E440,05/07/2021,3886970-199133,"2,797.61",NOVA PAYROLL MANAGEMENT SERVICES LTD T/A PIN POINT RECRUITMENT.
Children and Young Peoples Services,Head of Childrens Social Care,Third Party Payments,440039,Other third party payments E440,05/07/2021,3886907-151,"13,885.40",JIGSAW RECOVERY PROJECT CIC.
Resources BK0010,Finance & Transactional Services,Supplies and Services,340001,Postages E340,05/07/2021,3887001-9063066247,"7,682.18",ROYAL MAIL GROUP PLC.
"Regeneration, Economy and Growth",Culture Sport and Tourism,Supplies and Services,332029,Printing Stationery and Gen Off Exps,05/07/2021,3886820-19289,690.00,COMMUNITY NEWSPAPER SUPPORT CIC.
Resources BK0010,Digital and Customer Services,Supplies and Services,332029,Printing Stationery and Gen Off Exps,05/07/2021,3887017-25784,"1,194.00",SIMPLY STRIPES (THE SIGNMAKERS) LTD.
"Regeneration, Economy and Growth",Culture Sport and Tourism,Supplies and Services,324001,Provisions E324,05/07/2021,3886952-906074700,665.33,MOLSON COORS BREWING COMPANY (UK) LTD.
Neighbourhoods and Climate Change,Technical Services CM0300,Third Party Payments,430100,Rendered by Private Contractors,05/07/2021,3886786-48776,"4,594.78",BRIDGEWAY CONSULTING LTD.
Neighbourhoods and Climate Change,Technical Services CM0300,Third Party Payments,430100,Rendered by Private Contractors,05/07/2021,3886913-328093,"2,288.00",KAEFER LTD.
Neighbourhoods and Climate Change,Technical Services CM0300,Third Party Payments,430100,Rendered by Private Contractors,05/07/2021,3886982-318327,"7,195.00",PEART FENCING LTD.
Neighbourhoods and Climate Change,Technical Services CM0300,Third Party Payments,430100,Rendered by Private Contractors,05/07/2021,3887025-17295,"1,274.00",STEADFAST SECURITY SOLUTIONS LTD.
Neighbourhoods and Climate Change,Technical Services CM0300,Third Party Payments,430100,Rendered by Private Contractors,05/07/2021,3887031-32912,550.00,SURVEY OPERATIONS LTD.
"Regeneration, Economy and Growth",Corporate Property and Land,Third Party Payments,430100,Rendered by Private Contractors,05/07/2021,3887008-3820,"189,146.68",SCH SITE SERVICES LTD.
"Regeneration, Economy and Growth",Corporate Property and Land,Third Party Payments,430100,Rendered by Private Contractors,05/07/2021,3887021-7601,"29,621.00",ST ASTIER LTD.
"Regeneration, Economy and Growth",Corporate Property and Land,Third Party Payments,430100,Rendered by Private Contractors,05/07/2021,3886798-8212,938.44,CATHEDRAL LOCK & SAFE SERVICES LTD.
"Regeneration, Economy and Growth",Corporate Property and Land,Third Party Payments,430100,Rendered by Private Contractors,05/07/2021,3887021-7596,"19,300.00",ST ASTIER LTD.
"Regeneration, Economy and Growth",Corporate Property and Land,Third Party Payments,430100,Rendered by Private Contractors,05/07/2021,3886950-30559/92299712,"4,398.00",MITIE PROPERTY SERVICES (UK) LTD.
"Regeneration, Economy and Growth",Corporate Property and Land,Third Party Payments,430100,Rendered by Private Contractors,05/07/2021,3886975-10911-23,"1,106.88",OPUS BUILDING SERVICES LTD.
"Regeneration, Economy and Growth",Corporate Property and Land,Third Party Payments,430100,Rendered by Private Contractors,05/07/2021,3886975-10911-27,528.00,OPUS BUILDING SERVICES LTD.
"Regeneration, Economy and Growth",Corporate Property and Land,Third Party Payments,430100,Rendered by Private Contractors,05/07/2021,3886800-6519,"2,165.00",CENTURY FABRICATIONS LTD.
"Regeneration, Economy and Growth",Corporate Property and Land,Third Party Payments,430100,Rendered by Private Contractors,05/07/2021,3886895-11066,639.00,INGLEFORD SCAFFOLDING LTD.
Neighbourhoods and Climate Change,Environmental Services,Third Party Payments,430100,Rendered by Private Contractors,05/07/2021,3887068-INV-43167,600.00,VISTECH SERVICES.
Children and Young Peoples Services,Head of Childrens Social Care,Third Party Payments,425021,Rendered by Voluntary Organisations,05/07/2021,3886757-INV-1488,"17,000.00",ARTEMIS SUPPORT LTD.
Children and Young Peoples Services,Head of Childrens Social Care,Third Party Payments,425021,Rendered by Voluntary Organisations,05/07/2021,3886790-49938,"25,941.42",BRYN MELYN CARE LTD.
Children and Young Peoples Services,Head of Childrens Social Care,Third Party Payments,425021,Rendered by Voluntary Organisations,05/07/2021,3886790-49939,"9,030.00",BRYN MELYN CARE LTD.
Children and Young Peoples Services,Head of Childrens Social Care,Third Party Payments,425021,Rendered by Voluntary Organisations,05/07/2021,3886978-INV-0377,"2,178.50",PADDOCK HOUSE LTD.
Neighbourhoods and Climate Change,Environmental Services,Transport,215005,Running Costs of Vehicles,05/07/2021,3886972-773889,"17,499.44",OIL NRG LTD.
"Regeneration, Economy and Growth",Corporate Property and Land,Supplies and Services,338078,Services,05/07/2021,3887004-14082,"1,150.00",SAFEGUARD SECURITY (NE) LTD.
Resources BK0010,Finance & Transactional Services,Supplies and Services,338066,Services,05/07/2021,3886779-SIN024921,"66,903.98",BLOOM PROCUREMENT SERVICES LTD (FORMERLY NEPRO LTD).
Children and Young Peoples Services,Head of Childrens Social Care,Supplies and Services,338045,Services,05/07/2021,3886945-BA075655,824.40,MEIKLES SOLICITORS LLP - CLIENT ACCOUNT.
Neighbourhoods and Climate Change,Technical Services CM0300,Stock A926,926900,Stock in hand-Inventory system,05/07/2021,3886741-272656,"2,338.00",1ST COVERALL COMPANY LTD.
Neighbourhoods and Climate Change,Technical Services CM0300,Stock A926,926900,Stock in hand-Inventory system,05/07/2021,3887051-104966,"3,375.00",TOTAL RENTAL SOLUTIONS.
Neighbourhoods and Climate Change,Technical Services CM0300,Stock A926,926900,Stock in hand-Inventory system,05/07/2021,3887051-104967,"1,344.00",TOTAL RENTAL SOLUTIONS.
Neighbourhoods and Climate Change,Technical Services CM0300,Stock A926,926900,Stock in hand-Inventory system,05/07/2021,3887051-104968,"1,125.00",TOTAL RENTAL SOLUTIONS.
Adult and Health Services,Commissioning inc Supporting People,Supplies and Services,372009,Subscriptions E372,05/07/2021,3887018-SINV16193,598.50,SKILLS FOR CARE SOLUTIONS LTD.
"Regeneration, Economy and Growth",Business Durham CL0850,Supplies and Services,336005,Advertising E336,06/07/2021,3887898-PYRINV-4093,551.00,PYRITE VR LTD T/A MAXBOX VR.
Children and Young Peoples Services,Head of Childrens Social Care,Transport,240045,Car allowances E240,06/07/2021,3887935-10959,"39,539.12",SUPPORTIVE SRC LTD.
Resources BK0010,Finance & Transactional Services,Supplies and Services,342051,Computers and Communications,06/07/2021,3887672-101824,"65,000.00",BEYOND SYSTEMS LTD.
Children and Young Peoples Services,Head of Education and Skills,Construction work A908,908105,Construction work,06/07/2021,3887913-6316,"17,095.68",SAFE STRIP UK LTD.
Adult and Health Services,Head of Adults,Transport,230005,Contract Hire,06/07/2021,3887952-3-CLS045-JEN21,"1,067.04",TONYS TAXIS (A BIRCH).
Adult and Health Services,Head of Adults,Transport,230005,Contract Hire,06/07/2021,3887807-01062021,"1,033.60",JOHN HUBBLE T/A HUBB`S TAXIS.
Adult and Health Services,Head of Adults,Transport,230005,Contract Hire,06/07/2021,3887951-0002245,"3,344.00",TONY RIDLEY T/A COLORS TAXIS LTD.
Adult and Health Services,Head of Adults,Transport,230005,Contract Hire,06/07/2021,3887952-13-DM199-JUNE21,572.00,TONYS TAXIS (A BIRCH).
Adult and Health Services,Head of Adults,Transport,230005,Contract Hire,06/07/2021,3887952-15-SED121-JUNE21,"1,620.00",TONYS TAXIS (A BIRCH).
Children and Young Peoples Services,Head of Education and Skills,Transport,230007,Contract Hire,06/07/2021,3887660-850,"1,746.00",AT TAXIS LTD.
Children and Young Peoples Services,Head of Education and Skills,Transport,230007,Contract Hire,06/07/2021,3887702-1207,"1,013.58",REDACTED - PAYMENT TO INDIVIDUAL
Children and Young Peoples Services,Head of Education and Skills,Transport,230008,Contract Hire,06/07/2021,3887660-849,"1,746.00",AT TAXIS LTD.
Children and Young Peoples Services,Head of Education and Skills,Transport,230012,Contract Hire,06/07/2021,3887952-11-E057-JUNE21,"1,434.84",TONYS TAXIS (A BIRCH).
Children and Young Peoples Services,Head of Education and Skills,Transport,230012,Contract Hire,06/07/2021,3887952-5-E041-JUNE21,"1,780.89",TONYS TAXIS (A BIRCH).
Children and Young Peoples Services,Head of Education and Skills,Transport,230034,Contract Hire,06/07/2021,3887660-848,"1,207.00",AT TAXIS LTD.
Children and Young Peoples Services,Head of Education and Skills,Transport,230034,Contract Hire,06/07/2021,3887952-6-4406-JUNE21,"1,188.00",TONYS TAXIS (A BIRCH).
Children and Young Peoples Services,Head of Education and Skills,Transport,230008,Contract Hire,06/07/2021,3887729-21,"2,668.50",DEXTERS PRIVATE HIRE.
Children and Young Peoples Services,Head of Education and Skills,Transport,230008,Contract Hire,06/07/2021,3887951-0002247,"2,196.00",TONY RIDLEY T/A COLORS TAXIS LTD.
Children and Young Peoples Services,Head of Education and Skills,Transport,230034,Contract Hire,06/07/2021,3887801-102,"2,040.00",JAYS TAXIS/JOHN GARLAND (TAXIS).
Children and Young Peoples Services,Head of Education and Skills,Transport,230007,Contract Hire,06/07/2021,3887800-DCC003,"1,649.00",JAMES EVANS INDEPENDENT TAXIS.
Children and Young Peoples Services,Head of Education and Skills,Transport,230007,Contract Hire,06/07/2021,3887765-22849-4034,"2,486.16",GARNETTS LTD (COACHES).
Children and Young Peoples Services,Head of Education and Skills,Transport,230007,Contract Hire,06/07/2021,3887765-22849-4035,"2,300.04",GARNETTS LTD (COACHES).
Children and Young Peoples Services,Head of Education and Skills,Transport,230007,Contract Hire,06/07/2021,3887765-22849-4036,"2,486.16",GARNETTS LTD (COACHES).
Children and Young Peoples Services,Head of Education and Skills,Transport,230007,Contract Hire,06/07/2021,3887765-22849-4037,"4,492.44",GARNETTS LTD (COACHES).
Children and Young Peoples Services,Head of Education and Skills,Transport,230007,Contract Hire,06/07/2021,3887765-22849-4038,"2,300.04",GARNETTS LTD (COACHES).
Children and Young Peoples Services,Head of Education and Skills,Transport,230003,Contract Hire,06/07/2021,3887765-22851-3302,"3,330.00",GARNETTS LTD (COACHES).
Children and Young Peoples Services,Head of Education and Skills,Transport,230007,Contract Hire,06/07/2021,3887765-22854,"2,790.00",GARNETTS LTD (COACHES).
Children and Young Peoples Services,Head of Education and Skills,Transport,230008,Contract Hire,06/07/2021,3887952-10-E058-JUNE21,"3,009.96",TONYS TAXIS (A BIRCH).
Children and Young Peoples Services,Head of Education and Skills,Transport,230007,Contract Hire,06/07/2021,3887765-22850-3029,"2,682.00",GARNETTS LTD (COACHES).
Children and Young Peoples Services,Head of Education and Skills,Transport,230007,Contract Hire,06/07/2021,3887765-22850-3199,"2,556.00",GARNETTS LTD (COACHES).
Children and Young Peoples Services,Head of Education and Skills,Transport,230003,Contract Hire,06/07/2021,3887765-22850-3020,"2,700.00",GARNETTS LTD (COACHES).
Children and Young Peoples Services,Head of Education and Skills,Transport,230003,Contract Hire,06/07/2021,3887765-22850-3024,"2,250.00",GARNETTS LTD (COACHES).
Children and Young Peoples Services,Head of Education and Skills,Transport,230003,Contract Hire,06/07/2021,3887765-22850-3027,"2,394.00",GARNETTS LTD (COACHES).
Children and Young Peoples Services,Head of Education and Skills,Transport,230003,Contract Hire,06/07/2021,3887765-22850-3028,"2,610.00",GARNETTS LTD (COACHES).
Children and Young Peoples Services,Head of Education and Skills,Transport,230007,Contract Hire,06/07/2021,3887660-851,"1,846.20",AT TAXIS LTD.
Children and Young Peoples Services,Head of Education and Skills,Transport,230007,Contract Hire,06/07/2021,3887765-22848-3007,"2,332.62",GARNETTS LTD (COACHES).
Children and Young Peoples Services,Head of Education and Skills,Transport,230007,Contract Hire,06/07/2021,3887765-22848-3435,"3,240.00",GARNETTS LTD (COACHES).
Children and Young Peoples Services,Head of Education and Skills,Transport,230007,Contract Hire,06/07/2021,3887765-22853,"5,922.00",GARNETTS LTD (COACHES).
Children and Young Peoples Services,Head of Education and Skills,Transport,230007,Contract Hire,06/07/2021,3887765-22855-4227,"3,330.00",GARNETTS LTD (COACHES).
Children and Young Peoples Services,Head of Education and Skills,Transport,230007,Contract Hire,06/07/2021,3887765-22855-4404,"13,680.00",GARNETTS LTD (COACHES).
Children and Young Peoples Services,Head of Education and Skills,Transport,230007,Contract Hire,06/07/2021,3887765-22846,"4,590.00",GARNETTS LTD (COACHES).
Children and Young Peoples Services,Head of Education and Skills,Transport,230003,Contract Hire,06/07/2021,3887765-22851-3301,"3,330.00",GARNETTS LTD (COACHES).
Children and Young Peoples Services,Head of Education and Skills,Transport,230003,Contract Hire,06/07/2021,3887765-22851-3303,"3,330.00",GARNETTS LTD (COACHES).
Children and Young Peoples Services,Head of Education and Skills,Transport,230007,Contract Hire,06/07/2021,3887765-22847,"4,518.00",GARNETTS LTD (COACHES).
Children and Young Peoples Services,Head of Education and Skills,Transport,230003,Contract Hire,06/07/2021,3887765-22852-3004,"3,060.00",GARNETTS LTD (COACHES).
Children and Young Peoples Services,Head of Education and Skills,Transport,230003,Contract Hire,06/07/2021,3887765-22852-3005,"5,580.00",GARNETTS LTD (COACHES).
Children and Young Peoples Services,Head of Education and Skills,Transport,230003,Contract Hire,06/07/2021,3887765-22852-3008,"3,150.00",GARNETTS LTD (COACHES).
Children and Young Peoples Services,Head of Education and Skills,Transport,230003,Contract Hire,06/07/2021,3887765-22852-3203,"2,970.00",GARNETTS LTD (COACHES).
Children and Young Peoples Services,Head of Education and Skills,Transport,230003,Contract Hire,06/07/2021,3887765-22852-3223,"5,940.00",GARNETTS LTD (COACHES).
Children and Young Peoples Services,Head of Education and Skills,Transport,230003,Contract Hire,06/07/2021,3887765-22852-3262,"3,474.00",GARNETTS LTD (COACHES).
Children and Young Peoples Services,Head of Education and Skills,Transport,230003,Contract Hire,06/07/2021,3887765-22852-3333,"3,132.00",GARNETTS LTD (COACHES).
Children and Young Peoples Services,Head of Education and Skills,Transport,230003,Contract Hire,06/07/2021,3887768-5703,"3,358.80",GEM TRAVEL.
Children and Young Peoples Services,Head of Education and Skills,Transport,230003,Contract Hire,06/07/2021,3887768-5704,"3,223.80",GEM TRAVEL.
Children and Young Peoples Services,Head of Education and Skills,Transport,230006,Contract Hire,06/07/2021,3887723-86,"1,206.00",DAVID WILKINSON (TAXIS).
Children and Young Peoples Services,Head of Education and Skills,Transport,230008,Contract Hire,06/07/2021,3887801-103,"1,476.00",JAYS TAXIS/JOHN GARLAND (TAXIS).
Children and Young Peoples Services,Head of Education and Skills,Transport,230008,Contract Hire,06/07/2021,3887801-105,"2,916.00",JAYS TAXIS/JOHN GARLAND (TAXIS).
Children and Young Peoples Services,Head of Education and Skills,Transport,230008,Contract Hire,06/07/2021,3887801-107,"2,916.00",JAYS TAXIS/JOHN GARLAND (TAXIS).
Children and Young Peoples Services,Head of Education and Skills,Transport,230008,Contract Hire,06/07/2021,3887699-N115-CB0621,"1,890.00",CJ`S EXECUTIVE TRAVEL LTD.
Children and Young Peoples Services,Head of Education and Skills,Transport,230008,Contract Hire,06/07/2021,3887848-JUNE21-M054,"1,394.00",MR DOMINICK JONES T/A DJ PRIVATE HIRE.
Children and Young Peoples Services,Head of Education and Skills,Transport,230008,Contract Hire,06/07/2021,3887721-3643,"2,402.82",DAVES MINIBUSES.
Children and Young Peoples Services,Head of Education and Skills,Transport,230008,Contract Hire,06/07/2021,3887721-3644,"1,800.00",DAVES MINIBUSES.
Children and Young Peoples Services,Head of Education and Skills,Transport,230008,Contract Hire,06/07/2021,3887851-3171-W161,"4,255.02",MR S BOWERS T/A DH7 TAXIS.
Children and Young Peoples Services,Head of Education and Skills,Transport,230008,Contract Hire,06/07/2021,3887722-5,"2,496.00",DAVID MCKINNELL T/A D&G TRAVEL.
Children and Young Peoples Services,Head of Education and Skills,Transport,230008,Contract Hire,06/07/2021,3887765-22862,"3,317.38",GARNETTS LTD (COACHES).
Children and Young Peoples Services,Head of Education and Skills,Transport,230008,Contract Hire,06/07/2021,3887801-109,"3,096.00",JAYS TAXIS/JOHN GARLAND (TAXIS).
Children and Young Peoples Services,Head of Education and Skills,Transport,230008,Contract Hire,06/07/2021,3887721-3645,"1,764.00",DAVES MINIBUSES.
Children and Young Peoples Services,Head of Education and Skills,Transport,230008,Contract Hire,06/07/2021,3887801-110,"2,016.00",JAYS TAXIS/JOHN GARLAND (TAXIS).
Children and Young Peoples Services,Head of Education and Skills,Transport,230008,Contract Hire,06/07/2021,3887789-IR2106001,"2,878.00",I & R EXECUTIVE TRAVEL.
Children and Young Peoples Services,Head of Education and Skills,Transport,230016,Contract Hire,06/07/2021,3887801-108,"3,136.00",JAYS TAXIS/JOHN GARLAND (TAXIS).
Children and Young Peoples Services,Head of Education and Skills,Transport,230006,Contract Hire,06/07/2021,3887848-JUNE21-E102,846.00,MR DOMINICK JONES T/A DJ PRIVATE HIRE.
Children and Young Peoples Services,Head of Education and Skills,Transport,230008,Contract Hire,06/07/2021,3887848-JUNE21-E046,936.00,MR DOMINICK JONES T/A DJ PRIVATE HIRE.
Children and Young Peoples Services,Head of Education and Skills,Transport,230008,Contract Hire,06/07/2021,3887952-2-N055-JUNE21,"2,293.02",TONYS TAXIS (A BIRCH).
Children and Young Peoples Services,Head of Education and Skills,Transport,230008,Contract Hire,06/07/2021,3887721-3641,"2,200.68",DAVES MINIBUSES.
Children and Young Peoples Services,Head of Education and Skills,Transport,230008,Contract Hire,06/07/2021,3887721-3642,"1,677.24",DAVES MINIBUSES.
Children and Young Peoples Services,Head of Education and Skills,Transport,230008,Contract Hire,06/07/2021,3887721-3646,"1,897.20",DAVES MINIBUSES.
Children and Young Peoples Services,Head of Education and Skills,Transport,230016,Contract Hire,06/07/2021,3887789-IR2106003,"1,850.04",I & R EXECUTIVE TRAVEL.
Children and Young Peoples Services,Head of Education and Skills,Transport,230016,Contract Hire,06/07/2021,3887801-106,"1,856.00",JAYS TAXIS/JOHN GARLAND (TAXIS).
Children and Young Peoples Services,Head of Education and Skills,Transport,230008,Contract Hire,06/07/2021,3887851-3175,"2,286.00",MR S BOWERS T/A DH7 TAXIS.
Children and Young Peoples Services,Head of Education and Skills,Transport,230006,Contract Hire,06/07/2021,3887951-0002248,"1,566.00",TONY RIDLEY T/A COLORS TAXIS LTD.
Children and Young Peoples Services,Head of Education and Skills,Transport,230008,Contract Hire,06/07/2021,3887765-22856-S011,"2,907.00",GARNETTS LTD (COACHES).
Children and Young Peoples Services,Head of Education and Skills,Transport,230008,Contract Hire,06/07/2021,3887765-22856-W099,"3,366.00",GARNETTS LTD (COACHES).
Children and Young Peoples Services,Head of Education and Skills,Transport,230008,Contract Hire,06/07/2021,3887951-0002246,"4,046.40",TONY RIDLEY T/A COLORS TAXIS LTD.
Children and Young Peoples Services,Head of Education and Skills,Transport,230008,Contract Hire,06/07/2021,3887951-0002249,"1,746.00",TONY RIDLEY T/A COLORS TAXIS LTD.
Children and Young Peoples Services,Head of Education and Skills,Transport,230008,Contract Hire,06/07/2021,3887660-845,"2,310.84",AT TAXIS LTD.
Children and Young Peoples Services,Head of Education and Skills,Transport,230008,Contract Hire,06/07/2021,3887660-846,756.00,AT TAXIS LTD.
Children and Young Peoples Services,Head of Education and Skills,Transport,230008,Contract Hire,06/07/2021,3887660-847,"2,646.00",AT TAXIS LTD.
Children and Young Peoples Services,Head of Education and Skills,Transport,230008,Contract Hire,06/07/2021,3887851-3174,"1,628.64",MR S BOWERS T/A DH7 TAXIS.
Children and Young Peoples Services,Head of Education and Skills,Transport,230008,Contract Hire,06/07/2021,3887908-0010-JUNE,"1,650.00",RONS TAXI (CHESTER LE ST).
Children and Young Peoples Services,Head of Education and Skills,Transport,230008,Contract Hire,06/07/2021,3887908-0021,"2,295.00",RONS TAXI (CHESTER LE ST).
Children and Young Peoples Services,Head of Education and Skills,Transport,230008,Contract Hire,06/07/2021,3887908-008-APRIL-A,675.00,RONS TAXI (CHESTER LE ST).
Children and Young Peoples Services,Head of Education and Skills,Transport,230008,Contract Hire,06/07/2021,3887908-009-APRIL,"1,125.00",RONS TAXI (CHESTER LE ST).
Children and Young Peoples Services,Head of Education and Skills,Transport,230008,Contract Hire,06/07/2021,3887801-104,"2,196.00",JAYS TAXIS/JOHN GARLAND (TAXIS).
Children and Young Peoples Services,Head of Education and Skills,Transport,230016,Contract Hire,06/07/2021,3887952-9-A105-JUNE21,"2,586.38",TONYS TAXIS (A BIRCH).
Children and Young Peoples Services,Head of Education and Skills,Transport,230006,Contract Hire,06/07/2021,3887719-DPHCJUNE2101,"1,116.00",DALELINK PRIVATE HIRE.
Adult and Health Services,Public Health CC0450,Third Party Payments,460803,Contract Payments,06/07/2021,3887781-DCCDA016,"40,400.09",HARBOUR SUPPORT SERVICES.
Adult and Health Services,Public Health CC0450,Third Party Payments,460803,Contract Payments,06/07/2021,3887781-DCCVC016,"4,321.41",HARBOUR SUPPORT SERVICES.
Neighbourhoods and Climate Change,Environmental Services,Premises,120021,Energy Costs,06/07/2021,3887686-34319622,"1,157.25",CALOR GAS LTD.
Neighbourhoods and Climate Change,Environmental Services,Supplies and Services,304221,Equipment and Materials,06/07/2021,3887864-35056,835.89,NIGEL BUCHANAN T/A PREMIER PARTS UK LTD.
Neighbourhoods and Climate Change,Environmental Services,Supplies and Services,304221,Equipment and Materials,06/07/2021,3887906-RSIN0379734,"1,030.00",RIGBY TAYLOR LTD.
Neighbourhoods and Climate Change,Environmental Services,Supplies and Services,304221,Equipment and Materials,06/07/2021,3887755-6892707,"1,712.50",ESE WORLD LTD.
Neighbourhoods and Climate Change,Environmental Services,Supplies and Services,304221,Equipment and Materials,06/07/2021,3887755-6892812,"1,712.50",ESE WORLD LTD.
"Regeneration, Economy and Growth",Corporate Property and Land,Supplies and Services,304259,Equipment and Materials,06/07/2021,3887870-618124,"1,422.00",NORTHERN TOOLS & ACCESSORIES.
Neighbourhoods and Climate Change,Technical Services CM0300,Supplies and Services,304221,Equipment and Materials,06/07/2021,3887643-31642949,"2,411.94",AGGREGATE INDUSTRIES UK LTD.
Neighbourhoods and Climate Change,Technical Services CM0300,Supplies and Services,304221,Equipment and Materials,06/07/2021,3887676-BMPR/422/BJW,720.00,BISHOP MIDDLEHAM PLANT & RECYCLING LTD.
Neighbourhoods and Climate Change,Technical Services CM0300,Supplies and Services,304358,Equipment and Materials,06/07/2021,3887693-1820,"4,074.00",CG SIMPSON & SON.
Neighbourhoods and Climate Change,Technical Services CM0300,Supplies and Services,304358,Equipment and Materials,06/07/2021,3887797-5306183,925.00,JA GILSON (AGRICULTURAL CONTRACTORS) LTD.
Neighbourhoods and Climate Change,Technical Services CM0300,Supplies and Services,304358,Equipment and Materials,06/07/2021,3887797-5306192,737.50,JA GILSON (AGRICULTURAL CONTRACTORS) LTD.
Neighbourhoods and Climate Change,Technical Services CM0300,Supplies and Services,304221,Equipment and Materials,06/07/2021,3887799-00205141,"3,720.00",JAMES A JOBLING & CO LTD T/A JOBLING PURSER LTD.
Neighbourhoods and Climate Change,Technical Services CM0300,Supplies and Services,304221,Equipment and Materials,06/07/2021,3887799-00205974,"3,720.00",JAMES A JOBLING & CO LTD T/A JOBLING PURSER LTD.
Neighbourhoods and Climate Change,Technical Services CM0300,Supplies and Services,304358,Equipment and Materials,06/07/2021,3887833-MS2924,588.60,M SPENCE SURFACING LTD.
Neighbourhoods and Climate Change,Technical Services CM0300,Supplies and Services,304358,Equipment and Materials,06/07/2021,3887912-2711,819.00,S & R LANDSCAPES.
Neighbourhoods and Climate Change,Technical Services CM0300,Supplies and Services,304358,Equipment and Materials,06/07/2021,3887912-2712,651.00,S & R LANDSCAPES.
Neighbourhoods and Climate Change,Technical Services CM0300,Supplies and Services,304358,Equipment and Materials,06/07/2021,3887912-2714,777.00,S & R LANDSCAPES.
Neighbourhoods and Climate Change,Technical Services CM0300,Supplies and Services,304358,Equipment and Materials,06/07/2021,3887912-2715,619.50,S & R LANDSCAPES.
Neighbourhoods and Climate Change,Technical Services CM0300,Supplies and Services,304221,Equipment and Materials,06/07/2021,3887959-221846,"5,371.79",TYNEDALE ROADSTONE LTD.
Neighbourhoods and Climate Change,Technical Services CM0300,Supplies and Services,304221,Equipment and Materials,06/07/2021,3887959-222821,"4,333.27",TYNEDALE ROADSTONE LTD.
Neighbourhoods and Climate Change,Technical Services CM0300,Supplies and Services,304221,Equipment and Materials,06/07/2021,3887959-222825,"5,383.67",TYNEDALE ROADSTONE LTD.
Neighbourhoods and Climate Change,Technical Services CM0300,Supplies and Services,304221,Equipment and Materials,06/07/2021,3887959-222829,"5,392.58",TYNEDALE ROADSTONE LTD.
Neighbourhoods and Climate Change,Technical Services CM0300,Supplies and Services,304221,Equipment and Materials,06/07/2021,3887959-223807,"1,052.38",TYNEDALE ROADSTONE LTD.
Neighbourhoods and Climate Change,Technical Services CM0300,Supplies and Services,304221,Equipment and Materials,06/07/2021,3887959-223812,905.86,TYNEDALE ROADSTONE LTD.
Adult and Health Services,Head of Adults,Supplies and Services,304516,Equipment and Materials,06/07/2021,3887674-INV-485,"1,032.00",BILL SCOTT TAXIS LTD.
Children and Young Peoples Services,Head of Early Help Inclusion & Vulnerable Children.,Supplies and Services,308011,Furniture,06/07/2021,3887887-SI/72415,707.20,PINEAPPLE CONTRACTS.
Children and Young Peoples Services,Head of Education and Skills,Grant,705233,Government Grants,06/07/2021,3887689-CAS-07-2021-025,"2,250.00",CATCHGATE PRIMARY SCHOOL.
"Regeneration, Economy and Growth",Culture Sport and Tourism,Supplies and Services,384999,Miscellaneous Expenses,06/07/2021,3887636-NEI-HCL-07-2021-001,"150,000.00",1LIFE MANAGEMENT SOLUTIONS LTD.
"Regeneration, Economy and Growth",Culture Sport and Tourism,Supplies and Services,384199,Miscellaneous Expenses,06/07/2021,3887645-AAA3436,"5,000.00",AIR ARTIST AGENCY LTD.
"Regeneration, Economy and Growth",Business Durham CL0850,Supplies and Services,384899,Miscellaneous Expenses,06/07/2021,3887749-DBRG-07-2021-20,"2,515.50",EDWARDS COFFEE HOUSE & BAKERY LTD.
"Regeneration, Economy and Growth",Business Durham CL0850,Supplies and Services,384899,Miscellaneous Expenses,06/07/2021,3887808-DBRG-07-2021-39,993.00,JOHNSTON BUSINESS GROUP LTD.
"Regeneration, Economy and Growth",Business Durham CL0850,Supplies and Services,384899,Miscellaneous Expenses,06/07/2021,3887946-DBRG-07-2021-21,"16,327.05",THE MORRITT COUNTRY HOUSE HOTEL.*
Adult and Health Services,Central/Other,Supplies and Services,384540,Miscellaneous Expenses,06/07/2021,3887949-2541A/PRE-COMMENCEMENT,"4,996.75",THREE MOTION MEDIA LTD.
Neighbourhoods and Climate Change,Partnerships & Community Engagement Div.,Supplies and Services,384199,Miscellaneous Expenses,06/07/2021,3887921-174836,"1,978.90",SHOWSEC INTERNATIONAL LTD.
Resources BK0010,Digital and Customer Services,Supplies and Services,384199,Miscellaneous Expenses,06/07/2021,3887891-PT10747,"2,650.00",POINT TOPIC LTD.
Children and Young Peoples Services,Head of Early Help Inclusion & Vulnerable Children.,Supplies and Services,384199,Miscellaneous Expenses,06/07/2021,3887863-00000001/H452871,"2,692.14",NHS PROPERTY SERVICES LTD.
"Regeneration, Economy and Growth",Culture Sport and Tourism,Supplies and Services,312013,Newspapers books and periodicals E312,06/07/2021,3887678-67544,"1,500.00",BOLINDA DIGITAL LTD.
"Regeneration, Economy and Growth",Development and Housing,Third Party Payments,440999,Other third party payments E440,06/07/2021,3887803-154,"36,577.80",JIGSAW RECOVERY PROJECT CIC.
"Regeneration, Economy and Growth",Development and Housing,Third Party Payments,440999,Other third party payments E440,06/07/2021,3887803-155,"36,577.80",JIGSAW RECOVERY PROJECT CIC.
Children and Young Peoples Services,Head of Childrens Social Care,Third Party Payments,440046,Other third party payments E440,06/07/2021,3887971-INV-1997,"2,050.64",WE CARE RECRUITMENT SOLUTIONS LTD.
Resources BK0010,Finance & Transactional Services,Supplies and Services,340001,Postages E340,06/07/2021,3887909-9063107054,"11,124.84",ROYAL MAIL GROUP PLC.
Adult and Health Services,Commissioning inc Supporting People,Third Party Payments,470103,Purchase of Care,06/07/2021,3887650-BROVOID270621,"3,295.08",ALLIANCE CARE (TRENDLEWOOD) LTD.
Adult and Health Services,Commissioning inc Supporting People,Third Party Payments,470103,Purchase of Care,06/07/2021,3887938-HOLVOID270621,"1,372.95",TAMARIS HEALTHCARE (ENGLAND) LTD.
Adult and Health Services,Commissioning inc Supporting People,Third Party Payments,479111,Purchase of Care,06/07/2021,3887888-17525/18,"45,150.00",PIONEERING CARE PARTNERSHIP.
Adult and Health Services,Head of Adults,Third Party Payments,478101,Purchase of Care,06/07/2021,3887787-0013,"2,170.00",HUDSON HOUSE HOLIDAY LET.
Adult and Health Services,Head of Adults,Third Party Payments,478101,Purchase of Care,06/07/2021,3887787-0014,"2,170.00",HUDSON HOUSE HOLIDAY LET.
Dedicated Schools Grant BG0015,DSG High Needs Block,Third Party Payments,410037,Rendered by Other Local Authorities,06/07/2021,3887750-EXSI421,"6,000.00",ELDON GROVE ACADEMY.
Dedicated Schools Grant BG0015,DSG High Needs Block,Third Party Payments,410037,Rendered by Other Local Authorities,06/07/2021,3887895-51629065,"1,470.75",PROTOCOL EDUCATION LTD.*
Neighbourhoods and Climate Change,Environmental Services,Third Party Payments,430100,Rendered by Private Contractors,06/07/2021,3887724-2081705,"1,454.60",DAWSONGROUP VANS LTD.
Neighbourhoods and Climate Change,Environmental Services,Third Party Payments,430100,Rendered by Private Contractors,06/07/2021,3887771-INV00023047,"1,125.84",GO PLANT FLEET SERVICES LTD.*
Neighbourhoods and Climate Change,Environmental Services,Third Party Payments,430100,Rendered by Private Contractors,06/07/2021,3887685-24373,500.00,C & P WINDSCREENS LTD.
Neighbourhoods and Climate Change,Environmental Services,Third Party Payments,430100,Rendered by Private Contractors,06/07/2021,3887771-INV00023044,769.24,GO PLANT FLEET SERVICES LTD.*
Neighbourhoods and Climate Change,Environmental Services,Third Party Payments,430100,Rendered by Private Contractors,06/07/2021,3887771-INV00023045,585.89,GO PLANT FLEET SERVICES LTD.*
Neighbourhoods and Climate Change,Technical Services CM0300,Third Party Payments,430100,Rendered by Private Contractors,06/07/2021,3887798-25355,"2,461.55",JACK COUPE & SONS LTD T/A COUPE LINE.
Neighbourhoods and Climate Change,Technical Services CM0300,Third Party Payments,430100,Rendered by Private Contractors,06/07/2021,3887769-GEOUK2707,"1,192.00",GEOMATICS UK LTD.
"Regeneration, Economy and Growth",Corporate Property and Land,Third Party Payments,430100,Rendered by Private Contractors,06/07/2021,3887878-2685,500.00,PARAMOUNT CEILINGS & PARTITIONS.
"Regeneration, Economy and Growth",Corporate Property and Land,Third Party Payments,430100,Rendered by Private Contractors,06/07/2021,3887914-3819,"198,130.27",SCH SITE SERVICES LTD.
"Regeneration, Economy and Growth",Corporate Property and Land,Third Party Payments,430100,Rendered by Private Contractors,06/07/2021,3887860-32728,"20,000.00",NE & C WINDOWS & DOORS LTD.
"Regeneration, Economy and Growth",Corporate Property and Land,Third Party Payments,430100,Rendered by Private Contractors,06/07/2021,3887876-4980,"17,099.17",ORA PROPERTY SERVICES LTD.
"Regeneration, Economy and Growth",Corporate Property and Land,Third Party Payments,430100,Rendered by Private Contractors,06/07/2021,3887876-4984,"19,020.28",ORA PROPERTY SERVICES LTD.
"Regeneration, Economy and Growth",Corporate Property and Land,Third Party Payments,430100,Rendered by Private Contractors,06/07/2021,3887679-4100729089,698.12,BRIAN YOUNGER T/A B & E YOUNGER FLOORING.
"Regeneration, Economy and Growth",Transport and Contracted Services,Third Party Payments,430100,Rendered by Private Contractors,06/07/2021,3887872-00016885,"26,535.36",NSL LTD.
"Regeneration, Economy and Growth",Transport and Contracted Services,Third Party Payments,430100,Rendered by Private Contractors,06/07/2021,3887872-00016886,"1,406.63",NSL LTD.
"Regeneration, Economy and Growth",Transport and Contracted Services,Third Party Payments,430100,Rendered by Private Contractors,06/07/2021,3887872-00016896,"12,247.85",NSL LTD.
"Regeneration, Economy and Growth",Transport and Contracted Services,Third Party Payments,430100,Rendered by Private Contractors,06/07/2021,3887872-00016887,"53,256.46",NSL LTD.
"Regeneration, Economy and Growth",Transport and Contracted Services,Third Party Payments,430100,Rendered by Private Contractors,06/07/2021,3887872-00016888,"10,913.41",NSL LTD.
"Regeneration, Economy and Growth",Transport and Contracted Services,Third Party Payments,430100,Rendered by Private Contractors,06/07/2021,3887872-00016889,"3,273.39",NSL LTD.
"Regeneration, Economy and Growth",Transport and Contracted Services,Third Party Payments,430100,Rendered by Private Contractors,06/07/2021,3887872-00016890,"4,526.40",NSL LTD.
"Regeneration, Economy and Growth",Transport and Contracted Services,Third Party Payments,430100,Rendered by Private Contractors,06/07/2021,3887872-00016895,"14,953.10",NSL LTD.
"Regeneration, Economy and Growth",Transport and Contracted Services,Third Party Payments,430100,Rendered by Private Contractors,06/07/2021,3887872-00016891,"17,582.86",NSL LTD.
Children and Young Peoples Services,Head of Childrens Social Care,Third Party Payments,425021,Rendered by Voluntary Organisations,06/07/2021,3887680-49163,"25,941.42",BRYN MELYN CARE LTD.
Children and Young Peoples Services,Head of Childrens Social Care,Third Party Payments,425021,Rendered by Voluntary Organisations,06/07/2021,3887680-49164,"9,030.00",BRYN MELYN CARE LTD.
Children and Young Peoples Services,Head of Childrens Social Care,Third Party Payments,425021,Rendered by Voluntary Organisations,06/07/2021,3887680-49204,"26,806.14",BRYN MELYN CARE LTD.
Children and Young Peoples Services,Head of Childrens Social Care,Third Party Payments,425021,Rendered by Voluntary Organisations,06/07/2021,3887680-49205,"9,331.00",BRYN MELYN CARE LTD.
Children and Young Peoples Services,Head of Childrens Social Care,Third Party Payments,425021,Rendered by Voluntary Organisations,06/07/2021,3887680-51231,"26,806.14",BRYN MELYN CARE LTD.
Children and Young Peoples Services,Head of Childrens Social Care,Third Party Payments,425021,Rendered by Voluntary Organisations,06/07/2021,3887680-51232,"9,331.00",BRYN MELYN CARE LTD.
Neighbourhoods and Climate Change,Environmental Services,Transport,210057,Repair and Maintenance of Vehicles,06/07/2021,3887727-96409210,"1,783.86",DENNIS EAGLE LTD T/A TERBERG MATEC (UK) LTD.
Neighbourhoods and Climate Change,Environmental Services,Transport,210057,Repair and Maintenance of Vehicles,06/07/2021,3887743-S207824,"1,287.28",ECON ENGINEERING LTD.
Neighbourhoods and Climate Change,Environmental Services,Transport,210057,Repair and Maintenance of Vehicles,06/07/2021,3887668-35204136,"1,039.76",BELL TRUCK SALES LTD T/A BELL TRUCK & VAN.
Neighbourhoods and Climate Change,Environmental Services,Transport,210057,Repair and Maintenance of Vehicles,06/07/2021,3887681-2225,"1,272.07",BUNCE (ASHBURY) LTD.
Neighbourhoods and Climate Change,Environmental Services,Transport,210057,Repair and Maintenance of Vehicles,06/07/2021,3887923-23130231,662.98,SIMON BAILES LTD.
Neighbourhoods and Climate Change,Environmental Services,Transport,210057,Repair and Maintenance of Vehicles,06/07/2021,3887923-23130234,603.49,SIMON BAILES LTD.
Neighbourhoods and Climate Change,Environmental Services,Transport,215022,Running Costs of Vehicles,06/07/2021,3887874-773892,"1,164.63",OIL NRG LTD.
Neighbourhoods and Climate Change,Environmental Services,Transport,215012,Running Costs of Vehicles,06/07/2021,3887695-195887,"1,253.00",CHEVIN FLEET SOLUTIONS LTD.
Dedicated Schools Grant BG0015,DSG Early Years Block,Transfer Payments,510032,School Children,06/07/2021,3887918-26404,"1,230.84",REDACTED - PAYMENT TO INDIVIDUAL
Neighbourhoods and Climate Change,Environmental Services,Premises,108099,Service Repairs and Maintenance,06/07/2021,3887806-560,"3,282.00",REDACTED - PAYMENT TO INDIVIDUAL
Neighbourhoods and Climate Change,Environmental Services,Supplies and Services,338078,Services,06/07/2021,3887931-17236,"5,021.12",STEADFAST SECURITY SOLUTIONS LTD.
Neighbourhoods and Climate Change,Technical Services CM0300,Supplies and Services,338066,Services,06/07/2021,3887974-502,"1,950.00",WHORLTON LAND SURVEYS LTD.
"Regeneration, Economy and Growth",Business Durham CL0850,Supplies and Services,338078,Services,06/07/2021,3887968-INV-42724,"6,243.76",VISTECH SERVICES.
"Regeneration, Economy and Growth",Business Durham CL0850,Supplies and Services,338078,Services,06/07/2021,3887968-INV-43179,"6,243.76",VISTECH SERVICES.
"Regeneration, Economy and Growth",Business Durham CL0850,Supplies and Services,338099,Services,06/07/2021,3887841-INV-0461,900.00,MCDONOUGH MARKETING COMMUNICATIONS LTD T/A MMC.
Neighbourhoods and Climate Change,Environmental Services,Supplies and Services,338066,Services,06/07/2021,3887836-1292,970.00,MARCUS BYRON (GRAPHIC DESIGNER).
"Regeneration, Economy and Growth",Culture Sport and Tourism,Supplies and Services,338066,Services,06/07/2021,3887741-6081,"7,500.00",EAST DURHAM COMMUNITY DEVELOPMENT TRUST LTD T/A EAST DURHAM TRUST.
Adult and Health Services,Head of Adults,Supplies and Services,338094,Services,06/07/2021,3887928-1117,"1,170.00",SPENNYMOOR YOUTH & COMMUNITY ASSOCIATION.
Resources BK0010,Legal & Democratic Services,Supplies and Services,338102,Services,06/07/2021,3887652-009281,"2,850.00",ANALYTICAL SERVICES INTERNATIONAL LTD.
Resources BK0010,Legal & Democratic Services,Supplies and Services,338102,Services,06/07/2021,3887652-009283,"5,800.00",ANALYTICAL SERVICES INTERNATIONAL LTD.
Resources BK0010,Legal & Democratic Services,Supplies and Services,338025,Services,06/07/2021,3887705-CW/3330,540.00,COCHRANE`S FUNERAL DIRECTORS.
Neighbourhoods and Climate Change,Environmental Services,Stock A926,926004,Stock,06/07/2021,3887767-IN243117,"1,613.52",GB LUBRICANTS LTD.
Neighbourhoods and Climate Change,Environmental Services,Stock A926,926004,Stock,06/07/2021,3887963-21634,660.00,VASEY THOMPSON LTD T/A VT SIGNS.
Neighbourhoods and Climate Change,Technical Services CM0300,Stock A926,926900,Stock in hand-Inventory system,06/07/2021,3887776-06/129118,580.98,GREENHAM TRADING LTD.
Neighbourhoods and Climate Change,Technical Services CM0300,Stock A926,926900,Stock in hand-Inventory system,06/07/2021,3887788-151647,"2,934.00",HYDRAM ENGINEERING LTD.
Neighbourhoods and Climate Change,Technical Services CM0300,Stock A926,926900,Stock in hand-Inventory system,06/07/2021,3887788-151656,"4,401.00",HYDRAM ENGINEERING LTD.
Neighbourhoods and Climate Change,Technical Services CM0300,Stock A926,926900,Stock in hand-Inventory system,06/07/2021,3887880-XL272493,"3,640.25",PARK ELECTRICAL DISTRIBUTORS LTD.
Neighbourhoods and Climate Change,Technical Services CM0300,Stock A926,926900,Stock in hand-Inventory system,06/07/2021,3887880-XL272584,514.00,PARK ELECTRICAL DISTRIBUTORS LTD.
Neighbourhoods and Climate Change,Technical Services CM0300,Stock A926,926900,Stock in hand-Inventory system,06/07/2021,3887948-NSIN00057784,652.80,THOMAS OWEN & SONS (NEWCASTLE) LTD.
Neighbourhoods and Climate Change,Technical Services CM0300,Stock A926,926900,Stock in hand-Inventory system,06/07/2021,3887954-104970,"3,900.00",TOTAL RENTAL SOLUTIONS.
Neighbourhoods and Climate Change,Technical Services CM0300,Stock A926,926900,Stock in hand-Inventory system,06/07/2021,3887982-145428479,"1,001.61",ZG LIGHTING (UK) LTD.
Resources BK0010,Digital and Customer Services,Stock A926,926900,Stock in hand-Inventory system,06/07/2021,3887725-7402724109,808.46,DELL COMPUTER CORPORATION LTD.
Resources BK0010,Digital and Customer Services,Stock A926,926900,Stock in hand-Inventory system,06/07/2021,3887725-7402725037,"1,034.34",DELL COMPUTER CORPORATION LTD.
Resources BK0010,Corporate Finance & Commercial Services,Supplies and Services,372009,Subscriptions E372,06/07/2021,3887758-942,"2,400.00",FACULTY OF OCCUPATIONAL MEDICINE.
Adult and Health Services,Commissioning inc Supporting People,Third Party Payments,442002,Supporting People E442,06/07/2021,3887659-9010/C,"13,496.00",ASPIRE LEARNING SUPPORT & WELLBEING CIC.
Resources BK0010,Digital and Customer Services,Supplies and Services,344131,Telephones,06/07/2021,3887937-136833,"2,073.86",SWITCHSHOP LTD.
Dedicated Schools Grant BG0015,DSG High Needs Block,Central Support and Other Recharges,689988,Unclassified E690,06/07/2021,3887929-CAS-07-2021-026,"11,594.00",STANLEY LEARNING PARTNERSHIP.
Neighbourhoods and Climate Change,Technical Services CM0300,Supplies and Services,336005,Advertising E336,07/07/2021,3888174-456577,540.00,JPI MEDIA PUBLISHING LTD T/A SHEFFIELD NEWSPAPERS.
Chief Executive's Office,Communications Management,Supplies and Services,336005,Advertising E336,07/07/2021,3888055-18897,"1,380.00",COMMUNITY NEWSPAPER SUPPORT CIC.
Children and Young Peoples Services,Head of Childrens Social Care,Employees,080025,Agency Staff,07/07/2021,3888127-2450165,"167,791.01",GEOMETRIC RESULTS INTERNATIONAL.
Children and Young Peoples Services,Head of Early Help Inclusion & Vulnerable Children.,Premises,145023,Cleaning and Domestic Supplies,07/07/2021,3888136-06/127877,591.49,GREENHAM TRADING LTD.
Neighbourhoods and Climate Change,Technical Services CM0300,Supplies and Services,342051,Computers and Communications,07/07/2021,3888270-1648,"49,975.00",ROADWORKS INFORMATION LTD T/A ELGIN.
Resources BK0010,Digital and Customer Services,Supplies and Services,342033,Computers and Communications,07/07/2021,3888123-6926,"2,748.00",FULL CONTROL NETWORKS.
Resources BK0010,Digital and Customer Services,Supplies and Services,342033,Computers and Communications,07/07/2021,3888199-12628675,"4,821.00",MAINTEL EUROPE LTD.
Resources BK0010,Digital and Customer Services,Supplies and Services,342033,Computers and Communications,07/07/2021,3888199-12628748,"3,987.00",MAINTEL EUROPE LTD.
Adult and Health Services,Head of Adults,Transport,230005,Contract Hire,07/07/2021,3888171-31MAY20,708.75,JOHN CRAKE & SONS MINI BUSES LTD.
Adult and Health Services,Head of Adults,Transport,230005,Contract Hire,07/07/2021,3888065-110831,812.82,CROFT BUSINESS SERVICES LTD T/A CROFT TRAVEL.
Adult and Health Services,Head of Adults,Transport,230005,Contract Hire,07/07/2021,3888153-IR2106008,748.50,I & R EXECUTIVE TRAVEL.
Adult and Health Services,Head of Adults,Transport,230005,Contract Hire,07/07/2021,3888171-32MAY20,708.75,JOHN CRAKE & SONS MINI BUSES LTD.
Adult and Health Services,Head of Adults,Transport,230005,Contract Hire,07/07/2021,3888171-51-SED126,"1,320.00",JOHN CRAKE & SONS MINI BUSES LTD.
Adult and Health Services,Head of Adults,Transport,230005,Contract Hire,07/07/2021,3888015-04238,766.22,ATLAS TAXIS CONSETT.
Adult and Health Services,Head of Adults,Transport,230005,Contract Hire,07/07/2021,3888065-110829,568.02,CROFT BUSINESS SERVICES LTD T/A CROFT TRAVEL.
Adult and Health Services,Head of Adults,Transport,230005,Contract Hire,07/07/2021,3888165-2161,"1,320.00",JDS PRIVATE HIRE DURHAM.
Children and Young Peoples Services,Head of Education and Skills,Transport,230034,Contract Hire,07/07/2021,3888166-2151,"1,260.00",JDS PRIVATE HIRE DURHAM.
Children and Young Peoples Services,Head of Education and Skills,Transport,230034,Contract Hire,07/07/2021,3887990-11374,"2,590.74",24X7LTD.
Children and Young Peoples Services,Head of Education and Skills,Transport,230007,Contract Hire,07/07/2021,3887988-62101,"1,638.00",24/7 TAXI SERVICES (PETERLEE) LTD.
Children and Young Peoples Services,Head of Education and Skills,Transport,230007,Contract Hire,07/07/2021,3887990-11377,"1,086.62",24X7LTD.
Children and Young Peoples Services,Head of Education and Skills,Transport,230034,Contract Hire,07/07/2021,3888171-35MAY20,787.50,JOHN CRAKE & SONS MINI BUSES LTD.
Children and Young Peoples Services,Head of Education and Skills,Transport,230009,Contract Hire,07/07/2021,3887990-11381,"1,207.44",24X7LTD.
Children and Young Peoples Services,Head of Education and Skills,Transport,230034,Contract Hire,07/07/2021,3888166-2152,"1,108.44",JDS PRIVATE HIRE DURHAM.
Children and Young Peoples Services,Head of Education and Skills,Transport,230012,Contract Hire,07/07/2021,3887989-62124,"2,178.00",24/7 TAXI SERVICES (PETERLEE) LTD.
Children and Young Peoples Services,Head of Education and Skills,Transport,230007,Contract Hire,07/07/2021,3887990-11375,"1,166.54",24X7LTD.
Children and Young Peoples Services,Head of Education and Skills,Transport,230008,Contract Hire,07/07/2021,3888166-2167,"1,454.40",JDS PRIVATE HIRE DURHAM.
Children and Young Peoples Services,Head of Education and Skills,Transport,230012,Contract Hire,07/07/2021,3888166-2163,"1,242.36",JDS PRIVATE HIRE DURHAM.
Children and Young Peoples Services,Head of Education and Skills,Transport,230034,Contract Hire,07/07/2021,3888165-2119,"1,560.06",JDS PRIVATE HIRE DURHAM.
Children and Young Peoples Services,Head of Education and Skills,Transport,230034,Contract Hire,07/07/2021,3888166-2150,"1,560.06",JDS PRIVATE HIRE DURHAM.
Children and Young Peoples Services,Head of Education and Skills,Transport,230007,Contract Hire,07/07/2021,3887990-11379,"1,576.44",24X7LTD.
Children and Young Peoples Services,Head of Education and Skills,Transport,230034,Contract Hire,07/07/2021,3888212-KDK/JUNE21,"1,346.76",MR IAN KELSEY T/A KDK TAXIS.
Children and Young Peoples Services,Head of Education and Skills,Transport,230034,Contract Hire,07/07/2021,3888212-KDK/MAY202,562.50,MR IAN KELSEY T/A KDK TAXIS.
Children and Young Peoples Services,Head of Education and Skills,Transport,230035,Contract Hire,07/07/2021,3887990-11378,"1,665.57",24X7LTD.
Children and Young Peoples Services,Head of Education and Skills,Transport,230034,Contract Hire,07/07/2021,3888015-04241,"1,163.51",ATLAS TAXIS CONSETT.
Children and Young Peoples Services,Head of Education and Skills,Transport,230007,Contract Hire,07/07/2021,3888132-76482,"7,683.48",GO GATESHEAD LTD.
Children and Young Peoples Services,Head of Education and Skills,Transport,230007,Contract Hire,07/07/2021,3888170-31230,"3,438.00",JIM HUGHES COACHES LTD.
Children and Young Peoples Services,Head of Education and Skills,Transport,230007,Contract Hire,07/07/2021,3888165-2122,"2,217.73",JDS PRIVATE HIRE DURHAM.
Children and Young Peoples Services,Head of Education and Skills,Transport,230007,Contract Hire,07/07/2021,3888166-2153,"1,829.70",JDS PRIVATE HIRE DURHAM.
Children and Young Peoples Services,Head of Education and Skills,Transport,230009,Contract Hire,07/07/2021,3888166-2154,"1,509.84",JDS PRIVATE HIRE DURHAM.
Children and Young Peoples Services,Head of Education and Skills,Transport,230007,Contract Hire,07/07/2021,3888348-010,993.24,WILLIAM PINDER T/A FEATHERBED TAXIS.
Children and Young Peoples Services,Head of Education and Skills,Transport,230034,Contract Hire,07/07/2021,3887989-62102,"1,463.40",24/7 TAXI SERVICES (PETERLEE) LTD.
Children and Young Peoples Services,Head of Education and Skills,Transport,230003,Contract Hire,07/07/2021,3888170-31231,"4,140.00",JIM HUGHES COACHES LTD.
Children and Young Peoples Services,Head of Education and Skills,Transport,230009,Contract Hire,07/07/2021,3888211-KDK/JUNE21-4390,836.64,MR IAN KELSEY T/A KDK TAXIS.
Children and Young Peoples Services,Head of Education and Skills,Transport,230008,Contract Hire,07/07/2021,3887988-52108,"2,582.58",24/7 TAXI SERVICES (PETERLEE) LTD.
Children and Young Peoples Services,Head of Education and Skills,Transport,230008,Contract Hire,07/07/2021,3887988-62106,"2,376.00",24/7 TAXI SERVICES (PETERLEE) LTD.
Children and Young Peoples Services,Head of Education and Skills,Transport,230008,Contract Hire,07/07/2021,3887989-62107,"1,143.60",24/7 TAXI SERVICES (PETERLEE) LTD.
Children and Young Peoples Services,Head of Education and Skills,Transport,230008,Contract Hire,07/07/2021,3887989-62109,"2,263.68",24/7 TAXI SERVICES (PETERLEE) LTD.
Children and Young Peoples Services,Head of Education and Skills,Transport,230008,Contract Hire,07/07/2021,3887989-62110,974.00,24/7 TAXI SERVICES (PETERLEE) LTD.
Children and Young Peoples Services,Head of Education and Skills,Transport,230007,Contract Hire,07/07/2021,3887990-11380,"1,214.28",24X7LTD.
Children and Young Peoples Services,Head of Education and Skills,Transport,230006,Contract Hire,07/07/2021,3888066-110827,"5,027.67",CROFT BUSINESS SERVICES LTD T/A CROFT TRAVEL.
Children and Young Peoples Services,Head of Education and Skills,Transport,230008,Contract Hire,07/07/2021,3888065-110825,"4,407.95",CROFT BUSINESS SERVICES LTD T/A CROFT TRAVEL.
Children and Young Peoples Services,Head of Education and Skills,Transport,230008,Contract Hire,07/07/2021,3888065-110826,"2,106.00",CROFT BUSINESS SERVICES LTD T/A CROFT TRAVEL.
Children and Young Peoples Services,Head of Education and Skills,Transport,230008,Contract Hire,07/07/2021,3888065-110828,"3,034.20",CROFT BUSINESS SERVICES LTD T/A CROFT TRAVEL.
Children and Young Peoples Services,Head of Education and Skills,Transport,230008,Contract Hire,07/07/2021,3888166-2155,"2,556.00",JDS PRIVATE HIRE DURHAM.
Children and Young Peoples Services,Head of Education and Skills,Transport,230008,Contract Hire,07/07/2021,3888166-2156,"2,556.00",JDS PRIVATE HIRE DURHAM.
Children and Young Peoples Services,Head of Education and Skills,Transport,230008,Contract Hire,07/07/2021,3888182-010621,"1,208.94",KEVIN EDMUNDSON.
Children and Young Peoples Services,Head of Education and Skills,Transport,230006,Contract Hire,07/07/2021,3888184-212,"1,375.20",KINGSWAY CABS LTD.
Children and Young Peoples Services,Head of Education and Skills,Transport,230008,Contract Hire,07/07/2021,3888184-217,"1,818.00",KINGSWAY CABS LTD.
Children and Young Peoples Services,Head of Education and Skills,Transport,230008,Contract Hire,07/07/2021,3888184-219,"2,160.00",KINGSWAY CABS LTD.
Children and Young Peoples Services,Head of Education and Skills,Transport,230008,Contract Hire,07/07/2021,3888184-221,"1,620.00",KINGSWAY CABS LTD.
Children and Young Peoples Services,Head of Education and Skills,Transport,230008,Contract Hire,07/07/2021,3888184-223,"2,514.60",KINGSWAY CABS LTD.
Children and Young Peoples Services,Head of Education and Skills,Transport,230008,Contract Hire,07/07/2021,3888005-00117,747.00,ANNE MARIE HENDERSON T/A HENDERSON HIRE (TAXIS).
Children and Young Peoples Services,Head of Education and Skills,Transport,230008,Contract Hire,07/07/2021,3888065-110840,"1,684.48",CROFT BUSINESS SERVICES LTD T/A CROFT TRAVEL.
Children and Young Peoples Services,Head of Education and Skills,Transport,230008,Contract Hire,07/07/2021,3888065-110836,"2,539.68",CROFT BUSINESS SERVICES LTD T/A CROFT TRAVEL.
Children and Young Peoples Services,Head of Education and Skills,Transport,230008,Contract Hire,07/07/2021,3888065-110838,"3,459.50",CROFT BUSINESS SERVICES LTD T/A CROFT TRAVEL.
Children and Young Peoples Services,Head of Education and Skills,Transport,230008,Contract Hire,07/07/2021,3888184-213,"1,792.80",KINGSWAY CABS LTD.
Children and Young Peoples Services,Head of Education and Skills,Transport,230008,Contract Hire,07/07/2021,3887989-62113,"2,373.66",24/7 TAXI SERVICES (PETERLEE) LTD.
Children and Young Peoples Services,Head of Education and Skills,Transport,230008,Contract Hire,07/07/2021,3887990-11383,"2,300.58",24X7LTD.
Children and Young Peoples Services,Head of Education and Skills,Transport,230008,Contract Hire,07/07/2021,3888184-215,"2,219.40",KINGSWAY CABS LTD.
Children and Young Peoples Services,Head of Education and Skills,Transport,230008,Contract Hire,07/07/2021,3888210-JUNE21-N120,"1,584.00",MR DOMINICK JONES T/A DJ PRIVATE HIRE.
Children and Young Peoples Services,Head of Education and Skills,Transport,230034,Contract Hire,07/07/2021,3887988-62115,"2,358.00",24/7 TAXI SERVICES (PETERLEE) LTD.
Children and Young Peoples Services,Head of Education and Skills,Transport,230008,Contract Hire,07/07/2021,3888065-110834,556.36,CROFT BUSINESS SERVICES LTD T/A CROFT TRAVEL.
Children and Young Peoples Services,Head of Education and Skills,Transport,230008,Contract Hire,07/07/2021,3888065-110837,"2,352.78",CROFT BUSINESS SERVICES LTD T/A CROFT TRAVEL.
Children and Young Peoples Services,Head of Education and Skills,Transport,230008,Contract Hire,07/07/2021,3888066-110692,810.80,CROFT BUSINESS SERVICES LTD T/A CROFT TRAVEL.
Children and Young Peoples Services,Head of Education and Skills,Transport,230008,Contract Hire,07/07/2021,3888165-2168,"1,804.14",JDS PRIVATE HIRE DURHAM.
Children and Young Peoples Services,Head of Education and Skills,Transport,230008,Contract Hire,07/07/2021,3887989-62114,"2,995.40",24/7 TAXI SERVICES (PETERLEE) LTD.
Children and Young Peoples Services,Head of Education and Skills,Transport,230008,Contract Hire,07/07/2021,3888165-2112,"2,160.00",JDS PRIVATE HIRE DURHAM.
Children and Young Peoples Services,Head of Education and Skills,Transport,230008,Contract Hire,07/07/2021,3888166-2176,"2,465.00",JDS PRIVATE HIRE DURHAM.
Children and Young Peoples Services,Head of Education and Skills,Transport,230008,Contract Hire,07/07/2021,3888224-269,"1,799.96",NEVILLE FORBES T/A FORBES TAXIS.
Children and Young Peoples Services,Head of Education and Skills,Transport,230008,Contract Hire,07/07/2021,3888180-10-JUNE21,"3,021.12",KD TAXIS.
Children and Young Peoples Services,Head of Education and Skills,Transport,230008,Contract Hire,07/07/2021,3888184-216,"3,186.00",KINGSWAY CABS LTD.
Children and Young Peoples Services,Head of Education and Skills,Transport,230008,Contract Hire,07/07/2021,3888184-218,"1,530.00",KINGSWAY CABS LTD.
Children and Young Peoples Services,Head of Education and Skills,Transport,230008,Contract Hire,07/07/2021,3887988-62116,"2,196.00",24/7 TAXI SERVICES (PETERLEE) LTD.
Children and Young Peoples Services,Head of Education and Skills,Transport,230008,Contract Hire,07/07/2021,3887989-62117,"1,818.00",24/7 TAXI SERVICES (PETERLEE) LTD.
Children and Young Peoples Services,Head of Education and Skills,Transport,230008,Contract Hire,07/07/2021,3887989-62118,"1,656.00",24/7 TAXI SERVICES (PETERLEE) LTD.
Children and Young Peoples Services,Head of Education and Skills,Transport,230008,Contract Hire,07/07/2021,3888184-220,"2,170.80",KINGSWAY CABS LTD.
Children and Young Peoples Services,Head of Education and Skills,Transport,230008,Contract Hire,07/07/2021,3888065-110835,"2,339.28",CROFT BUSINESS SERVICES LTD T/A CROFT TRAVEL.
Children and Young Peoples Services,Head of Education and Skills,Transport,230008,Contract Hire,07/07/2021,3888165-2164,"1,487.34",JDS PRIVATE HIRE DURHAM.
Children and Young Peoples Services,Head of Education and Skills,Transport,230008,Contract Hire,07/07/2021,3888165-2173,"1,260.00",JDS PRIVATE HIRE DURHAM.
Children and Young Peoples Services,Head of Education and Skills,Transport,230008,Contract Hire,07/07/2021,3888166-2159,"2,844.00",JDS PRIVATE HIRE DURHAM.
Children and Young Peoples Services,Head of Education and Skills,Transport,230008,Contract Hire,07/07/2021,3888166-2165,"1,636.56",JDS PRIVATE HIRE DURHAM.
Children and Young Peoples Services,Head of Education and Skills,Transport,230008,Contract Hire,07/07/2021,3888166-2166-M043-JUN,"1,487.70",JDS PRIVATE HIRE DURHAM.
Children and Young Peoples Services,Head of Education and Skills,Transport,230008,Contract Hire,07/07/2021,3888166-2169,"1,332.00",JDS PRIVATE HIRE DURHAM.
Children and Young Peoples Services,Head of Education and Skills,Transport,230008,Contract Hire,07/07/2021,3888166-2170,"1,656.00",JDS PRIVATE HIRE DURHAM.
Children and Young Peoples Services,Head of Education and Skills,Transport,230008,Contract Hire,07/07/2021,3888166-2171,"1,487.70",JDS PRIVATE HIRE DURHAM.
Children and Young Peoples Services,Head of Education and Skills,Transport,230008,Contract Hire,07/07/2021,3888166-2172,"2,232.72",JDS PRIVATE HIRE DURHAM.
Children and Young Peoples Services,Head of Education and Skills,Transport,230008,Contract Hire,07/07/2021,3887990-11382,"2,248.92",24X7LTD.
Children and Young Peoples Services,Head of Education and Skills,Transport,230008,Contract Hire,07/07/2021,3887990-11384,"1,528.80",24X7LTD.
Children and Young Peoples Services,Head of Education and Skills,Transport,230008,Contract Hire,07/07/2021,3888131-017-W024,"1,990.80",GMC TAXIS NORTH EAST.
Children and Young Peoples Services,Head of Education and Skills,Transport,230008,Contract Hire,07/07/2021,3888165-2178,"2,358.00",JDS PRIVATE HIRE DURHAM.
Children and Young Peoples Services,Head of Education and Skills,Transport,230008,Contract Hire,07/07/2021,3888165-2179,"1,656.00",JDS PRIVATE HIRE DURHAM.
Children and Young Peoples Services,Head of Education and Skills,Transport,230008,Contract Hire,07/07/2021,3888004-0121,"1,656.00",ANDREW SIMPSON T/A ANDY`S CABS.
Children and Young Peoples Services,Head of Education and Skills,Transport,230008,Contract Hire,07/07/2021,3888166-2157,"2,768.94",JDS PRIVATE HIRE DURHAM.
Children and Young Peoples Services,Head of Education and Skills,Transport,230010,Contract Hire,07/07/2021,3888015-04239,"1,298.16",ATLAS TAXIS CONSETT.
Children and Young Peoples Services,Head of Education and Skills,Transport,230010,Contract Hire,07/07/2021,3888166-2174,"1,907.64",JDS PRIVATE HIRE DURHAM.
Children and Young Peoples Services,Head of Education and Skills,Transport,230010,Contract Hire,07/07/2021,3888184-224,"2,958.76",KINGSWAY CABS LTD.
Children and Young Peoples Services,Head of Education and Skills,Transport,230008,Contract Hire,07/07/2021,3887989-62112,"2,538.00",24/7 TAXI SERVICES (PETERLEE) LTD.
Children and Young Peoples Services,Head of Education and Skills,Transport,230006,Contract Hire,07/07/2021,3887988-62111,"1,111.00",24/7 TAXI SERVICES (PETERLEE) LTD.
Children and Young Peoples Services,Head of Education and Skills,Transport,230006,Contract Hire,07/07/2021,3888015-04237,"1,137.50",ATLAS TAXIS CONSETT.
Children and Young Peoples Services,Head of Education and Skills,Transport,230006,Contract Hire,07/07/2021,3888065-110833,"1,817.42",CROFT BUSINESS SERVICES LTD T/A CROFT TRAVEL.
Children and Young Peoples Services,Head of Education and Skills,Transport,230006,Contract Hire,07/07/2021,3888080-21/06,"1,655.56",DMG PRIVATE HIRE.
Children and Young Peoples Services,Head of Education and Skills,Transport,230006,Contract Hire,07/07/2021,3888171-49-F892,624.00,JOHN CRAKE & SONS MINI BUSES LTD.
Children and Young Peoples Services,Head of Education and Skills,Transport,230006,Contract Hire,07/07/2021,3888348-AA10,660.00,WILLIAM PINDER T/A FEATHERBED TAXIS.
Children and Young Peoples Services,Head of Childrens Social Care,Transport,230005,Contract Hire,07/07/2021,3888066-110756,878.80,CROFT BUSINESS SERVICES LTD T/A CROFT TRAVEL.
Children and Young Peoples Services,Head of Childrens Social Care,Transport,230005,Contract Hire,07/07/2021,3888066-110798,787.10,CROFT BUSINESS SERVICES LTD T/A CROFT TRAVEL.
Children and Young Peoples Services,Head of Childrens Social Care,Transport,230005,Contract Hire,07/07/2021,3888066-110807,878.80,CROFT BUSINESS SERVICES LTD T/A CROFT TRAVEL.
Children and Young Peoples Services,Head of Childrens Social Care,Transport,230005,Contract Hire,07/07/2021,3888066-110812,514.24,CROFT BUSINESS SERVICES LTD T/A CROFT TRAVEL.
Children and Young Peoples Services,Head of Childrens Social Care,Transport,230005,Contract Hire,07/07/2021,3888066-110747,545.78,CROFT BUSINESS SERVICES LTD T/A CROFT TRAVEL.
Children and Young Peoples Services,Head of Childrens Social Care,Transport,230005,Contract Hire,07/07/2021,3888066-110790,733.96,CROFT BUSINESS SERVICES LTD T/A CROFT TRAVEL.
Children and Young Peoples Services,Head of Childrens Social Care,Transport,230005,Contract Hire,07/07/2021,3888066-110814,592.16,CROFT BUSINESS SERVICES LTD T/A CROFT TRAVEL.
"Regeneration, Economy and Growth",Business Durham CL0850,Third Party Payments,460305,Contract Payments,07/07/2021,3888334-RED-07-2021-032,"28,205.04",UMI COMMERCIAL LTD.
"Regeneration, Economy and Growth",Business Durham CL0850,Third Party Payments,460305,Contract Payments,07/07/2021,3888334-RED-07-2021-035,645.41,UMI COMMERCIAL LTD.
Adult and Health Services,Public Health CC0450,Third Party Payments,460803,Contract Payments,07/07/2021,3887993-INV-1116,"124,855.00",ABL HEALTH LTD.
Adult and Health Services,Public Health CC0450,Third Party Payments,460803,Contract Payments,07/07/2021,3888245-17520/18,"5,462.92",PIONEERING CARE PARTNERSHIP.
"Regeneration, Economy and Growth",Culture Sport and Tourism,Premises,120009,Energy Costs,07/07/2021,3888154-15150,"2,327.67",IMPALA ESTATES LTD.
Neighbourhoods and Climate Change,Environmental Services,Supplies and Services,304221,Equipment and Materials,07/07/2021,3888267-RSIN0379515,"1,620.00",RIGBY TAYLOR LTD.
"Regeneration, Economy and Growth",Culture Sport and Tourism,Supplies and Services,304259,Equipment and Materials,07/07/2021,3888256-433514,552.50,QUALSAFE.COM.
Neighbourhoods and Climate Change,Community Protection,Supplies and Services,304999,Equipment and Materials,07/07/2021,3888047-70142,"25,000.00",CIRRUS RESEARCH PLC.
Neighbourhoods and Climate Change,Environmental Services,Supplies and Services,304252,Equipment and Materials,07/07/2021,3888134-INV062238,510.00,GOTT TECHNICAL SERVICES LTD.
Neighbourhoods and Climate Change,Environmental Services,Supplies and Services,304221,Equipment and Materials,07/07/2021,3888067-INV0111898,"8,685.13",CROMWELL POLYTHENE LTD.
"Regeneration, Economy and Growth",Culture Sport and Tourism,Supplies and Services,304259,Equipment and Materials,07/07/2021,3888149-6730,960.14,HOUSE OF PLAY (EUROPE) LTD.
Neighbourhoods and Climate Change,Technical Services CM0300,Supplies and Services,304357,Equipment and Materials,07/07/2021,3888126-DCC200621,"17,048.04",GAP GROUP LTD.
Neighbourhoods and Climate Change,Technical Services CM0300,Supplies and Services,304221,Equipment and Materials,07/07/2021,3888305-17012,611.20,STONEGRAVE AGGREGATES LTD.
Neighbourhoods and Climate Change,Technical Services CM0300,Supplies and Services,304221,Equipment and Materials,07/07/2021,3888305-17054,609.12,STONEGRAVE AGGREGATES LTD.
Neighbourhoods and Climate Change,Technical Services CM0300,Supplies and Services,304221,Equipment and Materials,07/07/2021,3888331-221597,705.50,TYNEDALE ROADSTONE LTD.
Neighbourhoods and Climate Change,Technical Services CM0300,Supplies and Services,304221,Equipment and Materials,07/07/2021,3888331-222836,"1,078.12",TYNEDALE ROADSTONE LTD.
Neighbourhoods and Climate Change,Technical Services CM0300,Supplies and Services,304221,Equipment and Materials,07/07/2021,3888331-223159,753.08,TYNEDALE ROADSTONE LTD.
Neighbourhoods and Climate Change,Technical Services CM0300,Supplies and Services,304221,Equipment and Materials,07/07/2021,3888331-223228,951.40,TYNEDALE ROADSTONE LTD.
"Regeneration, Economy and Growth",Corporate Property and Land,Supplies and Services,304221,Equipment and Materials,07/07/2021,3888102-SIN019180,608.61,ENERGY CONSERVATION SOLUTIONS LTD (ECSL).
"Regeneration, Economy and Growth",Corporate Property and Land,Supplies and Services,304221,Equipment and Materials,07/07/2021,3888246-41180,"3,929.58",PLASLOC LTD.
"Regeneration, Economy and Growth",Culture Sport and Tourism,Supplies and Services,304259,Equipment and Materials,07/07/2021,3888105-INV136376,"2,607.00",EVAC & CHAIR INTERNATIONAL LTD.
"Regeneration, Economy and Growth",Culture Sport and Tourism,Supplies and Services,304083,Equipment and Materials,07/07/2021,3888228-22939453,"1,429.99",NISBETS PLC.
Resources BK0010,Digital and Customer Services,Supplies and Services,304245,Equipment and Materials,07/07/2021,3888007-9875887,"2,816.00",ANTALIS LTD.
Resources BK0010,Digital and Customer Services,Supplies and Services,304639,Equipment and Materials,07/07/2021,3888079-147353719,"1,137.66",DIVERSEY LTD.
Resources BK0010,Digital and Customer Services,Supplies and Services,304639,Equipment and Materials,07/07/2021,3888236-13259692,735.06,NUMATIC INTERNATIONAL LTD.
Resources BK0010,Digital and Customer Services,Supplies and Services,304639,Equipment and Materials,07/07/2021,3888123-6931,"4,370.00",FULL CONTROL NETWORKS.
Resources BK0010,Digital and Customer Services,Supplies and Services,304303,Equipment and Materials,07/07/2021,3888141-INV0182763,"5,835.00",GVAV LTD.
Dedicated Schools Grant BG0015,DSG High Needs Block,Supplies and Services,304259,Equipment and Materials,07/07/2021,3888026-131819,"1,926.00",BENNETT WORKPLACE.
Neighbourhoods and Climate Change,Technical Services CM0300,Supplies and Services,389001,Inventory Related,07/07/2021,3887987-272668,687.15,1ST COVERALL COMPANY LTD.
Neighbourhoods and Climate Change,Environmental Services,Supplies and Services,384974,Miscellaneous Expenses,07/07/2021,3888084-NEI-EXP-07-2021-001,"40,000.00",DRIVER & VEHICLE STANDARDS AGENCY (DVSA).
"Regeneration, Economy and Growth",Culture Sport and Tourism,Supplies and Services,384199,Miscellaneous Expenses,07/07/2021,3888110-FM0448,"5,000.00",FIELD MUSIC LTD.
"Regeneration, Economy and Growth",Culture Sport and Tourism,Supplies and Services,384199,Miscellaneous Expenses,07/07/2021,3888347-UOTR4782647,"2,396.53",WESTERN UNION BUSINESS SOLUTIONS.
Neighbourhoods and Climate Change,Environmental Services,Supplies and Services,384899,Miscellaneous Expenses,07/07/2021,3888318-CF21/041,"2,656.00",THE NATIONAL ASSOCIATION FOR AONBS.
Adult and Health Services,Public Health CC0450,Supplies and Services,384956,Miscellaneous Expenses,07/07/2021,3888347-UOTR4782650,"4,127.00",WESTERN UNION BUSINESS SOLUTIONS.
"Regeneration, Economy and Growth",Culture Sport and Tourism,Supplies and Services,312017,Newspapers books and periodicals E312,07/07/2021,3888013-6512499,733.43,ASKEWS & HOLTS LIBRARY SERVICES LTD.
Children and Young Peoples Services,Head of Education and Skills,Third Party Payments,440999,Other third party payments E440,07/07/2021,3888073-KICK5044718INVOICE000099,"1,010.75",DEERNESS VALLEY NURSERY SCHOOL.
Children and Young Peoples Services,Head of Education and Skills,Third Party Payments,440999,Other third party payments E440,07/07/2021,3888073-KICK504478INVOICE000100,"1,010.75",DEERNESS VALLEY NURSERY SCHOOL.
Children and Young Peoples Services,Head of Education and Skills,Third Party Payments,440999,Other third party payments E440,07/07/2021,3888196-KICK5044718INVOICE000098,941.16,M WHITFIELD LTD.
Children and Young Peoples Services,Head of Education and Skills,Third Party Payments,440999,Other third party payments E440,07/07/2021,3888315-KICK5044718INVOICE000101,"1,010.75",THE FACE & BODY CLINIC T/A AUTON LTD.
Children and Young Peoples Services,Head of Education and Skills,Third Party Payments,440999,Other third party payments E440,07/07/2021,3888336-KICK5044718INVOICE000102,"1,010.75",VANQUISH HAIR & BEAUTY LTD.
Dedicated Schools Grant BG0015,DSG High Needs Block,Third Party Payments,440080,Other third party payments E440,07/07/2021,3888609-PIG_100486,"3,660.72",ALD GROUP LTD.
Dedicated Schools Grant BG0015,DSG High Needs Block,Third Party Payments,440080,Other third party payments E440,07/07/2021,3889288-PIG_99860,"5,928.48",NORTH EAST AUTISM SOCIETY.
Dedicated Schools Grant BG0015,DSG High Needs Block,Third Party Payments,440080,Other third party payments E440,07/07/2021,3889288-PIG_99861,"47,851.76",NORTH EAST AUTISM SOCIETY.
Dedicated Schools Grant BG0015,DSG High Needs Block,Third Party Payments,440080,Other third party payments E440,07/07/2021,3889288-PIG_99881,"52,569.73",NORTH EAST AUTISM SOCIETY.
Dedicated Schools Grant BG0015,DSG High Needs Block,Third Party Payments,440080,Other third party payments E440,07/07/2021,3889522-43382,"11,568.50",THE PERCY HEDLEY FOUNDATION.
Children and Young Peoples Services,Head of Childrens Social Care,Third Party Payments,440062,Other third party payments E440,07/07/2021,3888871-PIG_99843,"2,710.79",EMBRACING CARE.
Children and Young Peoples Services,Head of Childrens Social Care,Third Party Payments,440062,Other third party payments E440,07/07/2021,3889307-PIG_99247,"2,452.58",ORCHARD HOME CARE SERVICES LTD.
Children and Young Peoples Services,Head of Childrens Social Care,Third Party Payments,440062,Other third party payments E440,07/07/2021,3889340-PIG_99846,890.40,PERFECT CARE LTD.
Children and Young Peoples Services,Head of Childrens Social Care,Third Party Payments,440062,Other third party payments E440,07/07/2021,3889436-PIG_100497,"2,058.00",SECOND TO NONE CARE LTD.
Resources BK0010,Legal & Democratic Services,Supplies and Services,332029,Printing Stationery and Gen Off Exps,07/07/2021,3887995-PSI0166467,950.00,ADARE SEC LTD.
Adult and Health Services,Head of Adults,Third Party Payments,474101,Purchase of Care,07/07/2021,3888600-I-21-1196435,"13,977.58",AKARI CARE LTD.
Adult and Health Services,Head of Adults,Third Party Payments,470101,Purchase of Care,07/07/2021,3888603-I-21-1196275,"93,236.32",AKARI CARE LTD.
Adult and Health Services,Head of Adults,Third Party Payments,474101,Purchase of Care,07/07/2021,3888661-I-21-1196373,"4,401.20",ATLAS CARE HOMES LTD.
Adult and Health Services,Head of Adults,Third Party Payments,470101,Purchase of Care,07/07/2021,3888669-I-21-1196505,"40,359.32",BARCHESTER HEALTHCARE HOMES LTD.
Adult and Health Services,Head of Adults,Third Party Payments,470101,Purchase of Care,07/07/2021,3888672-I-21-1196424,"1,233.12",BARCHESTER HEALTHCARE HOMES LTD.
Adult and Health Services,Head of Adults,Third Party Payments,470101,Purchase of Care,07/07/2021,3888683-I-21-1196411,"25,059.74",BEAMISH RESIDENTIAL CARE HOME LTD.
Adult and Health Services,Head of Adults,Third Party Payments,470101,Purchase of Care,07/07/2021,3888704-I-21-1196338,"6,229.26",BRIARDENE PRIVATE RESIDENTIAL & NURSING HOME.
Adult and Health Services,Head of Adults,Third Party Payments,474101,Purchase of Care,07/07/2021,3888707-I-21-1196526,"1,463.08",BUPA CARE HOMES LTD.
Adult and Health Services,Head of Adults,Third Party Payments,474101,Purchase of Care,07/07/2021,3888719-I-21-1196514,"97,555.17",CARE UK COMMUNITY PARTNERSHIPS LTD.
Adult and Health Services,Head of Adults,Third Party Payments,474101,Purchase of Care,07/07/2021,3888724-I-21-1196517,"13,431.52",CARELINE LIFESTYLES (UK) LTD.
Adult and Health Services,Head of Adults,Third Party Payments,474101,Purchase of Care,07/07/2021,3888727-I-21-1196271,"65,925.32",CAREWELL (HEALTH CARE) LTD.
Adult and Health Services,Head of Adults,Third Party Payments,470101,Purchase of Care,07/07/2021,3888779-I-21-1196452,"2,465.76",COUNTRYWIDE CARE HOMES (2) LTD.
Adult and Health Services,Head of Adults,Third Party Payments,470101,Purchase of Care,07/07/2021,3888789-I-21-1196476,"2,465.76",CROWN CARE IV LTD.
Adult and Health Services,Head of Adults,Third Party Payments,474101,Purchase of Care,07/07/2021,3888831-I-21-1196440,"78,132.18",DIPTON CARE HOME LTD.
Adult and Health Services,Head of Adults,Third Party Payments,473101,Purchase of Care,07/07/2021,3888841-I-21-1196186,"1,073.02",DURHAM ALLIANCE FOR COMMUNITY CARE.
Adult and Health Services,Head of Adults,Third Party Payments,470101,Purchase of Care,07/07/2021,3888870-I-21-1196488,"2,952.04",ELPHA LODGE RESIDENTIAL CARE HOME  LTD.
Adult and Health Services,Head of Adults,Third Party Payments,474101,Purchase of Care,07/07/2021,3888900-I-21-1196523,"61,151.55",FOUR SEASONS HOMES NO 1 LTD.
Adult and Health Services,Head of Adults,Third Party Payments,474101,Purchase of Care,07/07/2021,3888949-I-21-1196469,"104,933.62",HC-ONE BEAMISH LTD.
Adult and Health Services,Head of Adults,Third Party Payments,470101,Purchase of Care,07/07/2021,3888948-I-21-1196315,"71,806.42",HC-ONE BEAMISH LTD.
Adult and Health Services,Head of Adults,Third Party Payments,470101,Purchase of Care,07/07/2021,3888955-I-21-1196305,"55,015.92",HC-ONE LTD.
Adult and Health Services,Head of Adults,Third Party Payments,470101,Purchase of Care,07/07/2021,3888986-I-21-1196289,"28,532.82",IDEAL CARE (NORTH) LTD.
Adult and Health Services,Head of Adults,Third Party Payments,470101,Purchase of Care,07/07/2021,3889093-I-21-1196522,"95,520.27",LEAZES HALL CARE HOME LTD.
Adult and Health Services,Head of Adults,Third Party Payments,470101,Purchase of Care,07/07/2021,3889117-I-21-1196529,"2,280.00",LONGWOOD LODGE CARE LTD.
Adult and Health Services,Head of Adults,Third Party Payments,470101,Purchase of Care,07/07/2021,3889150-I-21-1196446,"36,634.64",MARIPOSA CARE GROUP LTD.
Adult and Health Services,Head of Adults,Third Party Payments,470101,Purchase of Care,07/07/2021,3889194-I-21-1196331,"2,364.00",MERIDIAN HEALTHCARE LTD.
Adult and Health Services,Head of Adults,Third Party Payments,472101,Purchase of Care,07/07/2021,3889274-I-21-1196153,"8,965.65",MYCHOICE HOMECARE LTD.
Adult and Health Services,Head of Adults,Third Party Payments,474101,Purchase of Care,07/07/2021,3889296-I-21-1196392,"8,835.22",NORTHLEA COURT.
Adult and Health Services,Head of Adults,Third Party Payments,470101,Purchase of Care,07/07/2021,3889318-I-21-1196457,"4,300.00",PATHWAYS CARE GROUP LTD.
Adult and Health Services,Head of Adults,Third Party Payments,474101,Purchase of Care,07/07/2021,3889356-I-21-1196374,"89,171.86",PREMIER CARE HOMES LTD.
Adult and Health Services,Head of Adults,Third Party Payments,472101,Purchase of Care,07/07/2021,3889358-I-21-1195778,"162,940.72",PREMIER COMMUNITY CARE LTD.
Adult and Health Services,Head of Adults,Third Party Payments,474101,Purchase of Care,07/07/2021,3889382-I-21-1196395,"7,548.96",RENAL HEALTH LTD.
Adult and Health Services,Head of Adults,Third Party Payments,470101,Purchase of Care,07/07/2021,3889398-I-21-1196319,"2,807.96",ROBERT PATTINSON.
Adult and Health Services,Head of Adults,Third Party Payments,470101,Purchase of Care,07/07/2021,3889405-I-21-1196389,"9,701.44",ROSEMOUNT TRUST.
Adult and Health Services,Head of Adults,Third Party Payments,470101,Purchase of Care,07/07/2021,3889406-I-21-1196405,"2,704.00",ROSEWOOD HR SERVICES LTD T/A ROSEWOOD HOUSE CARE HOME.
Adult and Health Services,Head of Adults,Third Party Payments,474101,Purchase of Care,07/07/2021,3889424-I-21-1196265,"5,274.40",SANCTUARY CARE (ENGLAND) LTD.
Adult and Health Services,Head of Adults,Third Party Payments,470101,Purchase of Care,07/07/2021,3889467-I-21-1196261,"2,670.88",ST CUTHBERTS CARE.
Adult and Health Services,Head of Adults,Third Party Payments,474101,Purchase of Care,07/07/2021,3889509-I-21-1196335,"83,388.17",TAMARIS HEALTHCARE (ENGLAND) LTD.
Adult and Health Services,Head of Adults,Third Party Payments,470101,Purchase of Care,07/07/2021,3889521-I-21-1196328,"17,930.34",THE ORDER OF THE GOOD & PERPETUAL SUCCOUR.
Adult and Health Services,Head of Adults,Third Party Payments,474101,Purchase of Care,07/07/2021,3889549-I-21-1196299,"3,804.04",UNDERWOOD HALL LTD.
Adult and Health Services,Head of Adults,Third Party Payments,470101,Purchase of Care,07/07/2021,3889581-I-21-1196491,"2,576.00",WILLOW VIEW CARE LTD.
Adult and Health Services,Head of Adults,Third Party Payments,474101,Purchase of Care,07/07/2021,3888624-I-21-1196334,"130,828.24",ALLIANCE CARE (TRENDLEWOOD) LTD.
Adult and Health Services,Head of Adults,Third Party Payments,470101,Purchase of Care,07/07/2021,3888632-I-21-1196455,"9,392.00",ANCHOR TRUST.
Adult and Health Services,Head of Adults,Third Party Payments,470101,Purchase of Care,07/07/2021,3888651-I-21-1196306,"51,869.62",ASCOT CARE NORTH EAST LTD..
Adult and Health Services,Head of Adults,Third Party Payments,470101,Purchase of Care,07/07/2021,3888653-I-21-1196359,"2,667.16",ASHBOURNE LODGE CARE HOME.
Adult and Health Services,Head of Adults,Third Party Payments,470101,Purchase of Care,07/07/2021,3888675-I-21-1196436,"5,082.43",BARCHESTER HEALTHCARE HOMES LTD.
Adult and Health Services,Head of Adults,Third Party Payments,470101,Purchase of Care,07/07/2021,3888676-I-21-1196318,"6,432.00",BARCHESTER HEALTHCARE HOMES LTD.
Adult and Health Services,Head of Adults,Third Party Payments,478101,Purchase of Care,07/07/2021,3888771-I-21-1196166,"13,498.56",COMMUNITY INTEGRATED CARE LTD.
Adult and Health Services,Head of Adults,Third Party Payments,472101,Purchase of Care,07/07/2021,3888772-I-21-1195654,702.00,CONFIDENCE CARE & SUPPORT LTD.
Adult and Health Services,Head of Adults,Third Party Payments,474101,Purchase of Care,07/07/2021,3888776-I-21-1196264,"4,144.52",COUNTRYWIDE CARE HOMES (2) LTD.
Adult and Health Services,Head of Adults,Third Party Payments,472101,Purchase of Care,07/07/2021,3888786-I-21-1196193,"81,267.00",CRESCENT HOMECARE LTD.
Adult and Health Services,Head of Adults,Third Party Payments,473101,Purchase of Care,07/07/2021,3888841-I-21-1196185,"2,058.76",DURHAM ALLIANCE FOR COMMUNITY CARE.
Adult and Health Services,Head of Adults,Third Party Payments,473101,Purchase of Care,07/07/2021,3888841-I-21-1196233,"1,032.32",DURHAM ALLIANCE FOR COMMUNITY CARE.
Adult and Health Services,Head of Adults,Third Party Payments,470101,Purchase of Care,07/07/2021,3888880-I-21-1196387,"2,670.88",EOTHEN HOMES LTD.
Adult and Health Services,Head of Adults,Third Party Payments,474101,Purchase of Care,07/07/2021,3888899-I-21-1196336,"66,763.41",FOUR SEASONS (NO 9) LTD.
Adult and Health Services,Head of Adults,Third Party Payments,474101,Purchase of Care,07/07/2021,3888910-I-21-1196518,"94,276.26",GAINFORD CARE HOMES LTD.
Adult and Health Services,Head of Adults,Third Party Payments,470101,Purchase of Care,07/07/2021,3888911-I-21-1196503,"50,415.38",GAINFORD CARE HOMES LTD.
Adult and Health Services,Head of Adults,Third Party Payments,470101,Purchase of Care,07/07/2021,3888912-I-21-1196296,"12,329.60",GAINFORD CARE HOMES LTD.
Adult and Health Services,Head of Adults,Third Party Payments,470101,Purchase of Care,07/07/2021,3888913-I-21-1196493,640.01,GAINFORD CARE HOMES LTD.
Adult and Health Services,Head of Adults,Third Party Payments,470101,Purchase of Care,07/07/2021,3888961-I-21-1196363,"2,187.48",HC-ONE OVAL LTD.
Adult and Health Services,Head of Adults,Third Party Payments,470101,Purchase of Care,07/07/2021,3888967-I-21-1196332,988.44,HEREFORDSHIRE CARE HOMES.
Adult and Health Services,Head of Adults,Third Party Payments,472101,Purchase of Care,07/07/2021,3888970-I-21-1195771,866.88,HETTON HOMECARE SERVICES.
Adult and Health Services,Head of Adults,Third Party Payments,470101,Purchase of Care,07/07/2021,3888987-I-21-1196480,"2,579.28",INDIGO CARE SERVICES LTD.
Adult and Health Services,Head of Adults,Third Party Payments,472101,Purchase of Care,07/07/2021,3889074-I-21-1196103,"265,324.58",KELLY PARK LTD..
Adult and Health Services,Head of Adults,Third Party Payments,472101,Purchase of Care,07/07/2021,3889074-I-21-1204744,"1,275.98",KELLY PARK LTD..
Adult and Health Services,Head of Adults,Third Party Payments,470101,Purchase of Care,07/07/2021,3889085-I-21-1196353,"41,358.54",LAMBTON HOUSE LTD.
Adult and Health Services,Head of Adults,Third Party Payments,470101,Purchase of Care,07/07/2021,3889099-I-21-1196400,"71,126.77",LEONARD CHESHIRE DISABILITY.
Adult and Health Services,Head of Adults,Third Party Payments,470101,Purchase of Care,07/07/2021,3889134-I-21-1196340,"10,372.70",MALHOTRA CARE HOMES LTD.
Adult and Health Services,Head of Adults,Third Party Payments,470101,Purchase of Care,07/07/2021,3889164-I-21-1196279,"82,088.76",MARTON CARE HOMES LTD T/A LANGLEY PARK CARE HOME.
Adult and Health Services,Head of Adults,Third Party Payments,472101,Purchase of Care,07/07/2021,3889307-I-21-1195772,"117,253.77",ORCHARD HOME CARE SERVICES LTD.
Adult and Health Services,Head of Adults,Third Party Payments,474101,Purchase of Care,07/07/2021,3889341-I-21-1196474,"31,003.32",PERFECT CARE LTD.
Adult and Health Services,Head of Adults,Third Party Payments,472101,Purchase of Care,07/07/2021,3889351-I-21-1196226,"10,592.37",POSSIBILITES NE LTD.
Adult and Health Services,Head of Adults,Third Party Payments,470101,Purchase of Care,07/07/2021,3889357-I-21-1196286,"29,331.90",PREMIER CARE HOMES LTD.
Adult and Health Services,Head of Adults,Third Party Payments,472101,Purchase of Care,07/07/2021,3889366-I-21-1195652,"11,991.33",QUALITY FIRST CARE SERVICES LTD.
Adult and Health Services,Head of Adults,Third Party Payments,472101,Purchase of Care,07/07/2021,3889436-I-21-1196110,"42,678.22",SECOND TO NONE CARE LTD.
Adult and Health Services,Head of Adults,Third Party Payments,474101,Purchase of Care,07/07/2021,3889455-I-21-1196396,"3,072.01",SOLEHAWK LTD T/A ASHTON COURT NURSING HOME.
Adult and Health Services,Head of Adults,Third Party Payments,474101,Purchase of Care,07/07/2021,3889456-I-21-1196465,"1,753.20",SOLEHAWK LTD T/A CRAIGIELEA CARE HOME.
Adult and Health Services,Head of Adults,Third Party Payments,470101,Purchase of Care,07/07/2021,3889473-I-21-1196393,"113,606.64",ST PHILIPS CARE LTD.
Adult and Health Services,Head of Adults,Third Party Payments,474101,Purchase of Care,07/07/2021,3889511-I-21-1196262,"15,803.68",TAMARIS HEALTHCARE (ENGLAND) LTD.
Adult and Health Services,Head of Adults,Third Party Payments,470101,Purchase of Care,07/07/2021,3889505-I-21-1196293,"2,254.92",TAMARIS HEALTHCARE (ENGLAND) LTD.
Adult and Health Services,Head of Adults,Third Party Payments,470101,Purchase of Care,07/07/2021,3889506-I-21-1196433,"114,407.50",TAMARIS HEALTHCARE (ENGLAND) LTD.
Adult and Health Services,Head of Adults,Third Party Payments,470101,Purchase of Care,07/07/2021,3889507-I-21-1196372,"54,881.91",TAMARIS HEALTHCARE (ENGLAND) LTD.
Adult and Health Services,Head of Adults,Third Party Payments,472101,Purchase of Care,07/07/2021,3889539-I-21-1195740,"17,340.32",TLC COMMUNITY SERVICES.
Adult and Health Services,Head of Adults,Third Party Payments,472101,Purchase of Care,07/07/2021,3889559-I-21-1196201,"27,494.15",VILLAGE CARE LTD.
Adult and Health Services,Head of Adults,Third Party Payments,470101,Purchase of Care,07/07/2021,3889571-I-21-1196390,"4,328.57",WELLBURN CARE HOMES LTD.
Adult and Health Services,Head of Adults,Third Party Payments,470101,Purchase of Care,07/07/2021,3889572-I-21-1196431,"2,533.28",WELLBURN CARE HOMES LTD.
Adult and Health Services,Head of Adults,Third Party Payments,474101,Purchase of Care,07/07/2021,3889574-I-21-1196402,"50,288.62",WEST HOUSE CARE HOME LTD.
Adult and Health Services,Head of Adults,Third Party Payments,478101,Purchase of Care,07/07/2021,3889590-I-21-1196171,"16,408.64",YS SERVICES LTD T/A EMBRACING CARE.
Adult and Health Services,Head of Adults,Third Party Payments,474101,Purchase of Care,07/07/2021,3888601-I-21-1196471,"62,370.46",AKARI CARE LTD.
Adult and Health Services,Head of Adults,Third Party Payments,470101,Purchase of Care,07/07/2021,3888629-I-21-1196291,"9,632.00",ANCHOR CAREHOMES LTD.
Adult and Health Services,Head of Adults,Third Party Payments,474101,Purchase of Care,07/07/2021,3888660-I-21-1196347,"2,400.00",ASTORIA HEALTHCARE LTD.
Adult and Health Services,Head of Adults,Third Party Payments,474101,Purchase of Care,07/07/2021,3888677-I-21-1196309,"91,008.09",BARCHESTER HEALTHCARE HOMES LTD.
Adult and Health Services,Head of Adults,Third Party Payments,470101,Purchase of Care,07/07/2021,3888673-I-21-1196295,"33,037.32",BARCHESTER HEALTHCARE HOMES LTD.
Adult and Health Services,Head of Adults,Third Party Payments,470101,Purchase of Care,07/07/2021,3888678-I-21-1196321,"7,420.29",BARCHESTER HEALTHCARE HOMES LTD.
Adult and Health Services,Head of Adults,Third Party Payments,470101,Purchase of Care,07/07/2021,3888708-I-21-1196419,"6,898.57",BURLINGTON CARE LTD.
Adult and Health Services,Head of Adults,Third Party Payments,472101,Purchase of Care,07/07/2021,3888713-I-21-1196198,"2,958.81",CARE MATTERS (HOMECARE) LTD.
Adult and Health Services,Head of Adults,Third Party Payments,470101,Purchase of Care,07/07/2021,3888764-I-21-1196404,"2,360.00",CLEVEDEN CARE LTD T/A TEESDALE LODGE NURSING HOME.
Adult and Health Services,Head of Adults,Third Party Payments,470101,Purchase of Care,07/07/2021,3888780-I-21-1196423,"103,904.16",COUNTRYWIDE CARE HOMES (2) LTD.
Adult and Health Services,Head of Adults,Third Party Payments,474101,Purchase of Care,07/07/2021,3888783-I-21-1196371,"35,446.00",CRAIGARRAN LTD.
Adult and Health Services,Head of Adults,Third Party Payments,470101,Purchase of Care,07/07/2021,3888946-I-21-1196317,"69,049.87",HC-ONE BEAMISH LTD.
Adult and Health Services,Head of Adults,Third Party Payments,474101,Purchase of Care,07/07/2021,3888950-I-21-1196270,"67,365.10",HC-ONE LTD.
Adult and Health Services,Head of Adults,Third Party Payments,474101,Purchase of Care,07/07/2021,3888952-I-21-1196434,"67,194.10",HC-ONE LTD.
Adult and Health Services,Head of Adults,Third Party Payments,470101,Purchase of Care,07/07/2021,3888958-I-21-1196466,"92,260.63",HC-ONE LTD.
Adult and Health Services,Head of Adults,Third Party Payments,474101,Purchase of Care,07/07/2021,3888959-I-21-1196479,"3,473.16",HC-ONE LTD..
Adult and Health Services,Head of Adults,Third Party Payments,474101,Purchase of Care,07/07/2021,3889145-I-21-1196298,"64,653.01",MARIA MALLABAND CARE GROUP LTD.
Adult and Health Services,Head of Adults,Third Party Payments,470101,Purchase of Care,07/07/2021,3889163-I-21-1196453,"9,600.00",MARTON CARE HOMES LTD T/A GROSVENOR PARK CARE HOME.
Adult and Health Services,Head of Adults,Third Party Payments,474101,Purchase of Care,07/07/2021,3889166-I-21-1196399,"55,924.08",MARTON CARE HOMES LTD T/A ST HELENS CARE HOME.
Adult and Health Services,Head of Adults,Third Party Payments,473101,Purchase of Care,07/07/2021,3889302-I-21-1204745,"3,733.74",OBJECT QUEST LTD.
Adult and Health Services,Head of Adults,Third Party Payments,470101,Purchase of Care,07/07/2021,3889362-I-21-1196367,"3,600.00",PRIDE CARE HOMES PETERBOROUGH LTD.
Adult and Health Services,Head of Adults,Third Party Payments,472101,Purchase of Care,07/07/2021,3889363-I-21-1195694,"9,745.76",PRIORITISING PEOPLE`S LIVES LTD.
Adult and Health Services,Head of Adults,Third Party Payments,470101,Purchase of Care,07/07/2021,3889364-I-21-1196366,"2,416.00",QUALIA CARE LTD T/A BIRCHLEY HALL.
Adult and Health Services,Head of Adults,Third Party Payments,470101,Purchase of Care,07/07/2021,3889367-I-21-1196537,"3,849.16",QUARRIERS.
Adult and Health Services,Head of Adults,Third Party Payments,470101,Purchase of Care,07/07/2021,3889397-I-21-1196444,"44,839.74",ROBERT PATTINSON.
Adult and Health Services,Head of Adults,Third Party Payments,470101,Purchase of Care,07/07/2021,3889409-I-21-1196429,"2,431.52",RUNWOOD HOMES LTD.
Adult and Health Services,Head of Adults,Third Party Payments,470101,Purchase of Care,07/07/2021,3889426-I-21-1196379,"4,656.00",SANCTUARY CARE (ENGLAND) LTD.
Adult and Health Services,Head of Adults,Third Party Payments,474101,Purchase of Care,07/07/2021,3889434-I-21-1196342,"58,134.48",SEAHAM CARE LTD.
Adult and Health Services,Head of Adults,Third Party Payments,474101,Purchase of Care,07/07/2021,3889471-I-21-1196441,"2,360.00",ST MARTIN`S CARE LTD.
Adult and Health Services,Head of Adults,Third Party Payments,470101,Purchase of Care,07/07/2021,3889472-I-21-1196515,"71,096.58",ST PHILIPS CARE LTD.
Adult and Health Services,Head of Adults,Third Party Payments,474101,Purchase of Care,07/07/2021,3889475-I-21-1196478,"4,574.48",STAINTON LODGE CARE CENTRE.
Adult and Health Services,Head of Adults,Third Party Payments,472101,Purchase of Care,07/07/2021,3889486-I-21-1196234,"81,620.60",SUPPORTIVE SRC LTD.
Adult and Health Services,Head of Adults,Third Party Payments,472101,Purchase of Care,07/07/2021,3889519-I-21-1196203,"23,565.72",THE HUMAN SUPPORT GROUP LTD.
Adult and Health Services,Head of Adults,Third Party Payments,470101,Purchase of Care,07/07/2021,3889522-2678973,"12,844.92",THE PERCY HEDLEY FOUNDATION.
Adult and Health Services,Head of Adults,Third Party Payments,470101,Purchase of Care,07/07/2021,3889522-I-21-1196417,"50,559.06",THE PERCY HEDLEY FOUNDATION.
Adult and Health Services,Head of Adults,Third Party Payments,470101,Purchase of Care,07/07/2021,3889538-I-21-1196324,"2,360.00",TL CARE LTD.
Adult and Health Services,Head of Adults,Third Party Payments,474101,Purchase of Care,07/07/2021,3889556-I-21-1196337,"5,686.40",VICTORIA HOUSE.
Adult and Health Services,Head of Adults,Third Party Payments,470101,Purchase of Care,07/07/2021,3888360-I-21-1196343,"80,857.48",A CHARLES THOMAS (CARE) LTD.
Adult and Health Services,Head of Adults,Third Party Payments,472101,Purchase of Care,07/07/2021,3888625-I-21-1196195,"5,342.40",ALLIED HEALTH-SERVICES LTD T/A ALLIED HEALTHCARE.
Adult and Health Services,Head of Adults,Third Party Payments,474101,Purchase of Care,07/07/2021,3888670-I-21-1196408,"1,900.00",BARCHESTER HEALTHCARE HOMES LTD.
Adult and Health Services,Head of Adults,Third Party Payments,470101,Purchase of Care,07/07/2021,3888705-I-21-1196532,"59,266.27",BROOMHOUSE CARE LTD.
Adult and Health Services,Head of Adults,Third Party Payments,470101,Purchase of Care,07/07/2021,3888715-I-21-1196386,"2,496.00",CARE UK COMMUNITY PARTNERSHIPS LTD.
Adult and Health Services,Head of Adults,Third Party Payments,470101,Purchase of Care,07/07/2021,3888716-I-21-1196360,"5,614.91",CARE UK COMMUNITY PARTNERSHIPS LTD.
Adult and Health Services,Head of Adults,Third Party Payments,470101,Purchase of Care,07/07/2021,3888720-I-21-1196349,"33,561.33",CARE UK COMMUNITY PARTNERSHIPS LTD.
Adult and Health Services,Head of Adults,Third Party Payments,472101,Purchase of Care,07/07/2021,3888721-I-21-1195777,"3,174.62",CARE VANTAGE LTD.
Adult and Health Services,Head of Adults,Third Party Payments,474101,Purchase of Care,07/07/2021,3888726-I-21-1196375,"20,960.60",CARELINE LIFESTYLES.
Adult and Health Services,Head of Adults,Third Party Payments,470101,Purchase of Care,07/07/2021,3888778-I-21-1196333,"42,518.44",COUNTRYWIDE CARE HOMES (2) LTD.
Adult and Health Services,Head of Adults,Third Party Payments,474101,Purchase of Care,07/07/2021,3888787-I-21-1196401,"52,809.55",CROFT HOUSE (CARE) LTD.
Adult and Health Services,Head of Adults,Third Party Payments,474101,Purchase of Care,07/07/2021,3888788-I-21-1196266,"1,779.20",CROWN CARE IV LTD T/A BALMORAL COURT.
Adult and Health Services,Head of Adults,Third Party Payments,474101,Purchase of Care,07/07/2021,3888796-I-21-1196307,"50,607.99",D3 CARE LTD.
Adult and Health Services,Head of Adults,Third Party Payments,474101,Purchase of Care,07/07/2021,3888840-I-21-1196312,"9,647.12",DUNLUCE HOUSE T/A BOHILL BUNGALOWS.
Adult and Health Services,Head of Adults,Third Party Payments,470101,Purchase of Care,07/07/2021,3888862-I-21-1196300,"42,758.66",ELBA CARE LTD.
Adult and Health Services,Head of Adults,Third Party Payments,470101,Purchase of Care,07/07/2021,3888879-I-21-1196460,"1,276.68",EOTHEN HOMES LTD.
Adult and Health Services,Head of Adults,Third Party Payments,470101,Purchase of Care,07/07/2021,3888884-I-21-1196530,"109,059.22",ESSENTIAL CARE & SUPPORT LTD.
Adult and Health Services,Head of Adults,Third Party Payments,470101,Purchase of Care,07/07/2021,3888932-I-21-1196502,"2,444.00",GREATHAM HOSPITAL BROTHER HOUSE.
Adult and Health Services,Head of Adults,Third Party Payments,470101,Purchase of Care,07/07/2021,3888944-I-21-1196288,"118,479.41",HC-ONE BEAMISH LTD.
Adult and Health Services,Head of Adults,Third Party Payments,470101,Purchase of Care,07/07/2021,3888945-I-21-1196498,"2,558.44",HC-ONE BEAMISH LTD.
Adult and Health Services,Head of Adults,Third Party Payments,470101,Purchase of Care,07/07/2021,3888943-I-21-1196540,"1,156.52",HC-ONE LTD (ASHTON GRANGE CARE HOME).
Adult and Health Services,Head of Adults,Third Party Payments,470101,Purchase of Care,07/07/2021,3888951-I-21-1196428,"2,807.96",HC-ONE LTD.
Adult and Health Services,Head of Adults,Third Party Payments,470101,Purchase of Care,07/07/2021,3888956-I-21-1196272,"81,305.81",HC-ONE LTD.
Adult and Health Services,Head of Adults,Third Party Payments,470101,Purchase of Care,07/07/2021,3888960-I-21-1196365,"2,169.32",HC-ONE OVAL LTD.
Adult and Health Services,Head of Adults,Third Party Payments,472101,Purchase of Care,07/07/2021,3888965-I-21-1195690,"1,797.60",HELPING HANDS HOME CARE.
Adult and Health Services,Head of Adults,Third Party Payments,474101,Purchase of Care,07/07/2021,3888966-I-21-1196470,"1,234.40",HENDON PIF LTD T/A ASHWOOD COURT CARE HOME.
Adult and Health Services,Head of Adults,Third Party Payments,470101,Purchase of Care,07/07/2021,3888968-I-21-1196437,"2,579.28",HERRINGTON MEWS LTD.
Adult and Health Services,Head of Adults,Third Party Payments,478101,Purchase of Care,07/07/2021,3888972-I-21-1196132,"8,460.00",HIGHLEA CARE LTD.
Adult and Health Services,Head of Adults,Third Party Payments,474101,Purchase of Care,07/07/2021,3888975-I-21-1196527,"72,286.86",HILL CARE 3 LTD.
Adult and Health Services,Head of Adults,Third Party Payments,470101,Purchase of Care,07/07/2021,3889086-I-21-1196326,"45,775.40",LANGLEY HOUSE CARE HOME LTD.
Adult and Health Services,Head of Adults,Third Party Payments,474101,Purchase of Care,07/07/2021,3889104-I-21-1196443,"4,878.72",LIFESTYLE (ABBEY CARE) LTD.
Adult and Health Services,Head of Adults,Third Party Payments,474101,Purchase of Care,07/07/2021,3889133-I-21-1196524,"84,615.63",MALHOTRA CARE HOMES LTD.
Adult and Health Services,Head of Adults,Third Party Payments,474101,Purchase of Care,07/07/2021,3889162-I-21-1196511,"7,864.72",MARTON CARE HOMES LTD T/A ELIZABETH FLEMING CARE HOME.
Adult and Health Services,Head of Adults,Third Party Payments,474101,Purchase of Care,07/07/2021,3889192-I-21-1196477,"2,090.84",MEMORY LANE CARE HOMES LTD.
Adult and Health Services,Head of Adults,Third Party Payments,470101,Purchase of Care,07/07/2021,3889299-I-21-1195651,"7,363.25",NOVA PAYROLL MANAGEMENT SERVICES LTD T/A PIN POINT RECRUITMENT.
Adult and Health Services,Head of Adults,Third Party Payments,474101,Purchase of Care,07/07/2021,3889349-I-21-1196403,"78,007.60",POPULAR CARE LTD..
Adult and Health Services,Head of Adults,Third Party Payments,474101,Purchase of Care,07/07/2021,3889361-I-21-1196311,"2,485.16",PRESTIGE CARE (YEW TREE) LTD.
Adult and Health Services,Head of Adults,Third Party Payments,474101,Purchase of Care,07/07/2021,3889423-I-21-1196369,"104,397.19",SANCTUARY CARE (ENGLAND) LTD.
Adult and Health Services,Head of Adults,Third Party Payments,470101,Purchase of Care,07/07/2021,3889422-I-21-1196259,"72,530.17",SANCTUARY CARE (ENGLAND) LTD.
Adult and Health Services,Head of Adults,Third Party Payments,474101,Purchase of Care,07/07/2021,3889433-I-21-1196273,"54,100.81",SEAHAM CARE LTD.
Adult and Health Services,Head of Adults,Third Party Payments,474101,Purchase of Care,07/07/2021,3889485-I-21-1196439,"27,339.98",SUNNY OKUKPOLOR HUMPHREYS.
Adult and Health Services,Head of Adults,Third Party Payments,470101,Purchase of Care,07/07/2021,3889517-I-21-1196531,"67,158.88",THE HAWTHORNS LODGE LTD.
Adult and Health Services,Head of Adults,Third Party Payments,473101,Purchase of Care,07/07/2021,3889518-I-21-1195769,"2,879.08",THE HOSPITAL OF GOD AT GREATHAM.
Adult and Health Services,Head of Adults,Third Party Payments,470101,Purchase of Care,07/07/2021,3889522-2678974,"3,808.60",THE PERCY HEDLEY FOUNDATION.
Adult and Health Services,Head of Adults,Third Party Payments,470101,Purchase of Care,07/07/2021,3889524-I-21-1196499,"2,850.56",THE SALVATION ARMY T/A VILLA ADASTRA CARE HOME.
Adult and Health Services,Head of Adults,Third Party Payments,470101,Purchase of Care,07/07/2021,3888631-I-21-1196339,"74,059.30",ANCHOR HANOVER GROUP.
Adult and Health Services,Head of Adults,Third Party Payments,470101,Purchase of Care,07/07/2021,3888638-I-21-1196461,"2,176.64",ANDREW PASS.
Adult and Health Services,Head of Adults,Third Party Payments,472101,Purchase of Care,07/07/2021,3888648-I-21-1195656,955.50,APM CLEANING LTD.
Adult and Health Services,Head of Adults,Third Party Payments,472101,Purchase of Care,07/07/2021,3888650-I-21-1195741,"3,413.76",ASCOT CARE AGENCY LTD.
Adult and Health Services,Head of Adults,Third Party Payments,470101,Purchase of Care,07/07/2021,3888652-I-21-1196459,"4,080.00",ASHBERRY HEALTH CARE LTD T/A MOORHOUSE NURSING HOME.
Adult and Health Services,Head of Adults,Third Party Payments,474101,Purchase of Care,07/07/2021,3888673-I-21-1196376,"15,343.39",BARCHESTER HEALTHCARE HOMES LTD.
Adult and Health Services,Head of Adults,Third Party Payments,470101,Purchase of Care,07/07/2021,3888671-I-21-1196497,"4,400.00",BARCHESTER HEALTHCARE HOMES LTD.
Adult and Health Services,Head of Adults,Third Party Payments,470101,Purchase of Care,07/07/2021,3888674-I-21-1196323,"9,798.00",BARCHESTER HEALTHCARE HOMES LTD.
Adult and Health Services,Head of Adults,Third Party Payments,472101,Purchase of Care,07/07/2021,3888693-I-21-1195695,"19,784.10",BLOSSOM HOME CARE.
Adult and Health Services,Head of Adults,Third Party Payments,470101,Purchase of Care,07/07/2021,3888696-I-21-1196345,"70,580.22",BONDCARE WILLINGTON LTD.
Adult and Health Services,Head of Adults,Third Party Payments,470101,Purchase of Care,07/07/2021,3888694-I-21-1196200,"3,549.78",BONDCARE WILLINGTON LTD.
Adult and Health Services,Head of Adults,Third Party Payments,470101,Purchase of Care,07/07/2021,3888717-I-21-1196406,"28,191.24",CARE UK COMMUNITY PARTNERSHIPS LTD.
Adult and Health Services,Head of Adults,Third Party Payments,470101,Purchase of Care,07/07/2021,3888718-I-21-1196276,"2,397.36",CARE UK COMMUNITY PARTNERSHIPS LTD.
Adult and Health Services,Head of Adults,Third Party Payments,470101,Purchase of Care,07/07/2021,3888736-I-21-1196325,"27,523.16",CASTLEBANK CARE HOME LTD.
Adult and Health Services,Head of Adults,Third Party Payments,470101,Purchase of Care,07/07/2021,3888785-I-21-1195693,"1,141.40",CREATIVE SUPPORT LTD.
Adult and Health Services,Head of Adults,Third Party Payments,472101,Purchase of Care,07/07/2021,3888797-I-21-1204761,"420,723.58",DALE CARE LTD.
Adult and Health Services,Head of Adults,Third Party Payments,470101,Purchase of Care,07/07/2021,3888827-I-21-1196519,"44,397.92",DEVONSHIRE HOUSE CARE LTD.
Adult and Health Services,Head of Adults,Third Party Payments,473101,Purchase of Care,07/07/2021,3888841-I-21-1195643,"2,636.10",DURHAM ALLIANCE FOR COMMUNITY CARE.
Adult and Health Services,Head of Adults,Third Party Payments,473101,Purchase of Care,07/07/2021,3888841-I-21-1196184,"2,369.55",DURHAM ALLIANCE FOR COMMUNITY CARE.
Adult and Health Services,Head of Adults,Third Party Payments,474101,Purchase of Care,07/07/2021,3888843-I-21-1196438,"91,992.09",DURHAM CARELINE LTD.
Adult and Health Services,Head of Adults,Third Party Payments,474101,Purchase of Care,07/07/2021,3888849-I-21-1196377,"2,132.76",EAST CLEVELAND M S HOME.
Adult and Health Services,Head of Adults,Third Party Payments,470101,Purchase of Care,07/07/2021,3888901-I-21-1196528,"2,667.16",FOUR SEASONS T/A MAPLE LODGE CARE HOME (SUNDERLAND).
Adult and Health Services,Head of Adults,Third Party Payments,474101,Purchase of Care,07/07/2021,3888914-I-21-1196303,"83,257.07",GAINFORD CARE HOMES LTD.
Adult and Health Services,Head of Adults,Third Party Payments,472101,Purchase of Care,07/07/2021,3888935-I-21-1196109,"1,027.00",GUINNESS CARE.
Adult and Health Services,Head of Adults,Third Party Payments,470101,Purchase of Care,07/07/2021,3888947-I-21-1196414,"96,574.65",HC-ONE BEAMISH LTD.
Adult and Health Services,Head of Adults,Third Party Payments,474101,Purchase of Care,07/07/2021,3888954-I-21-1196269,"60,655.60",HC-ONE LTD.
Adult and Health Services,Head of Adults,Third Party Payments,470101,Purchase of Care,07/07/2021,3888953-I-21-1196346,"70,962.93",HC-ONE LTD.
Adult and Health Services,Head of Adults,Third Party Payments,470101,Purchase of Care,07/07/2021,3888957-I-21-1196370,"45,526.90",HC-ONE LTD.
Adult and Health Services,Head of Adults,Third Party Payments,474101,Purchase of Care,07/07/2021,3888959-I-21-1196277,"11,573.76",HC-ONE LTD..
Adult and Health Services,Head of Adults,Third Party Payments,474101,Purchase of Care,07/07/2021,3889079-I-21-1196508,"1,598.92",KEY HEALTHCARE (OPERATIONS) LTD.
Adult and Health Services,Head of Adults,Third Party Payments,470101,Purchase of Care,07/07/2021,3889165-I-21-1196322,"2,440.00",MARTON CARE HOMES LTD T/A RIVERSIDE VIEW CARE HOME.
Adult and Health Services,Head of Adults,Third Party Payments,472101,Purchase of Care,07/07/2021,3889204-I-21-1196104,"28,067.26",MIDDLETON CARE LTD.
Adult and Health Services,Head of Adults,Third Party Payments,472101,Purchase of Care,07/07/2021,3889284-I-21-1196114,"5,298.72",NEWCROSS HEALTHCARE SOLUTIONS LTD.
Adult and Health Services,Head of Adults,Third Party Payments,474101,Purchase of Care,07/07/2021,3889302-I-21-1196398,"62,794.12",OBJECT QUEST LTD.
Adult and Health Services,Head of Adults,Third Party Payments,470101,Purchase of Care,07/07/2021,3889337-I-21-1196391,"2,720.00",PEARLCARE (KENDAL) LTD T/A GILLING REANE CARE HOME.
Adult and Health Services,Head of Adults,Third Party Payments,474101,Purchase of Care,07/07/2021,3889348-I-21-1196472,"4,696.00",POPULAR CARE LTD.
Adult and Health Services,Head of Adults,Third Party Payments,474101,Purchase of Care,07/07/2021,3889374-I-21-1196268,"56,838.23",RAYSON HOMES LTD.
Adult and Health Services,Head of Adults,Third Party Payments,472101,Purchase of Care,07/07/2021,3889381-I-21-1196155,"2,215.20",RELIEF PROFESSIONALS GROUP LTD.
Adult and Health Services,Head of Adults,Third Party Payments,470101,Purchase of Care,07/07/2021,3889403-I-21-1196482,"74,526.61",ROSEBERRY CARE CENTRES GB LTD.
Adult and Health Services,Head of Adults,Third Party Payments,478101,Purchase of Care,07/07/2021,3889429-I-21-1196095,"1,800.00",SANCTUARY HOME CARE LTD.
Adult and Health Services,Head of Adults,Third Party Payments,470101,Purchase of Care,07/07/2021,3889439-I-21-1196297,"131,901.66",SHAFTESBURY CARE GROUP LTD.
Adult and Health Services,Head of Adults,Third Party Payments,472101,Purchase of Care,07/07/2021,3889443-I-21-1195744,"15,819.00",SHEENA MILES CARE SERVICES LTD.
Adult and Health Services,Head of Adults,Third Party Payments,470101,Purchase of Care,07/07/2021,3889454-I-21-1196260,"7,057.36",SLW LTD.
Adult and Health Services,Head of Adults,Third Party Payments,472101,Purchase of Care,07/07/2021,3889462-I-21-1195776,574.60,SPRINGFIELD HOMECARE SERVICES LTD.
Adult and Health Services,Head of Adults,Third Party Payments,474101,Purchase of Care,07/07/2021,3889463-I-21-1196310,"3,048.80",SPYNIE CARE HOME.
Adult and Health Services,Head of Adults,Third Party Payments,470101,Purchase of Care,07/07/2021,3889470-I-21-1196397,"2,204.00",ST MARTIN`S CARE LTD.
Adult and Health Services,Head of Adults,Third Party Payments,474101,Purchase of Care,07/07/2021,3889508-I-21-1196394,"111,639.93",TAMARIS HEALTHCARE (ENGLAND) LTD.
Adult and Health Services,Head of Adults,Third Party Payments,470101,Purchase of Care,07/07/2021,3889515-I-21-1196425,"15,764.84",THE FIELDS CARE HOME.
Adult and Health Services,Head of Adults,Third Party Payments,470101,Purchase of Care,07/07/2021,3889522-2678975,"3,396.28",THE PERCY HEDLEY FOUNDATION.
Adult and Health Services,Head of Adults,Third Party Payments,474101,Purchase of Care,07/07/2021,3889575-I-21-1196521,"93,831.16",WEST LODGE CARE HOMES LTD.
Adult and Health Services,Head of Adults,Third Party Payments,470101,Purchase of Care,07/07/2021,3889580-I-21-1196520,"58,584.86",WILLIAMS & SPENCELEY LTD.
Adult and Health Services,Head of Adults,Third Party Payments,472101,Purchase of Care,07/07/2021,3888735-I-21-1196227,"26,602.12",CASTLE CARE TEESDALE LTD.
Adult and Health Services,Head of Adults,Third Party Payments,474101,Purchase of Care,07/07/2021,3888844-I-21-1196302,"61,394.96",DURHAM CARELINE LTD.
Adult and Health Services,Head of Adults,Third Party Payments,470101,Purchase of Care,07/07/2021,3888888-I-21-1196407,977.14,EXCLUSIVE CARE GROUP T/A EASTBOURNE CARE HOME.
Adult and Health Services,Head of Adults,Third Party Payments,470101,Purchase of Care,07/07/2021,3889152-I-21-1196513,"87,645.50",MARIPOSA CARE LTD.
Adult and Health Services,Head of Adults,Third Party Payments,470101,Purchase of Care,07/07/2021,3889447-I-21-1196496,"38,442.60",SHERBURN HOUSE CHARITY.
Adult and Health Services,Commissioning inc Supporting People,Third Party Payments,479111,Purchase of Care,07/07/2021,3888198-4488,"11,757.00",MAIN - TAKING AUTISM PERSONALLY.
Adult and Health Services,Commissioning inc Supporting People,Third Party Payments,479101,Purchase of Care,07/07/2021,3888108-JUN21-0043,"55,500.00",FAMILY ACTION T/A PAC-UK LTD.
Adult and Health Services,Head of Adults,Third Party Payments,470101,Purchase of Care,07/07/2021,3888655-I-21-1196533,"1,324.72",ASPIRE CARE GROUP T/A GRASMERE LODGE.
Adult and Health Services,Head of Adults,Third Party Payments,478101,Purchase of Care,07/07/2021,3888659-I-21-1195754,"5,489.64",ASPIRE HEALTHCARE LTD.
Adult and Health Services,Head of Adults,Third Party Payments,474101,Purchase of Care,07/07/2021,3888662-I-21-1196442,"1,539.20",ATLAS CARE HOMES LTD.
Adult and Health Services,Head of Adults,Third Party Payments,474101,Purchase of Care,07/07/2021,3888795-I-21-1196525,"15,244.92",D3 CARE LTD.
Adult and Health Services,Head of Adults,Third Party Payments,474101,Purchase of Care,07/07/2021,3888848-I-21-1196382,"2,625.48",EAST CHESHIRE HOUSING CONSORTIUM LTD.
Adult and Health Services,Head of Adults,Third Party Payments,473101,Purchase of Care,07/07/2021,3888974-I-21-1196175,511.44,HILL CARE 3 LTD.
Adult and Health Services,Head of Adults,Third Party Payments,474101,Purchase of Care,07/07/2021,3889083-I-21-1196504,"42,454.36",KINGSWAY CARE HOME LTD.
Adult and Health Services,Head of Adults,Third Party Payments,478101,Purchase of Care,07/07/2021,3889353-I-21-1196125,"18,672.28",POTENSIAL LTD.
Adult and Health Services,Head of Adults,Third Party Payments,470101,Purchase of Care,07/07/2021,3889468-I-21-1196464,"2,722.00",ST CUTHBERTS CARE.
Adult and Health Services,Head of Adults,Third Party Payments,478101,Purchase of Care,07/07/2021,3889569-I-21-1196220,600.00,WADDINGTON STREET CENTRE LTD.
Adult and Health Services,Head of Adults,Third Party Payments,470101,Purchase of Care,07/07/2021,3888858-I-21-1196450,"10,487.76",EDUCATION & SERVICES FOR PEOPLE WITH AUTISM LTD (ESPA).
Adult and Health Services,Head of Adults,Third Party Payments,478101,Purchase of Care,07/07/2021,3888978-I-21-1196191,645.00,HOME GROUP LTD.
Adult and Health Services,Head of Adults,Third Party Payments,478101,Purchase of Care,07/07/2021,3889590-I-21-1196252,"4,937.76",YS SERVICES LTD T/A EMBRACING CARE.
Adult and Health Services,Head of Adults,Third Party Payments,478101,Purchase of Care,07/07/2021,3889295-I-21-1196168,"1,563.44",NORTHERN LIFE CARE LTD T/A UBU.
Adult and Health Services,Head of Adults,Third Party Payments,470101,Purchase of Care,07/07/2021,3889384-I-21-1196449,"10,659.56",RESOLVE (CARE NORTHERN) LTD..
Adult and Health Services,Head of Adults,Third Party Payments,474101,Purchase of Care,07/07/2021,3888725-I-21-1196381,"8,298.76",CARELINE LIFESTYLES (UK) LTD.
Adult and Health Services,Head of Adults,Third Party Payments,470101,Purchase of Care,07/07/2021,3888723-I-21-1196512,"3,676.96",CARELINE LIFESTYLES (UK) LTD.
Adult and Health Services,Head of Adults,Third Party Payments,478101,Purchase of Care,07/07/2021,3888771-I-21-1196149,"20,341.60",COMMUNITY INTEGRATED CARE LTD.
Adult and Health Services,Head of Adults,Third Party Payments,478101,Purchase of Care,07/07/2021,3888857-I-21-1196131,"1,543.48",EDUCATION & SERVICES FOR PEOPLE WITH AUTISM LTD (ESPA).
Adult and Health Services,Head of Adults,Third Party Payments,478101,Purchase of Care,07/07/2021,3888883-I-21-1196076,"9,120.32",ESSENTIAL CARE & SUPPORT LTD.
Adult and Health Services,Head of Adults,Third Party Payments,470101,Purchase of Care,07/07/2021,3888916-I-21-1196468,"84,608.05",GAINFORD CARE HOMES LTD.
Adult and Health Services,Head of Adults,Third Party Payments,474101,Purchase of Care,07/07/2021,3889427-I-21-1196510,"166,865.51",SANCTUARY CARE (ENGLAND) LTD.
Adult and Health Services,Head of Adults,Third Party Payments,470101,Purchase of Care,07/07/2021,3888714-I-21-1196495,"5,256.00",CARE UK COMMUNITY PARTNERSHIPS LTD.
Adult and Health Services,Head of Adults,Third Party Payments,472101,Purchase of Care,07/07/2021,3888763-I-21-1195742,"1,447.40",CLASSIC RESOURCES UK LTD T/A CLASSIC RESOURCES HOMECARE.
Adult and Health Services,Head of Adults,Third Party Payments,472101,Purchase of Care,07/07/2021,3888850-I-21-1195635,"26,760.57",EBONEY HOME CARE LTD.
Adult and Health Services,Head of Adults,Third Party Payments,470101,Purchase of Care,07/07/2021,3889214-I-21-1204751,"30,919.20",MOONRISE 24HR RECRUITMENT LTD.
Adult and Health Services,Head of Adults,Third Party Payments,470101,Purchase of Care,07/07/2021,3889340-I-21-1195692,"175,320.90",PERFECT CARE LTD.
Adult and Health Services,Head of Adults,Third Party Payments,470101,Purchase of Care,07/07/2021,3889449-I-21-1196384,"24,166.98",SHOTLEY PARK HOMES FOR THE ELDERLY LTD.
Adult and Health Services,Head of Adults,Third Party Payments,470101,Purchase of Care,07/07/2021,3889464-I-21-1196473,"64,612.52",ST ANDREWS MPS LTD.
Adult and Health Services,Head of Adults,Third Party Payments,472101,Purchase of Care,07/07/2021,3889519-I-21-1196108,"83,258.38",THE HUMAN SUPPORT GROUP LTD.
Adult and Health Services,Head of Adults,Third Party Payments,470101,Purchase of Care,07/07/2021,3889545-I-21-1196341,"77,066.36",TRIMS GYM LTD.
Adult and Health Services,Head of Adults,Third Party Payments,472101,Purchase of Care,07/07/2021,3888784-I-21-1195773,882.00,CREATIVE SUPPORT LTD.
Adult and Health Services,Head of Adults,Third Party Payments,478101,Purchase of Care,07/07/2021,3889417-I-21-1196133,"1,144.52",SALVATION ARMY HOUSING ASSOCIATION (SAHA).
Adult and Health Services,Head of Adults,Third Party Payments,478101,Purchase of Care,07/07/2021,3889590-I-21-1195669,"17,385.20",YS SERVICES LTD T/A EMBRACING CARE.
Adult and Health Services,Head of Adults,Third Party Payments,470101,Purchase of Care,07/07/2021,3889459-I-21-1196285,"23,510.97",SOVEREIGN CARE (NORTH EAST) LTD.
Adult and Health Services,Head of Adults,Third Party Payments,473101,Purchase of Care,07/07/2021,3889570-I-21-1195732,"1,685.42",WEAR VALLEY ANGLING CIC.
Adult and Health Services,Head of Adults,Third Party Payments,478101,Purchase of Care,07/07/2021,3888592-I-21-1196156,"1,220.00",ACTION DEAFNESS LTD.
Adult and Health Services,Head of Adults,Third Party Payments,470101,Purchase of Care,07/07/2021,3888656-I-21-1196350,"10,665.16",ASPIRE CARE GROUP.
Adult and Health Services,Head of Adults,Third Party Payments,478101,Purchase of Care,07/07/2021,3888684-I-21-1195745,"15,289.80",BEECHFIELD CARE & SUPPORT LTD.
Adult and Health Services,Head of Adults,Third Party Payments,470101,Purchase of Care,07/07/2021,3888695-I-21-1195691,"1,864.96",BONDCARE WILLINGTON LTD.
Adult and Health Services,Head of Adults,Third Party Payments,470101,Purchase of Care,07/07/2021,3888696-I-21-1195733,"2,077.92",BONDCARE WILLINGTON LTD.
Adult and Health Services,Head of Adults,Third Party Payments,478101,Purchase of Care,07/07/2021,3888697-I-21-1196244,"47,634.32",BONDCARE WILLINGTON LTD.
Adult and Health Services,Head of Adults,Third Party Payments,470101,Purchase of Care,07/07/2021,3888698-I-21-1196330,"4,412.00",BOWDEN DERRA PARK LTD.
Adult and Health Services,Head of Adults,Third Party Payments,478101,Purchase of Care,07/07/2021,3888771-I-21-1196167,"18,940.08",COMMUNITY INTEGRATED CARE LTD.
Adult and Health Services,Head of Adults,Third Party Payments,470101,Purchase of Care,07/07/2021,3888775-I-21-1196490,"8,167.16",CONSENSUS SUPPORT SERVICES LTD.
Adult and Health Services,Head of Adults,Third Party Payments,478101,Purchase of Care,07/07/2021,3888784-I-21-1196163,"9,920.24",CREATIVE SUPPORT LTD.
Adult and Health Services,Head of Adults,Third Party Payments,478101,Purchase of Care,07/07/2021,3888784-I-21-1196246,"27,803.32",CREATIVE SUPPORT LTD.
Adult and Health Services,Head of Adults,Third Party Payments,478101,Purchase of Care,07/07/2021,3888784-I-21-1196248,"3,000.60",CREATIVE SUPPORT LTD.
Adult and Health Services,Head of Adults,Third Party Payments,470101,Purchase of Care,07/07/2021,3888790-I-21-1196506,"135,754.30",CROWN CARE VI LTD.
Adult and Health Services,Head of Adults,Third Party Payments,474101,Purchase of Care,07/07/2021,3888792-I-21-1196462,"11,134.24",CYGNET OE LTD.
Adult and Health Services,Head of Adults,Third Party Payments,474101,Purchase of Care,07/07/2021,3888793-I-21-1196378,"4,937.52",CYGNET OE LTD.
Adult and Health Services,Head of Adults,Third Party Payments,470101,Purchase of Care,07/07/2021,3888791-I-21-1196348,"20,437.40",CYGNET OE LTD.
Adult and Health Services,Head of Adults,Third Party Payments,473101,Purchase of Care,07/07/2021,3888822-I-21-1196183,"14,682.20",DEACONSTAR LTD.
Adult and Health Services,Head of Adults,Third Party Payments,478101,Purchase of Care,07/07/2021,3888822-I-21-1195674,"12,484.56",DEACONSTAR LTD.
Adult and Health Services,Head of Adults,Third Party Payments,478101,Purchase of Care,07/07/2021,3888822-I-21-1196094,"6,900.00",DEACONSTAR LTD.
Adult and Health Services,Head of Adults,Third Party Payments,478101,Purchase of Care,07/07/2021,3888822-I-21-1196173,"11,412.00",DEACONSTAR LTD.
Adult and Health Services,Head of Adults,Third Party Payments,478101,Purchase of Care,07/07/2021,3888822-I-21-1196256,"10,440.00",DEACONSTAR LTD.
Adult and Health Services,Head of Adults,Third Party Payments,478101,Purchase of Care,07/07/2021,3888822-I-21-1196257,"5,463.04",DEACONSTAR LTD.
Adult and Health Services,Head of Adults,Third Party Payments,478101,Purchase of Care,07/07/2021,3888872-I-21-1195663,"36,928.80",EMBRACING CARE.
Adult and Health Services,Head of Adults,Third Party Payments,473101,Purchase of Care,07/07/2021,3888877-I-21-1195647,"6,119.85",ENDEAVOUR WOODCRAFTS CIC.
Adult and Health Services,Head of Adults,Third Party Payments,473101,Purchase of Care,07/07/2021,3888934-I-21-1195644,"4,646.40",GROWING TOGETHER DURHAM LTD.
Adult and Health Services,Head of Adults,Third Party Payments,473101,Purchase of Care,07/07/2021,3888934-I-21-1195720,"3,101.52",GROWING TOGETHER DURHAM LTD.
Adult and Health Services,Head of Adults,Third Party Payments,478101,Purchase of Care,07/07/2021,3888971-I-21-1195658,"9,016.32",HIGHLEA CARE LTD.
Adult and Health Services,Head of Adults,Third Party Payments,478101,Purchase of Care,07/07/2021,3888972-I-21-1195661,"1,072.44",HIGHLEA CARE LTD.
Adult and Health Services,Head of Adults,Third Party Payments,478101,Purchase of Care,07/07/2021,3888972-I-21-1195662,"7,285.20",HIGHLEA CARE LTD.
Adult and Health Services,Head of Adults,Third Party Payments,478101,Purchase of Care,07/07/2021,3888972-I-21-1195666,"5,400.00",HIGHLEA CARE LTD.
Adult and Health Services,Head of Adults,Third Party Payments,478101,Purchase of Care,07/07/2021,3888972-I-21-1195706,"5,376.00",HIGHLEA CARE LTD.
Adult and Health Services,Head of Adults,Third Party Payments,478101,Purchase of Care,07/07/2021,3888972-I-21-1195707,"15,276.88",HIGHLEA CARE LTD.
Adult and Health Services,Head of Adults,Third Party Payments,478101,Purchase of Care,07/07/2021,3888972-I-21-1195752,"13,788.00",HIGHLEA CARE LTD.
Adult and Health Services,Head of Adults,Third Party Payments,478101,Purchase of Care,07/07/2021,3888972-I-21-1196161,"7,867.80",HIGHLEA CARE LTD.
Adult and Health Services,Head of Adults,Third Party Payments,478101,Purchase of Care,07/07/2021,3888972-I-21-1196208,"7,194.88",HIGHLEA CARE LTD.
Adult and Health Services,Head of Adults,Third Party Payments,478101,Purchase of Care,07/07/2021,3888972-I-21-1196221,"1,200.00",HIGHLEA CARE LTD.
Adult and Health Services,Head of Adults,Third Party Payments,478101,Purchase of Care,07/07/2021,3888972-I-21-1196245,"14,997.60",HIGHLEA CARE LTD.
Adult and Health Services,Head of Adults,Third Party Payments,478101,Purchase of Care,07/07/2021,3888976-I-21-1196165,"1,260.00",HOME GROUP LTD FORMERLY STONHAM HOUSING ASSOCIATION LTD.
Adult and Health Services,Head of Adults,Third Party Payments,473101,Purchase of Care,07/07/2021,3889050-I-21-1195683,"9,118.96",JOURNEY ENTERPRISES LTD.
Adult and Health Services,Head of Adults,Third Party Payments,470101,Purchase of Care,07/07/2021,3889098-I-21-1196368,"6,999.80",LEONARD CHESHIRE DISABILITY.
Adult and Health Services,Head of Adults,Third Party Payments,478101,Purchase of Care,07/07/2021,3889193-I-21-1196240,"9,142.12",MENCAP.
Adult and Health Services,Head of Adults,Third Party Payments,473101,Purchase of Care,07/07/2021,3889216-I-21-1195630,"2,434.40",MOVEABLE FEASTS ARTS.
Adult and Health Services,Head of Adults,Third Party Payments,470101,Purchase of Care,07/07/2021,3889217-I-21-1196484,"22,069.72",MR & MRS BURNS.
Adult and Health Services,Head of Adults,Third Party Payments,478101,Purchase of Care,07/07/2021,3889272-I-21-1195698,"1,716.00",MVP SUPPORT.
Adult and Health Services,Head of Adults,Third Party Payments,478101,Purchase of Care,07/07/2021,3889273-I-21-1195736,"40,851.91",MY HOMECARE (DURHAM) LTD.
Adult and Health Services,Head of Adults,Third Party Payments,473101,Purchase of Care,07/07/2021,3889294-I-21-1195701,"4,478.98",NORTH EAST BEFRIENDING SERVICE CIC.
Adult and Health Services,Head of Adults,Third Party Payments,470101,Purchase of Care,07/07/2021,3889298-I-21-1196494,"7,448.32",NORWOOD.
Adult and Health Services,Head of Adults,Third Party Payments,478101,Purchase of Care,07/07/2021,3889301-I-21-1195659,"9,764.40",OAKLEA TRUST.
Adult and Health Services,Head of Adults,Third Party Payments,478101,Purchase of Care,07/07/2021,3889301-I-21-1195710,"8,479.92",OAKLEA TRUST.
Adult and Health Services,Head of Adults,Third Party Payments,478101,Purchase of Care,07/07/2021,3889301-I-21-1195729,"14,958.00",OAKLEA TRUST.
Adult and Health Services,Head of Adults,Third Party Payments,478101,Purchase of Care,07/07/2021,3889301-I-21-1195747,"12,883.20",OAKLEA TRUST.
Adult and Health Services,Head of Adults,Third Party Payments,478101,Purchase of Care,07/07/2021,3889301-I-21-1196116,"8,736.00",OAKLEA TRUST.
Adult and Health Services,Head of Adults,Third Party Payments,478101,Purchase of Care,07/07/2021,3889301-I-21-1196117,"3,828.00",OAKLEA TRUST.
Adult and Health Services,Head of Adults,Third Party Payments,478101,Purchase of Care,07/07/2021,3889301-I-21-1196169,"18,170.12",OAKLEA TRUST.
Adult and Health Services,Head of Adults,Third Party Payments,478101,Purchase of Care,07/07/2021,3889301-I-21-1196204,"16,946.12",OAKLEA TRUST.
Adult and Health Services,Head of Adults,Third Party Payments,470101,Purchase of Care,07/07/2021,3889308-I-21-1196283,"4,387.04",OSWALD HOUSE CARE HOME LTD.
Adult and Health Services,Head of Adults,Third Party Payments,470101,Purchase of Care,07/07/2021,3889309-I-21-1196486,"6,580.56",OSWALD HOUSE CARE HOME LTD.
Adult and Health Services,Head of Adults,Third Party Payments,470101,Purchase of Care,07/07/2021,3889310-I-21-1196320,"6,580.56",OSWALD HOUSE CARE HOME LTD.
Adult and Health Services,Head of Adults,Third Party Payments,470101,Purchase of Care,07/07/2021,3889311-I-21-1196489,"6,580.56",OSWALD HOUSE CARE HOME LTD.
Adult and Health Services,Head of Adults,Third Party Payments,470101,Purchase of Care,07/07/2021,3889312-I-21-1196352,"14,932.56",OSWALD HOUSE CARE HOME LTD.
Adult and Health Services,Head of Adults,Third Party Payments,470101,Purchase of Care,07/07/2021,3889311-I-21-1196194,588.00,OSWALD HOUSE CARE HOME LTD.
Adult and Health Services,Head of Adults,Third Party Payments,470101,Purchase of Care,07/07/2021,3889312-I-21-1195734,"1,881.60",OSWALD HOUSE CARE HOME LTD.
Adult and Health Services,Head of Adults,Third Party Payments,473101,Purchase of Care,07/07/2021,3889345-I-21-1196151,"2,758.80",PHOENIX DAY CENTRE CIC.
Adult and Health Services,Head of Adults,Third Party Payments,473101,Purchase of Care,07/07/2021,3889347-I-21-1196229,"2,537.08",PIONEERING CARE PARTNERSHIP.
Adult and Health Services,Head of Adults,Third Party Payments,478101,Purchase of Care,07/07/2021,3889350-I-21-1195712,"10,520.16",POSITIVE INDIVIDUAL PROACTIVE SUPPORT LTD.
Adult and Health Services,Head of Adults,Third Party Payments,478101,Purchase of Care,07/07/2021,3889350-I-21-1196218,"5,853.12",POSITIVE INDIVIDUAL PROACTIVE SUPPORT LTD.
Adult and Health Services,Head of Adults,Third Party Payments,478101,Purchase of Care,07/07/2021,3889352-I-21-1196215,"5,305.20",POTENSIAL LTD.
Adult and Health Services,Head of Adults,Third Party Payments,478101,Purchase of Care,07/07/2021,3889257-I-21-1196141,"2,671.36",REDACTED - PAYMENT TO INDIVIDUAL
Adult and Health Services,Head of Adults,Third Party Payments,470101,Purchase of Care,07/07/2021,3889383-I-21-1196383,"3,966.56",RESOLVE (CARE NORTHERN) LTD..
Adult and Health Services,Head of Adults,Third Party Payments,470101,Purchase of Care,07/07/2021,3889391-I-21-1196362,"2,070.12",RICHMOND FELLOWSHIP.
Adult and Health Services,Head of Adults,Third Party Payments,473101,Purchase of Care,07/07/2021,3889393-I-21-1196176,"2,439.04",RIDING CENTRE FOR SPECIAL PEOPLE LTD..
Adult and Health Services,Head of Adults,Third Party Payments,470101,Purchase of Care,07/07/2021,3889461-I-21-1196287,"9,920.40",SPECIALITY CARE (REHAB) LTD.
Adult and Health Services,Head of Adults,Third Party Payments,478101,Purchase of Care,07/07/2021,3889465-I-21-1196135,"7,910.40",ST ANNES COMMUNITY SERVICES.
Adult and Health Services,Head of Adults,Third Party Payments,478101,Purchase of Care,07/07/2021,3889465-I-21-1196219,"25,840.64",ST ANNES COMMUNITY SERVICES.
Adult and Health Services,Head of Adults,Third Party Payments,478101,Purchase of Care,07/07/2021,3889465-I-21-1196255,"8,075.20",ST ANNES COMMUNITY SERVICES.
Adult and Health Services,Head of Adults,Third Party Payments,478101,Purchase of Care,07/07/2021,3889478-I-21-1196140,"2,071.68",STEVE & MICHELLE ROBSON.
Adult and Health Services,Head of Adults,Third Party Payments,473101,Purchase of Care,07/07/2021,3889534-I-21-1196182,"20,751.06",THOMPSON & HOWE LTD.
Adult and Health Services,Head of Adults,Third Party Payments,473101,Purchase of Care,07/07/2021,3889534-I-21-1196187,"29,024.08",THOMPSON & HOWE LTD.
Adult and Health Services,Head of Adults,Third Party Payments,473101,Purchase of Care,07/07/2021,3889534-I-21-1196189,"12,905.50",THOMPSON & HOWE LTD.
Adult and Health Services,Head of Adults,Third Party Payments,470101,Purchase of Care,07/07/2021,3889546-I-21-1196294,"7,982.24",TRUST CARE MANAGEMENT LTD.
Adult and Health Services,Head of Adults,Third Party Payments,478101,Purchase of Care,07/07/2021,3889547-I-21-1196202,"1,512.00",TURNAROUND HOMES (3 TO 13).
Adult and Health Services,Head of Adults,Third Party Payments,478101,Purchase of Care,07/07/2021,3889550-I-21-1195664,"12,181.12",UNITED RESPONSE.
Adult and Health Services,Head of Adults,Third Party Payments,478101,Purchase of Care,07/07/2021,3889550-I-21-1196106,"12,722.00",UNITED RESPONSE.
Adult and Health Services,Head of Adults,Third Party Payments,473101,Purchase of Care,07/07/2021,3889562-I-21-1195638,"6,519.10",VOIDSERVICES LTD.
Adult and Health Services,Head of Adults,Third Party Payments,470101,Purchase of Care,07/07/2021,3889563-I-21-1196280,"9,714.29",VOYAGE 1 LTD.
Adult and Health Services,Head of Adults,Third Party Payments,470101,Purchase of Care,07/07/2021,3889565-I-21-1196327,"5,936.80",VOYAGE 1 LTD.
Adult and Health Services,Head of Adults,Third Party Payments,470101,Purchase of Care,07/07/2021,3889567-I-21-1196416,"17,267.79",VOYAGE 1 LTD.
Adult and Health Services,Head of Adults,Third Party Payments,470101,Purchase of Care,07/07/2021,3889568-I-21-1196485,"15,826.20",VOYAGE 1 LTD.
Adult and Health Services,Head of Adults,Third Party Payments,478101,Purchase of Care,07/07/2021,3889564-I-21-1196080,"24,119.16",VOYAGE 1 LTD.
Adult and Health Services,Head of Adults,Third Party Payments,470101,Purchase of Care,07/07/2021,3889573-I-21-1196410,"6,660.48",WEST CUMBRIA CARE & SUPPORT.
Adult and Health Services,Head of Adults,Third Party Payments,473101,Purchase of Care,07/07/2021,3889587-I-21-1195685,"7,844.20",WOODCRAFT FOR LANDSCAPES CIC.
Adult and Health Services,Head of Adults,Third Party Payments,478101,Purchase of Care,07/07/2021,3889590-I-21-1195718,"9,316.80",YS SERVICES LTD T/A EMBRACING CARE.
Adult and Health Services,Head of Adults,Third Party Payments,478101,Purchase of Care,07/07/2021,3889590-I-21-1195753,"6,364.40",YS SERVICES LTD T/A EMBRACING CARE.
Adult and Health Services,Head of Adults,Third Party Payments,478101,Purchase of Care,07/07/2021,3889590-I-21-1196087,"12,652.48",YS SERVICES LTD T/A EMBRACING CARE.
Adult and Health Services,Head of Adults,Third Party Payments,478101,Purchase of Care,07/07/2021,3889590-I-21-1196088,"4,793.60",YS SERVICES LTD T/A EMBRACING CARE.
Adult and Health Services,Head of Adults,Third Party Payments,478101,Purchase of Care,07/07/2021,3889590-I-21-1196130,"11,040.40",YS SERVICES LTD T/A EMBRACING CARE.
Adult and Health Services,Head of Adults,Third Party Payments,478101,Purchase of Care,07/07/2021,3889590-I-21-1196212,"19,367.60",YS SERVICES LTD T/A EMBRACING CARE.
Adult and Health Services,Head of Adults,Third Party Payments,478101,Purchase of Care,07/07/2021,3889590-I-21-1196213,"4,629.76",YS SERVICES LTD T/A EMBRACING CARE.
Adult and Health Services,Head of Adults,Third Party Payments,478101,Purchase of Care,07/07/2021,3889590-I-21-1196214,"6,594.00",YS SERVICES LTD T/A EMBRACING CARE.
Adult and Health Services,Head of Adults,Third Party Payments,478101,Purchase of Care,07/07/2021,3888365-I-21-1195657,"19,263.32",ACCEPT CARE LTD.
Adult and Health Services,Head of Adults,Third Party Payments,478101,Purchase of Care,07/07/2021,3888365-I-21-1195660,"39,735.00",ACCEPT CARE LTD.
Adult and Health Services,Head of Adults,Third Party Payments,478101,Purchase of Care,07/07/2021,3888365-I-21-1195709,"25,350.00",ACCEPT CARE LTD.
Adult and Health Services,Head of Adults,Third Party Payments,478101,Purchase of Care,07/07/2021,3888365-I-21-1196075,"36,215.96",ACCEPT CARE LTD.
Adult and Health Services,Head of Adults,Third Party Payments,478101,Purchase of Care,07/07/2021,3888365-I-21-1196118,"33,901.50",ACCEPT CARE LTD.
Adult and Health Services,Head of Adults,Third Party Payments,478101,Purchase of Care,07/07/2021,3888365-I-21-1196120,"26,135.40",ACCEPT CARE LTD.
Adult and Health Services,Head of Adults,Third Party Payments,474101,Purchase of Care,07/07/2021,3888602-I-21-1196344,"2,559.24",AKARI CARE LTD.
Adult and Health Services,Head of Adults,Third Party Payments,470101,Purchase of Care,07/07/2021,3888657-2679439,"2,157.56",ASPIRE CARE GROUP.
Adult and Health Services,Head of Adults,Third Party Payments,470101,Purchase of Care,07/07/2021,3888657-2679440,"2,157.56",ASPIRE CARE GROUP.
Adult and Health Services,Head of Adults,Third Party Payments,470101,Purchase of Care,07/07/2021,3888657-I-21-1196313,"4,315.12",ASPIRE CARE GROUP.
Adult and Health Services,Head of Adults,Third Party Payments,470101,Purchase of Care,07/07/2021,3888658-I-21-1196483,"13,386.68",ASPIRE CARE GROUP.
Adult and Health Services,Head of Adults,Third Party Payments,470101,Purchase of Care,07/07/2021,3888658-I-21-1204749,691.20,ASPIRE CARE GROUP.
Adult and Health Services,Head of Adults,Third Party Payments,470101,Purchase of Care,07/07/2021,3888666-I-21-1196314,"18,856.18",AUTISM CARE UK (4) LTD.
Adult and Health Services,Head of Adults,Third Party Payments,478101,Purchase of Care,07/07/2021,3888666-I-21-1195705,"10,559.72",AUTISM CARE UK (4) LTD.
Adult and Health Services,Head of Adults,Third Party Payments,478101,Purchase of Care,07/07/2021,3888666-I-21-1196160,"20,285.68",AUTISM CARE UK (4) LTD.
Adult and Health Services,Head of Adults,Third Party Payments,478101,Purchase of Care,07/07/2021,3888666-I-21-1196243,"8,539.52",AUTISM CARE UK (4) LTD.
Adult and Health Services,Head of Adults,Third Party Payments,478101,Purchase of Care,07/07/2021,3888666-I-21-1196249,"13,568.64",AUTISM CARE UK (4) LTD.
Adult and Health Services,Head of Adults,Third Party Payments,470101,Purchase of Care,07/07/2021,3888687-I-21-1196357,"18,631.40",BENTON CARE SERVICES LTD.
Adult and Health Services,Head of Adults,Third Party Payments,473101,Purchase of Care,07/07/2021,3888706-I-21-1196152,984.48,BULLION COMMUNITY RESOURCE CENTRE.
Adult and Health Services,Head of Adults,Third Party Payments,470101,Purchase of Care,07/07/2021,3888722-I-21-1196421,"2,796.52",CARELINE LIFESTYLES (UK) LTD.
Adult and Health Services,Head of Adults,Third Party Payments,478101,Purchase of Care,07/07/2021,3888771-I-21-1196073,"20,503.20",COMMUNITY INTEGRATED CARE LTD.
Adult and Health Services,Head of Adults,Third Party Payments,478101,Purchase of Care,07/07/2021,3888771-I-21-1196239,"20,928.96",COMMUNITY INTEGRATED CARE LTD.
Adult and Health Services,Head of Adults,Third Party Payments,478101,Purchase of Care,07/07/2021,3888784-I-21-1196251,"19,329.36",CREATIVE SUPPORT LTD.
Adult and Health Services,Head of Adults,Third Party Payments,470101,Purchase of Care,07/07/2021,3888838-I-21-1196454,"1,840.68",DOVE CARE LTD.
Adult and Health Services,Head of Adults,Third Party Payments,470101,Purchase of Care,07/07/2021,3888842-I-21-1196301,"46,363.84",DURHAM CARELINE LTD.
Adult and Health Services,Head of Adults,Third Party Payments,473101,Purchase of Care,07/07/2021,3888850-I-21-1195640,"24,981.56",EBONEY HOME CARE LTD.
Adult and Health Services,Head of Adults,Third Party Payments,470101,Purchase of Care,07/07/2021,3888855-I-21-1196290,"10,200.24",EDUCATION & SERVICES FOR PEOPLE WITH AUTISM LTD (ESPA).
Adult and Health Services,Head of Adults,Third Party Payments,472101,Purchase of Care,07/07/2021,3888871-I-21-1195689,"270,000.65",EMBRACING CARE.
Adult and Health Services,Head of Adults,Third Party Payments,478101,Purchase of Care,07/07/2021,3888871-I-21-1196206,"14,640.00",EMBRACING CARE.
Adult and Health Services,Head of Adults,Third Party Payments,478101,Purchase of Care,07/07/2021,3888885-I-21-1196123,"6,852.24",ETHICARE (DURHAM) LTD.
Adult and Health Services,Head of Adults,Third Party Payments,470101,Purchase of Care,07/07/2021,3888911-I-21-1196507,"684,829.42",GAINFORD CARE HOMES LTD.
Adult and Health Services,Head of Adults,Third Party Payments,473101,Purchase of Care,07/07/2021,3888917-I-21-1196101,"39,034.48",GAPPS DAY SERVICES LTD.
Adult and Health Services,Head of Adults,Third Party Payments,478101,Purchase of Care,07/07/2021,3888972-I-21-1196105,"49,547.72",HIGHLEA CARE LTD.
Adult and Health Services,Head of Adults,Third Party Payments,470101,Purchase of Care,07/07/2021,3888974-I-21-1196475,"60,181.82",HILL CARE 3 LTD.
